Directorate,Department,Expenditure Type,Ref.Doc.1,Vendor Name,Expenditure Amount (exc VAT),Payment Date
Balance Sheet,Balance Sheet,Charitable Giving,50000048,CHARITIES TRUST,435.00,13/05/2019
Central Expenses,Central Expenses,Other Establishments - Third P,1000023174,ENVIRONMENT AGENCY,"82,845.00",01/05/2019
Central Expenses,Central Expenses,Other Establishments - Third P,CHP4000887,GREATER LONDON AUTHORITY,"50,013.70",15/04/2019
Central Expenses,Central Expenses,Other Establishments - Third P,1000023384,GREATER LONDON AUTHORITY,"50,013.70",24/05/2019
Central Expenses,Central Expenses,Other Establishments - Third P,1000023145,LEE VALLEY REGIONAL PARK AUTH.,"28,824.71",25/04/2019
Central Expenses,Central Expenses,Other Establishments - Third P,CHP4000889,LEE VALLEY REGIONAL PARK AUTH.,"28,824.71",24/05/2019
Commercial,Customer Support Group,Equipment and Materials Purcha,10015184,LOCALE LIMITED,800.00,23/05/2019
Commercial,Customer Support Group,Equipment and Materials Purcha,60129086,LOCALE LIMITED,"8,500.00",23/05/2019
Commercial,Customer Support Group,Equipment and Materials Purcha,60129586,LOCALE LIMITED,"1,510.00",21/05/2019
Commercial,Customer Support Group,Equipment and Materials Purcha,60130499,LOCALE LIMITED,560.00,22/05/2019
Commercial,Customer Support Group,Furniture-Purchase-Repair,60130525,SCREWFIX DIRECT LTD,20.83,08/05/2019
Commercial,Customer Support Group,Furniture-Purchase-Repair,60129526,SCREWFIX DIRECT LTD,30.75,21/05/2019
Commercial,Customer Support Group,Other Services,60130459,BLUE 9 SECURITY LIMITED,"13,791.66",22/05/2019
COMMERCIAL,HOUSING NEEDS RESOURCES,Grant Payments,80025189,AMWELL CONSTRUCTION LTD,"2,738.93",09/05/2019
COMMERCIAL,HOUSING NEEDS RESOURCES,Grant Payments,80026310,REDACTED - PERSONAL DATA,"18,577.50",31/05/2019
COMMERCIAL,HOUSING REVENUE ACCOUNT,Consultants Fees,10015151,ALLIES AND MORRRISON,"72,375.00",01/05/2019
COMMERCIAL,HOUSING REVENUE ACCOUNT,Consultants Fees,10015152,ALLIES AND MORRRISON,"72,375.00",01/05/2019
COMMERCIAL,HOUSING REVENUE ACCOUNT,Consultants Fees,60129704,ALLIES AND MORRRISON,"6,000.00",29/05/2019
COMMERCIAL,HOUSING REVENUE ACCOUNT,Other Agencies - Third Party P,80025652,THE BARNETGROUP LIMITED,"367,333.33",15/05/2019
COMMERCIAL,HOUSING REVENUE ACCOUNT,Other Agencies - Third Party P,80026205,THE BARNETGROUP LIMITED,"2,437,000.00",15/05/2019
COMMERCIAL,HOUSING REVENUE ACCOUNT,Other Agencies - Third Party P,60128982,THE BARNETGROUP LIMITED,"2,454,000.00",15/05/2019
COMMERCIAL,HOUSING REVENUE ACCOUNT,Other Services,60128925,CW HARRISON & SON,"1,080.00",28/05/2019
COMMERCIAL,HOUSING REVENUE ACCOUNT,Other Services,60128928,PEARL & CO CLIENTS PREMIUM ACC,"1,000.00",07/05/2019
Commercial,HRA,Advertising,10015194,TMP (UK) LTD,988.00,21/05/2019
Commercial,HRA,Advertising,60128169,TMP (UK) LTD,"1,015.00",28/05/2019
Commercial,HRA,Advertising,60130822,TMP (UK) LTD,934.00,28/05/2019
Commercial,HRA,Consultants Fees,60130275,AD HOC PROPERTY MANAGEMENT LTD,280.00,20/05/2019
Commercial,HRA,Consultants Fees,60130476,MICROFISH COMMUNICATIONS LTD,"1,653.23",01/05/2019
Commercial,HRA,Consultants Fees,60130900,PRIORITY ESTATES PROJECT LTD,"2,654.30",01/05/2019
Commercial,HRA,Consultants Fees,60130948,ROYAL AIR FORCE MUSEUM,"3,300.00",30/05/2019
Commercial,HRA,Consultants Fees,60129745,THE BARNETGROUP LIMITED,"94,500.00",20/05/2019
Commercial,HRA,Consultants Fees,80025628,TROWERS & HAMLINS,845.00,28/05/2019
Commercial,HRA,Fees and Charges,60130693,LMK LAW SOLICITORS,500.00,20/05/2019
Commercial,HRA,Other Services,60127948,THE BARNETGROUP LIMITED,"2,024.80",09/05/2019
Commercial,HRA,Other Services,60130393,THE BARNETGROUP LIMITED,"2,020,145.93",24/05/2019
Commercial,Regional Enterprise,Advertising,80025653,TMP (UK) LTD,260.00,21/05/2019
Commercial,Regional Enterprise,Advertising,60129747,TMP (UK) LTD,170.00,01/05/2019
Commercial,Regional Enterprise,Advertising,60130716,TMP (UK) LTD,170.00,01/05/2019
Commercial,Regional Enterprise,Advertising,60129707,TMP (UK) LTD,188.00,01/05/2019
Commercial,Regional Enterprise,Advertising,60129714,TMP (UK) LTD,108.00,01/05/2019
Commercial,Regional Enterprise,Advertising,60129720,TMP (UK) LTD,170.00,01/05/2019
Commercial,Regional Enterprise,Advertising,60129721,TMP (UK) LTD,108.00,07/05/2019
Commercial,Regional Enterprise,Advertising,60129723,TMP (UK) LTD,108.00,07/05/2019
Commercial,Regional Enterprise,Advertising,60129735,TMP (UK) LTD,90.00,07/05/2019
Commercial,Regional Enterprise,Advertising,60129740,TMP (UK) LTD,90.00,07/05/2019
Commercial,Regional Enterprise,Advertising,60130969,TMP (UK) LTD,90.00,07/05/2019
Commercial,Regional Enterprise,Advertising,60130972,TMP (UK) LTD,108.00,07/05/2019
COMMERCIAL,REGIONAL ENTERPRISE,Capital Construction and Works,10015157,TRANSPORT FOR LONDON,"5,000.00",30/05/2019
COMMERCIAL,REGIONAL ENTERPRISE,Consultants Fees,60129748,NETWORK RAIL INFRASTRUCTURE LTD,"-358,121.49",17/05/2019
COMMERCIAL,REGIONAL ENTERPRISE,Consultants Fees,60129885,NETWORK RAIL INFRASTRUCTURE LTD,"910,514.21",17/05/2019
COMMERCIAL,REGIONAL ENTERPRISE,Consultants Fees,60128896,NETWORK RAIL INFRASTRUCTURE LTD,"23,151.16",17/05/2019
COMMERCIAL,REGIONAL ENTERPRISE,Consultants Fees,60128917,NETWORK RAIL INFRASTRUCTURE LTD,"617,588.60",17/05/2019
COMMERCIAL,REGIONAL ENTERPRISE,Consultants Fees,60128939,NETWORK RAIL INFRASTRUCTURE LTD,"94,833.23",17/05/2019
COMMERCIAL,REGIONAL ENTERPRISE,Consultants Fees,60129003,NETWORK RAIL INFRASTRUCTURE LTD,"562,319.22",29/05/2019
COMMERCIAL,REGIONAL ENTERPRISE,Consultants Fees,60129011,NETWORK RAIL INFRASTRUCTURE LTD,"392,008.79",30/05/2019
COMMERCIAL,REGIONAL ENTERPRISE,Consultants Fees,60129188,NETWORK RAIL INFRASTRUCTURE LTD,442.11,30/05/2019
COMMERCIAL,REGIONAL ENTERPRISE,Equipment and Materials Purcha,60129191,JOHN GRAHAM CONSTRUCTION LTD,"155,366.19",13/05/2019
COMMERCIAL,REGIONAL ENTERPRISE,Equipment and Materials Purcha,60129195,JOHN GRAHAM CONSTRUCTION LTD,"468,316.94",22/05/2019
COMMERCIAL,REGIONAL ENTERPRISE,Equipment and Materials Purcha,60129246,TRANSPORT FOR LONDON,"40,639.96",15/05/2019
COMMERCIAL,REGIONAL ENTERPRISE,Equipment and Materials Purcha,60129262,TRANSPORT FOR LONDON,"2,679.76",22/05/2019
Commercial,Regional Enterprise,Fees and Charges,60129294,REDACTED - PERSONAL DATA,480.00,31/05/2019
COMMERCIAL,REGIONAL ENTERPRISE,Gas,60130699,CADENT GAS LIMITED,"16,133.00",21/05/2019
COMMERCIAL,REGIONAL ENTERPRISE,Grant Payments,60128937,AMWELL CONSTRUCTION LTD,"5,755.14",07/05/2019
COMMERCIAL,REGIONAL ENTERPRISE,Grant Payments,60130756,AMWELL CONSTRUCTION LTD,"17,473.00",08/05/2019
COMMERCIAL,REGIONAL ENTERPRISE,Grant Payments,60131024,AMWELL CONSTRUCTION LTD,"5,051.00",09/05/2019
COMMERCIAL,REGIONAL ENTERPRISE,Grant Payments,60131038,AMWELL CONSTRUCTION LTD,"5,404.00",22/05/2019
Commercial,Regional Enterprise,Grant Payments,60131064,AMWELL CONSTRUCTION LTD,315.60,23/05/2019
COMMERCIAL,REGIONAL ENTERPRISE,Grant Payments,60107675,ARTHUR J. FERRYMAN ASSOCIATES,819.06,14/05/2019
COMMERCIAL,REGIONAL ENTERPRISE,Grant Payments,60130729,ARTHUR J. FERRYMAN ASSOCIATES,"1,176.72",14/05/2019
COMMERCIAL,REGIONAL ENTERPRISE,Grant Payments,60126374,ARTHUR J. FERRYMAN ASSOCIATES,"3,375.96",14/05/2019
COMMERCIAL,REGIONAL ENTERPRISE,Grant Payments,60130649,ARTHUR J. FERRYMAN ASSOCIATES,832.80,28/05/2019
Commercial,Regional Enterprise,Grant Payments,60130715,CLOUDS END SERVICES,"1,080.00",08/05/2019
Commercial,Regional Enterprise,Grant Payments,80026398,CLOUDS END SERVICES,"2,880.00",09/05/2019
Commercial,Regional Enterprise,Grant Payments,10015163,CLOUDS END SERVICES,960.00,09/05/2019
COMMERCIAL,REGIONAL ENTERPRISE,Grant Payments,60127157,DOMESTIC LIFT SERVICES LTD,"5,724.00",09/05/2019
COMMERCIAL,REGIONAL ENTERPRISE,Grant Payments,60128549,DOMESTIC LIFT SERVICES LTD,"4,313.36",23/05/2019
COMMERCIAL,REGIONAL ENTERPRISE,Grant Payments,60128574,DP BUILDERS DISABLED ADAPTATIONS,"1,719.00",17/05/2019
COMMERCIAL,REGIONAL ENTERPRISE,Grant Payments,60128588,DP BUILDERS DISABLED ADAPTATIONS,"8,726.00",30/05/2019
COMMERCIAL,REGIONAL ENTERPRISE,Grant Payments,60128591,DP BUILDERS DISABLED ADAPTATIONS,"6,899.02",31/05/2019
COMMERCIAL,REGIONAL ENTERPRISE,Grant Payments,60128592,EMS STAIRLIFTS,"7,450.00",09/05/2019
Commercial,Regional Enterprise,Grant Payments,60128593,FOUNDATION INDEPENDENT LIVING,"2,000.00",17/05/2019
COMMERCIAL,REGIONAL ENTERPRISE,Grant Payments,60128607,G J PULHAM,"7,353.00",29/05/2019
COMMERCIAL,REGIONAL ENTERPRISE,Grant Payments,60128609,H D PROPERTY SERVICES LTD,"5,152.00",28/05/2019
COMMERCIAL,REGIONAL ENTERPRISE,Grant Payments,60128614,H D PROPERTY SERVICES LTD,"6,062.00",29/05/2019
Commercial,Regional Enterprise,Grant Payments,60128619,REDACTED - PERSONAL DATA,500.00,10/05/2019
COMMERCIAL,REGIONAL ENTERPRISE,Grant Payments,60128746,SOUTH HERTFORDSHIRE,"7,307.00",14/05/2019
COMMERCIAL,REGIONAL ENTERPRISE,Grant Payments,60128748,SOUTH HERTFORDSHIRE,"5,533.00",17/05/2019
COMMERCIAL,REGIONAL ENTERPRISE,Grant Payments,60128750,SOUTH HERTFORDSHIRE,"6,761.00",17/05/2019
COMMERCIAL,REGIONAL ENTERPRISE,Grant Payments,60128763,STANNAH STAIRLIFTS LTD,"2,770.00",15/05/2019
COMMERCIAL,REGIONAL ENTERPRISE,Grant Payments,60128776,STANNAH STAIRLIFTS LTD,"2,575.00",15/05/2019
COMMERCIAL,REGIONAL ENTERPRISE,Grant Payments,60128778,WOODVILLE BUILDERS LIMITED,"9,999.00",14/05/2019
Commercial,Regional Enterprise,Legal and Court Fees,60128782,REDACTED - PERSONAL DATA,100.00,02/05/2019
Commercial,Regional Enterprise,Other Establishments - Third P,60128783,TRANSPORT FOR LONDON,"822,523.61",10/05/2019
COMMERCIAL,REGIONAL ENTERPRISE,Other Services,60128785,4PROJECTS LTD,"2,385.00",07/05/2019
COMMERCIAL,REGIONAL ENTERPRISE,Other Services,60128793,4PROJECTS LTD,"3,530.00",07/05/2019
Commercial,Regional Enterprise,Other Services,60128794,AFFINITY WATER LIMITED,38.26,15/05/2019
Commercial,Regional Enterprise,Other Services,60128795,AFFINITY WATER LIMITED,72.05,29/05/2019
COMMERCIAL,REGIONAL ENTERPRISE,Other Services,60128796,BOUYGUES E&S INFRASTRUCTURE UK LTD,"3,521.43",23/05/2019
COMMERCIAL,REGIONAL ENTERPRISE,Other Services,60128797,BOUYGUES E&S INFRASTRUCTURE UK LTD,"4,830.00",23/05/2019
COMMERCIAL,REGIONAL ENTERPRISE,Other Services,60128799,BOUYGUES E&S INFRASTRUCTURE UK LTD,"10,406.21",29/05/2019
Commercial,Regional Enterprise,Other Services,60128800,CASTLE WATER LTD,7.29,13/05/2019
Commercial,Regional Enterprise,Other Services,60128801,CASTLE WATER LTD,44.93,13/05/2019
Commercial,Regional Enterprise,Other Services,60128803,CASTLE WATER LTD,30.86,13/05/2019
Commercial,Regional Enterprise,Other Services,60128805,CASTLE WATER LTD,8.15,13/05/2019
Commercial,Regional Enterprise,Other Services,60128806,CASTLE WATER LTD,9.10,13/05/2019
Commercial,Regional Enterprise,Other Services,60128808,CASTLE WATER LTD,22.92,13/05/2019
Commercial,Regional Enterprise,Other Services,60128810,CASTLE WATER LTD,5.83,13/05/2019
Commercial,Regional Enterprise,Other Services,60128811,CASTLE WATER LTD,15.16,30/05/2019
Commercial,Regional Enterprise,Other Services,60128814,CASTLE WATER LTD,31.16,30/05/2019
Commercial,Regional Enterprise,Other Services,60128815,CONWAY AECOM LTD,"12,461.91",14/05/2019
COMMERCIAL,REGIONAL ENTERPRISE,Other Services,60128821,CONWAY AECOM LTD,"-2,078.27",02/05/2019
COMMERCIAL,REGIONAL ENTERPRISE,Other Services,60128822,CONWAY AECOM LTD,"-1,781.50",02/05/2019
COMMERCIAL,REGIONAL ENTERPRISE,Other Services,60128823,CONWAY AECOM LTD,"13,464.00",01/05/2019
Commercial,Regional Enterprise,Other Services,60128825,CONWAY AECOM LTD,486.00,28/05/2019
COMMERCIAL,REGIONAL ENTERPRISE,Other Services,60128827,CONWAY AECOM LTD,95.10,29/05/2019
Commercial,Regional Enterprise,Other Services,60128828,CONWAY AECOM LTD,37.80,07/05/2019
Commercial,Regional Enterprise,Other Services,60128830,CONWAY AECOM LTD,756.00,02/05/2019
COMMERCIAL,REGIONAL ENTERPRISE,Other Services,60128832,CONWAY AECOM LTD,"3,966.20",02/05/2019
COMMERCIAL,REGIONAL ENTERPRISE,Other Services,60128836,CONWAY AECOM LTD,"38,604.51",01/05/2019
COMMERCIAL,REGIONAL ENTERPRISE,Other Services,60128841,CONWAY AECOM LTD,"22,627.86",01/05/2019
COMMERCIAL,REGIONAL ENTERPRISE,Other Services,60128843,CONWAY AECOM LTD,"146,462.06",01/05/2019
Commercial,Regional Enterprise,Other Services,60128844,CONWAY AECOM LTD,180.71,02/05/2019
Commercial,Regional Enterprise,Other Services,60128845,CONWAY AECOM LTD,394.36,02/05/2019
Commercial,Regional Enterprise,Other Services,60128846,CONWAY AECOM LTD,202.59,02/05/2019
Commercial,Regional Enterprise,Other Services,60128849,CONWAY AECOM LTD,172.33,02/05/2019
Commercial,Regional Enterprise,Other Services,60128850,CONWAY AECOM LTD,363.39,02/05/2019
Commercial,Regional Enterprise,Other Services,60128852,CONWAY AECOM LTD,135.56,02/05/2019
Commercial,Regional Enterprise,Other Services,60128858,CONWAY AECOM LTD,60.70,02/05/2019
Commercial,Regional Enterprise,Other Services,60128860,CONWAY AECOM LTD,178.22,02/05/2019
Commercial,Regional Enterprise,Other Services,60128861,CONWAY AECOM LTD,120.47,02/05/2019
Commercial,Regional Enterprise,Other Services,60128862,CONWAY AECOM LTD,175.23,02/05/2019
Commercial,Regional Enterprise,Other Services,60128863,CONWAY AECOM LTD,525.25,02/05/2019
Commercial,Regional Enterprise,Other Services,60128864,CONWAY AECOM LTD,64.79,02/05/2019
Commercial,Regional Enterprise,Other Services,60128865,CONWAY AECOM LTD,600.75,02/05/2019
Commercial,Regional Enterprise,Other Services,60128870,CONWAY AECOM LTD,59.95,02/05/2019
Commercial,Regional Enterprise,Other Services,60128871,CONWAY AECOM LTD,59.95,02/05/2019
Commercial,Regional Enterprise,Other Services,60128874,CONWAY AECOM LTD,207.87,02/05/2019
Commercial,Regional Enterprise,Other Services,60128875,CONWAY AECOM LTD,50.87,01/05/2019
Commercial,Regional Enterprise,Other Services,60128876,CONWAY AECOM LTD,29.28,01/05/2019
Commercial,Regional Enterprise,Other Services,60128878,CONWAY AECOM LTD,100.91,01/05/2019
Commercial,Regional Enterprise,Other Services,60128881,CONWAY AECOM LTD,117.79,02/05/2019
Commercial,Regional Enterprise,Other Services,60128910,CONWAY AECOM LTD,400.05,02/05/2019
Commercial,Regional Enterprise,Other Services,60128913,CONWAY AECOM LTD,58.41,02/05/2019
Commercial,Regional Enterprise,Other Services,60128927,CONWAY AECOM LTD,178.35,02/05/2019
Commercial,Regional Enterprise,Other Services,60128950,CONWAY AECOM LTD,50.60,02/05/2019
Commercial,Regional Enterprise,Other Services,60128963,CONWAY AECOM LTD,100.91,01/05/2019
Commercial,Regional Enterprise,Other Services,60128991,CONWAY AECOM LTD,36.82,02/05/2019
Commercial,Regional Enterprise,Other Services,60128995,CONWAY AECOM LTD,168.12,02/05/2019
Commercial,Regional Enterprise,Other Services,60128998,CONWAY AECOM LTD,200.74,02/05/2019
Commercial,Regional Enterprise,Other Services,60129004,CONWAY AECOM LTD,114.50,02/05/2019
Commercial,Regional Enterprise,Other Services,60129007,CONWAY AECOM LTD,196.00,02/05/2019
Commercial,Regional Enterprise,Other Services,60129019,CONWAY AECOM LTD,200.24,02/05/2019
Commercial,Regional Enterprise,Other Services,60129023,CONWAY AECOM LTD,130.48,02/05/2019
Commercial,Regional Enterprise,Other Services,60129026,CONWAY AECOM LTD,110.91,02/05/2019
Commercial,Regional Enterprise,Other Services,60129050,CONWAY AECOM LTD,117.79,02/05/2019
Commercial,Regional Enterprise,Other Services,60129051,CONWAY AECOM LTD,117.79,02/05/2019
Commercial,Regional Enterprise,Other Services,60129052,CONWAY AECOM LTD,200.74,02/05/2019
Commercial,Regional Enterprise,Other Services,60129056,CONWAY AECOM LTD,55.91,02/05/2019
Commercial,Regional Enterprise,Other Services,60129060,CONWAY AECOM LTD,72.78,02/05/2019
Commercial,Regional Enterprise,Other Services,60129065,CONWAY AECOM LTD,107.02,02/05/2019
Commercial,Regional Enterprise,Other Services,60129071,CONWAY AECOM LTD,117.79,02/05/2019
Commercial,Regional Enterprise,Other Services,60129075,CONWAY AECOM LTD,9.69,02/05/2019
Commercial,Regional Enterprise,Other Services,60129076,CONWAY AECOM LTD,82.32,02/05/2019
Commercial,Regional Enterprise,Other Services,60129080,CONWAY AECOM LTD,100.12,02/05/2019
Commercial,Regional Enterprise,Other Services,60129090,CONWAY AECOM LTD,100.37,02/05/2019
Commercial,Regional Enterprise,Other Services,60129096,CONWAY AECOM LTD,50.60,02/05/2019
Commercial,Regional Enterprise,Other Services,60129101,CONWAY AECOM LTD,14.49,07/05/2019
Commercial,Regional Enterprise,Other Services,60129125,CONWAY AECOM LTD,244.27,02/05/2019
Commercial,Regional Enterprise,Other Services,60129128,CONWAY AECOM LTD,205.81,02/05/2019
Commercial,Regional Enterprise,Other Services,60129135,CONWAY AECOM LTD,50.60,02/05/2019
Commercial,Regional Enterprise,Other Services,60129138,CONWAY AECOM LTD,70.97,02/05/2019
Commercial,Regional Enterprise,Other Services,60129153,CONWAY AECOM LTD,36.82,02/05/2019
Commercial,Regional Enterprise,Other Services,60129155,CONWAY AECOM LTD,150.55,02/05/2019
Commercial,Regional Enterprise,Other Services,60129157,CONWAY AECOM LTD,132.22,02/05/2019
Commercial,Regional Enterprise,Other Services,60129158,CONWAY AECOM LTD,176.68,02/05/2019
Commercial,Regional Enterprise,Other Services,60129162,CONWAY AECOM LTD,50.60,02/05/2019
Commercial,Regional Enterprise,Other Services,60129167,CONWAY AECOM LTD,84.85,08/05/2019
Commercial,Regional Enterprise,Other Services,60129171,CONWAY AECOM LTD,102.46,02/05/2019
Commercial,Regional Enterprise,Other Services,60129174,CONWAY AECOM LTD,113.67,02/05/2019
Commercial,Regional Enterprise,Other Services,60129176,CONWAY AECOM LTD,45.72,02/05/2019
Commercial,Regional Enterprise,Other Services,60129178,CONWAY AECOM LTD,61.87,08/05/2019
Commercial,Regional Enterprise,Other Services,60129180,CONWAY AECOM LTD,160.53,02/05/2019
Commercial,Regional Enterprise,Other Services,60129181,CONWAY AECOM LTD,100.37,02/05/2019
Commercial,Regional Enterprise,Other Services,60129183,CONWAY AECOM LTD,135.91,02/05/2019
Commercial,Regional Enterprise,Other Services,60129334,CONWAY AECOM LTD,50.60,02/05/2019
Commercial,Regional Enterprise,Other Services,60129359,CONWAY AECOM LTD,318.26,02/05/2019
Commercial,Regional Enterprise,Other Services,60129392,CONWAY AECOM LTD,111.50,01/05/2019
Commercial,Regional Enterprise,Other Services,60129436,CONWAY AECOM LTD,109.02,02/05/2019
Commercial,Regional Enterprise,Other Services,60129444,CONWAY AECOM LTD,327.07,07/05/2019
Commercial,Regional Enterprise,Other Services,60129498,CONWAY AECOM LTD,145.88,02/05/2019
Commercial,Regional Enterprise,Other Services,60129518,CONWAY AECOM LTD,327.07,08/05/2019
Commercial,Regional Enterprise,Other Services,60129824,CONWAY AECOM LTD,490.61,02/05/2019
Commercial,Regional Enterprise,Other Services,60129900,CONWAY AECOM LTD,118.73,01/05/2019
Commercial,Regional Enterprise,Other Services,60129941,CONWAY AECOM LTD,110.51,01/05/2019
Commercial,Regional Enterprise,Other Services,60129981,CONWAY AECOM LTD,272.98,01/05/2019
Commercial,Regional Enterprise,Other Services,60129985,CONWAY AECOM LTD,109.02,01/05/2019
Commercial,Regional Enterprise,Other Services,60129989,CONWAY AECOM LTD,46.11,01/05/2019
Commercial,Regional Enterprise,Other Services,60129991,CONWAY AECOM LTD,272.98,01/05/2019
Commercial,Regional Enterprise,Other Services,60129993,CONWAY AECOM LTD,83.00,02/05/2019
Commercial,Regional Enterprise,Other Services,60129996,CONWAY AECOM LTD,163.54,01/05/2019
Commercial,Regional Enterprise,Other Services,60130007,CONWAY AECOM LTD,100.99,01/05/2019
Commercial,Regional Enterprise,Other Services,60130008,CONWAY AECOM LTD,100.91,01/05/2019
Commercial,Regional Enterprise,Other Services,60130009,CONWAY AECOM LTD,218.05,01/05/2019
Commercial,Regional Enterprise,Other Services,60130010,CONWAY AECOM LTD,125.80,01/05/2019
Commercial,Regional Enterprise,Other Services,60130012,CONWAY AECOM LTD,140.94,01/05/2019
Commercial,Regional Enterprise,Other Services,60130015,CONWAY AECOM LTD,167.25,01/05/2019
Commercial,Regional Enterprise,Other Services,60130017,CONWAY AECOM LTD,104.28,01/05/2019
Commercial,Regional Enterprise,Other Services,60130022,CONWAY AECOM LTD,203.75,01/05/2019
Commercial,Regional Enterprise,Other Services,60130025,CONWAY AECOM LTD,50.96,02/05/2019
Commercial,Regional Enterprise,Other Services,60130030,CONWAY AECOM LTD,100.91,01/05/2019
Commercial,Regional Enterprise,Other Services,60130034,CONWAY AECOM LTD,137.09,02/05/2019
Commercial,Regional Enterprise,Other Services,60130038,CONWAY AECOM LTD,92.22,02/05/2019
Commercial,Regional Enterprise,Other Services,60130045,CONWAY AECOM LTD,50.96,01/05/2019
Commercial,Regional Enterprise,Other Services,60130047,CONWAY AECOM LTD,100.91,01/05/2019
Commercial,Regional Enterprise,Other Services,60130048,CONWAY AECOM LTD,320.83,01/05/2019
Commercial,Regional Enterprise,Other Services,60130056,CONWAY AECOM LTD,175.61,01/05/2019
Commercial,Regional Enterprise,Other Services,60130061,CONWAY AECOM LTD,151.36,01/05/2019
Commercial,Regional Enterprise,Other Services,60130065,CONWAY AECOM LTD,34.92,01/05/2019
Commercial,Regional Enterprise,Other Services,60130067,CONWAY AECOM LTD,102.56,01/05/2019
Commercial,Regional Enterprise,Other Services,60130074,CONWAY AECOM LTD,93.55,01/05/2019
Commercial,Regional Enterprise,Other Services,60131229,CONWAY AECOM LTD,334.51,01/05/2019
Commercial,Regional Enterprise,Other Services,60121854,CONWAY AECOM LTD,141.58,02/05/2019
Commercial,Regional Enterprise,Other Services,60128104,CONWAY AECOM LTD,89.04,01/05/2019
Commercial,Regional Enterprise,Other Services,60129652,CONWAY AECOM LTD,56.21,01/05/2019
Commercial,Regional Enterprise,Other Services,60131205,CONWAY AECOM LTD,50.87,01/05/2019
Commercial,Regional Enterprise,Other Services,60131211,CONWAY AECOM LTD,155.74,01/05/2019
Commercial,Regional Enterprise,Other Services,60131233,CONWAY AECOM LTD,240.52,01/05/2019
Commercial,Regional Enterprise,Other Services,80025433,CONWAY AECOM LTD,124.50,01/05/2019
Commercial,Regional Enterprise,Other Services,80025142,CONWAY AECOM LTD,29.28,01/05/2019
Commercial,Regional Enterprise,Other Services,80025146,CONWAY AECOM LTD,100.99,01/05/2019
COMMERCIAL,REGIONAL ENTERPRISE,Other Services,80025151,CONWAY AECOM LTD,"13,425.78",02/05/2019
COMMERCIAL,REGIONAL ENTERPRISE,Other Services,80025876,CONWAY AECOM LTD,"12,301.56",02/05/2019
COMMERCIAL,REGIONAL ENTERPRISE,Other Services,80025748,CONWAY AECOM LTD,"26,568.75",02/05/2019
COMMERCIAL,REGIONAL ENTERPRISE,Other Services,80025547,CONWAY AECOM LTD,"48,595.85",02/05/2019
COMMERCIAL,REGIONAL ENTERPRISE,Other Services,80026298,CONWAY AECOM LTD,"72,047.04",02/05/2019
COMMERCIAL,REGIONAL ENTERPRISE,Other Services,10014216,CONWAY AECOM LTD,"178,804.13",02/05/2019
Commercial,Regional Enterprise,Other Services,60117227,CONWAY AECOM LTD,29.28,03/05/2019
Commercial,Regional Enterprise,Other Services,10014217,CONWAY AECOM LTD,29.99,03/05/2019
Commercial,Regional Enterprise,Other Services,60117259,CONWAY AECOM LTD,41.60,03/05/2019
COMMERCIAL,REGIONAL ENTERPRISE,Other Services,60126940,CONWAY AECOM LTD,"28,742.69",03/05/2019
Commercial,Regional Enterprise,Other Services,60130070,CONWAY AECOM LTD,49.95,07/05/2019
Commercial,Regional Enterprise,Other Services,60130460,CONWAY AECOM LTD,49.95,07/05/2019
COMMERCIAL,REGIONAL ENTERPRISE,Other Services,60127383,CONWAY AECOM LTD,257.58,23/05/2019
Commercial,Regional Enterprise,Other Services,60127491,CONWAY AECOM LTD,91.35,07/05/2019
Commercial,Regional Enterprise,Other Services,60129582,CONWAY AECOM LTD,45.67,07/05/2019
Commercial,Regional Enterprise,Other Services,60126139,CONWAY AECOM LTD,"955,869.41",08/05/2019
Commercial,Regional Enterprise,Other Services,60130491,CONWAY AECOM LTD,"1,039.50",08/05/2019
COMMERCIAL,REGIONAL ENTERPRISE,Other Services,60053219,CONWAY AECOM LTD,"46,604.52",09/05/2019
COMMERCIAL,REGIONAL ENTERPRISE,Other Services,60053925,CONWAY AECOM LTD,"1,564.04",13/05/2019
Commercial,Regional Enterprise,Other Services,80025087,CONWAY AECOM LTD,391.75,13/05/2019
Commercial,Regional Enterprise,Other Services,80025105,CONWAY AECOM LTD,36.03,13/05/2019
Commercial,Regional Enterprise,Other Services,80025206,CONWAY AECOM LTD,94.67,13/05/2019
Commercial,Regional Enterprise,Other Services,80025410,CONWAY AECOM LTD,398.26,16/05/2019
Commercial,Regional Enterprise,Other Services,80025705,CONWAY AECOM LTD,159.90,14/05/2019
Commercial,Regional Enterprise,Other Services,80025839,CONWAY AECOM LTD,146.32,16/05/2019
Commercial,Regional Enterprise,Other Services,80025918,CONWAY AECOM LTD,50.87,14/05/2019
Commercial,Regional Enterprise,Other Services,80026245,CONWAY AECOM LTD,182.53,16/05/2019
Commercial,Regional Enterprise,Other Services,80025244,CONWAY AECOM LTD,118.81,16/05/2019
Commercial,Regional Enterprise,Other Services,80025445,CONWAY AECOM LTD,64.23,16/05/2019
Commercial,Regional Enterprise,Other Services,80025549,CONWAY AECOM LTD,150.94,14/05/2019
Commercial,Regional Enterprise,Other Services,80026282,CONWAY AECOM LTD,109.02,14/05/2019
Commercial,Regional Enterprise,Other Services,80026219,CONWAY AECOM LTD,49.98,14/05/2019
Commercial,Regional Enterprise,Other Services,80026287,CONWAY AECOM LTD,799.01,14/05/2019
Commercial,Regional Enterprise,Other Services,80025786,CONWAY AECOM LTD,272.56,16/05/2019
Commercial,Regional Enterprise,Other Services,80025902,CONWAY AECOM LTD,163.54,16/05/2019
Commercial,Regional Enterprise,Other Services,80025979,CONWAY AECOM LTD,71.09,16/05/2019
Commercial,Regional Enterprise,Other Services,80025998,CONWAY AECOM LTD,91.39,16/05/2019
Commercial,Regional Enterprise,Other Services,80025894,CONWAY AECOM LTD,155.84,16/05/2019
Commercial,Regional Enterprise,Other Services,80025896,CONWAY AECOM LTD,211.30,16/05/2019
Commercial,Regional Enterprise,Other Services,80025895,CONWAY AECOM LTD,46.11,14/05/2019
Commercial,Regional Enterprise,Other Services,80026222,CONWAY AECOM LTD,222.40,14/05/2019
Commercial,Regional Enterprise,Other Services,80026275,CONWAY AECOM LTD,262.36,16/05/2019
Commercial,Regional Enterprise,Other Services,60129769,CONWAY AECOM LTD,146.91,14/05/2019
Commercial,Regional Enterprise,Other Services,60130629,CONWAY AECOM LTD,105.93,16/05/2019
Commercial,Regional Enterprise,Other Services,60129725,CONWAY AECOM LTD,46.11,14/05/2019
Commercial,Regional Enterprise,Other Services,60129730,CONWAY AECOM LTD,151.36,16/05/2019
Commercial,Regional Enterprise,Other Services,60129227,CONWAY AECOM LTD,109.02,16/05/2019
Commercial,Regional Enterprise,Other Services,60129254,CONWAY AECOM LTD,36.03,14/05/2019
COMMERCIAL,REGIONAL ENTERPRISE,Other Services,60129276,CONWAY AECOM LTD,"2,390.61",20/05/2019
COMMERCIAL,REGIONAL ENTERPRISE,Other Services,60129410,CONWAY AECOM LTD,"4,214.58",20/05/2019
Commercial,Regional Enterprise,Other Services,60129198,CONWAY AECOM LTD,705.60,30/05/2019
Commercial,Regional Enterprise,Other Services,60129203,CONWAY AECOM LTD,705.60,30/05/2019
Commercial,Regional Enterprise,Other Services,60129213,CONWAY AECOM LTD,189.00,30/05/2019
Commercial,Regional Enterprise,Other Services,10015164,CONWAY AECOM LTD,399.00,30/05/2019
COMMERCIAL,REGIONAL ENTERPRISE,Other Services,60129337,CYCLE CONFIDENT LTD,"11,230.46",30/05/2019
Commercial,Regional Enterprise,Other Services,60129483,J C DECAUX UK LTD,"23,102.84",08/05/2019
COMMERCIAL,REGIONAL ENTERPRISE,Other Services,10015168,KELTIC CLOTHING,"2,172.70",09/05/2019
Commercial,Regional Enterprise,Other Services,60129426,KENT COUNTY COUNCIL (KCS),68.20,15/05/2019
Commercial,Regional Enterprise,Other Services,60129678,KENT COUNTY COUNCIL (KCS),63.19,15/05/2019
Commercial,Regional Enterprise,Other Services,60123283,LOCAL GOVERNMENT TECHNICAL ADVISERS GROU,690.00,28/05/2019
COMMERCIAL,REGIONAL ENTERPRISE,Other Services,60129712,MACLEOD SIMMONDS LTD,"3,400.00",29/05/2019
COMMERCIAL,REGIONAL ENTERPRISE,Other Services,60129734,MILL HILL COUNTY HIGH SCHOOL,900.00,08/05/2019
Commercial,Regional Enterprise,Other Services,60130648,RM COUNTRYSIDE SERVICES LTD,895.00,23/05/2019
Commercial,Regional Enterprise,Other Services,60130678,RM COUNTRYSIDE SERVICES LTD,880.00,23/05/2019
Commercial,Regional Enterprise,Other Services,60128105,RM COUNTRYSIDE SERVICES LTD,780.00,23/05/2019
COMMERCIAL,REGIONAL ENTERPRISE,Other Services,60130449,SELECTAMARK SECURITY SYSTEMS PLC,98.50,23/05/2019
COMMERCIAL,REGIONAL ENTERPRISE,Other Services,60074780,SUMMERSIDE PRIMARY ACADEMY,"2,300.00",15/05/2019
Commercial,Regional Enterprise,Other Services,60128140,TRAFFIC SURVEY PARTNERS (TSP) LTD,450.00,23/05/2019
COMMERCIAL,REGIONAL ENTERPRISE,Other Services,60128175,TRANSPORT FOR LONDON,"5,000.00",30/05/2019
COMMERCIAL,REGIONAL ENTERPRISE,Other Services,60128237,TRANSPORT FOR LONDON,"5,000.00",30/05/2019
COMMERCIAL,REGIONAL ENTERPRISE,Professional Services,60130229,BLAKEDOWN LANDSCAPE (SE) LTD,"224,493.38",14/05/2019
Commercial,Regional Enterprise,Professional Services,60130242,GOWLING WLG GENERAL CLIENT,"15,000.00",29/05/2019
Commercial,Regional Enterprise,Professional Services,60129980,RE (REGIONAL ENTERPRISE) LIMITED,"95,071.29",20/05/2019
Commercial,Regional Enterprise,Professional Services,10015155,RE (REGIONAL ENTERPRISE) LIMITED,"71,061.38",20/05/2019
COMMERCIAL,REGIONAL ENTERPRISE,Professional Services,10015156,RE (REGIONAL ENTERPRISE) LIMITED,"442,710.58",20/05/2019
COMMERCIAL,REGIONAL ENTERPRISE,Professional Services,60130425,RE (REGIONAL ENTERPRISE) LIMITED,"616,128.68",20/05/2019
Commercial,Regional Enterprise,Professional Services,60129821,RE (REGIONAL ENTERPRISE) LIMITED,"105,709.00",20/05/2019
Commercial,Regional Enterprise,Professional Services,60130413,RE (REGIONAL ENTERPRISE) LIMITED,"54,919.99",20/05/2019
Commercial,Regional Enterprise,Professional Services,60099742,RE (REGIONAL ENTERPRISE) LIMITED,"1,851.27",16/05/2019
Commercial,Regional Enterprise,Professional Services,60125754,RE (REGIONAL ENTERPRISE) LIMITED,"1,536.25",16/05/2019
Commercial,Regional Enterprise,Professional Services,60125757,RE (REGIONAL ENTERPRISE) LIMITED,491.60,16/05/2019
Commercial,Regional Enterprise,Professional Services,60127734,RE (REGIONAL ENTERPRISE) LIMITED,"62,493.26",14/05/2019
COMMERCIAL,REGIONAL ENTERPRISE,Professional Services,60127824,RE (REGIONAL ENTERPRISE) LIMITED,"19,720.00",21/05/2019
Commercial,Regional Enterprise,Professional Services,60128809,RE (REGIONAL ENTERPRISE) LIMITED,"3,091.28",21/05/2019
COMMERCIAL,REGIONAL ENTERPRISE,Professional Services,60128834,RE (REGIONAL ENTERPRISE) LIMITED,"10,566.85",30/05/2019
COMMERCIAL,REGIONAL ENTERPRISE,Professional Services,60130498,RE (REGIONAL ENTERPRISE) LIMITED,"12,694.86",30/05/2019
COMMERCIAL,REGIONAL ENTERPRISE,Professional Services,10014218,RE (REGIONAL ENTERPRISE) LIMITED,"79,441.03",30/05/2019
COMMERCIAL,REGIONAL ENTERPRISE,Professional Services,10015178,RE (REGIONAL ENTERPRISE) LIMITED,"13,785.67",30/05/2019
Commercial,Regional Enterprise,Professional Services,60131103,WATES LIVING SPACE,"2,159.10",01/05/2019
Commercial,Regional Enterprise,Professional Services,60131115,WATES LIVING SPACE,388.88,24/05/2019
Commercial,Regional Enterprise,Professional Services,60131137,WATES LIVING SPACE,141.02,29/05/2019
Commercial,Regional Enterprise,Professional Services,60131147,WATES LIVING SPACE,28.20,29/05/2019
Commercial,Regional Enterprise,Professional Services,10015172,WATES LIVING SPACE,96.11,29/05/2019
Commercial,Regional Enterprise,RE Services Contract Payment,60127316,RE (REGIONAL ENTERPRISE) LIMITED,"3,798,504.00",17/05/2019
Commercial,Regional Enterprise,RE Services Contract Payment,60130700,RE (REGIONAL ENTERPRISE) LIMITED,"164,333.00",21/05/2019
COMMISSIONING,COMMISSIONING GROUP,Advertising,60130193,BOUYGUES E&S INFRASTRUCTURE UK LTD,915.36,23/05/2019
COMMISSIONING,COMMISSIONING GROUP,Building Repairs & Maintenance,60130212,KEYTRACKER LTD,"7,136.00",21/05/2019
COMMISSIONING,COMMISSIONING GROUP,Building Repairs & Maintenance,60128642,PRESTIGE PROPERTY SERVICES,"31,962.00",01/05/2019
COMMISSIONING,COMMISSIONING GROUP,Building Repairs & Maintenance,60130461,WINTERS HAULAGE LTD,364.00,07/05/2019
COMMISSIONING,COMMISSIONING GROUP,Capital Construction and Works,60128601,CLEVELAND SITESAFE LTD,"1,040.00",29/05/2019
COMMISSIONING,COMMISSIONING GROUP,Consultants Fees,60129478,TMP (UK) LTD,296.00,21/05/2019
COMMISSIONING,COMMISSIONING GROUP,Consultants Fees,60129021,WRITTLE FOREST LTD,600.00,30/05/2019
COMMISSIONING,COMMISSIONING GROUP,Equipment and Materials Purcha,60129887,JOHN GRAHAM CONSTRUCTION LTD,"1,270,817.16",03/05/2019
COMMISSIONING,COMMISSIONING GROUP,Equipment and Materials Purcha,60129459,JOHN GRAHAM CONSTRUCTION LTD,"741,715.88",16/05/2019
COMMISSIONING,COMMISSIONING GROUP,Equipment and Materials Purcha,60129430,JOHN GRAHAM CONSTRUCTION LTD,"876,500.26",16/05/2019
COMMISSIONING,COMMISSIONING GROUP,Equipment and Materials Purcha,60129481,JOHN GRAHAM CONSTRUCTION LTD,"1,536,079.13",22/05/2019
COMMISSIONING,COMMISSIONING GROUP,Equipment and Materials Purcha,60130058,STAPLES UK LTD,"7,614.00",23/05/2019
COMMISSIONING,COMMISSIONING GROUP,Furniture-Purchase-Repair,60129565,SCREWFIX DIRECT LTD,"1,157.64",08/05/2019
COMMISSIONING,COMMISSIONING GROUP,Other Services,60129404,LONDON CARETAKERS,260.00,29/05/2019
COMMISSIONING,COMMISSIONING GROUP,Other Services,60130488,TRAFFIC SURVEY PARTNERS (TSP) LTD,340.00,23/05/2019
COMMISSIONING,COMMISSIONING GROUP,Other Services,60130417,TRAFFIC SURVEY PARTNERS (TSP) LTD,340.00,23/05/2019
COMMISSIONING,COMMISSIONING GROUP,Other Services,60130714,TRAFFIC SURVEY PARTNERS (TSP) LTD,280.00,23/05/2019
COMMISSIONING,COMMISSIONING GROUP,Rubbish Collection,60130630,BUSH WHEELER SERVICES LIMITED,650.00,16/05/2019
COMMISSIONING,COMMISSIONING GROUP,Rubbish Collection,60130695,BUSH WHEELER SERVICES LIMITED,"1,800.00",16/05/2019
COMMISSIONING,COMMISSIONING GROUP,Stationery,60130701,STAPLES UK LTD,8.28,30/05/2019
COMMISSIONING,COMMISSIONING GROUP,Training,60128650,GOOD IMPRESSIONS (LONDON) LIMITED,180.00,16/05/2019
COMMISSIONING,COMMISSIONING GROUP,Ttl IT & Comms,60128726,MISL LTD,391.40,09/05/2019
COMMISSIONING,COMMISSIONING GROUP,Ttl IT & Comms,60129376,MISL LTD,20.71,16/05/2019
COMMISSIONING,COMMISSIONING GROUP,Ttl IT & Comms,60129382,MISL LTD,"1,007.18",22/05/2019
COMMISSIONING,COMMISSIONING GROUP,Ttl IT & Comms,60130240,MISL LTD,961.51,23/05/2019
COMMISSIONING,COMMISSIONING GROUP,Ttl IT & Comms,60130325,MISL LTD,124.22,17/05/2019
COMMISSIONING,COMMISSIONING GROUP,Ttl IT & Comms,60130444,MISL LTD,556.54,17/05/2019
Corporate Accounting,Corporate Accounting,Fees and Charges,1000023383,REDACTED - PERSONAL DATA,250.00,24/05/2019
Corporate Accounting,Corporate Accounting,Government departments - Third,1000023383,DEPARTMENT FOR COMMUNITIES & LOCAL GOV.,"438,098.56",23/05/2019
Corporate Accounting,Corporate Accounting,Government departments - Third,CHP4000896,DEPARTMENT FOR COMMUNITIES & LOCAL GOV.,"2,392,887.00",30/04/2019
Corporate Accounting,Corporate Accounting,Government departments - Third,1000023148,DEPARTMENT FOR COMMUNITIES & LOCAL GOV.,"2,392,887.00",20/05/2019
Corporate Accounting,Corporate Accounting,Grant Payments,CHP4000888,"393 (FINCHLEY) SQN, ATC","3,892.00",31/05/2019
Corporate Accounting,Corporate Accounting,Other Agencies - Third Party P,CHP4000898,THE BARNETGROUP LIMITED,"91,666.67",24/05/2019
Corporate Accounting,Corporate Accounting,Other Establishments - Third P,80026134,COPTHALL SCHOOL (ACADEMY),"2,854.58",29/05/2019
Corporate Accounting,Corporate Accounting,Other Establishments - Third P,1000023744,PARKFIELD ACADEMY,"2,853.52",29/05/2019
Corporate Accounting,Corporate Accounting,Other Establishments - Third P,1000023745,PARKFIELD ACADEMY,"7,493.12",29/05/2019
Corporate Accounting,Corporate Accounting,Other Establishments - Third P,50000720,SUMMERSIDE PRIMARY ACADEMY,"7,664.84",29/05/2019
Corporate Accounting,Corporate Accounting,Other Establishments - Third P,50000718,THE HYDE EF ACADEMY,389.58,29/05/2019
Corporate Accounting,Corporate Accounting,Other Establishments - Third P,50000719,THE HYDE EF ACADEMY,"7,867.27",29/05/2019
Corporate Accounting,Corporate Accounting,Other Transfer Payments to Soc,50000717,WIRECARD (FS INSTANT 2040880892973),"20,000.00",01/05/2019
Corporate Accounting,Corporate Accounting,Other Transfer Payments to Soc,50000673,WIRECARD (FS INSTANT 2040880892973),"40,000.00",24/05/2019
Corporate Accounting,Corporate Accounting,Other Transfer Payments to Soc,50000672,WIRECARD (FS ONGOING 2040881670310,"5,000.00",01/05/2019
Corporate Accounting,Corporate Accounting,,80026337,GREATER LONDON AUTHORITY,"1,709,933.00",15/04/2019
Corporate Accounting,Corporate Accounting,,60130706,GREATER LONDON AUTHORITY,"1,709,933.00",25/05/2019
Corporate Accounting,Corporate Accounting,,80026209,GREATER LONDON AUTHORITY,"4,665,343.56",15/04/2019
Corporate Accounting,Corporate Accounting,,80025612,GREATER LONDON AUTHORITY,"4,665,343.56",25/05/2019
Corporate Accounting,Corporate Accounting,,80026184,GREATER LONDON AUTHORITY,"227,824.00",30/04/2019
Corporate Accounting,Corporate Accounting,,80025614,GREATER LONDON AUTHORITY,"227,824.00",31/05/2019
DELIVERY UNITS,ADULTS AND COMMUNITIES,Ttl IT & Comms,60128375,TROJAN CONSULTANTS LTD,"2,283.00",09/05/2019
DELIVERY UNITS,ADULTS AND COMMUNITIES,Ttl IT & Comms,60129956,TROJAN CONSULTANTS LTD,895.00,29/05/2019
Delivery Units,Adults and Health,Consultants Fees,50000546,REDACTED - PERSONAL DATA,42.84,23/05/2019
Delivery Units,Adults and Health,Consultants Fees,50000547,REDACTED - PERSONAL DATA,171.36,23/05/2019
Delivery Units,Adults and Health,Direct Transfer Payments to So,50000549,REDACTED - PERSONAL DATA,"-3,124.80",24/05/2019
Delivery Units,Adults and Health,Direct Transfer Payments to So,50000550,REDACTED - PERSONAL DATA,"2,027.36",16/05/2019
Delivery Units,Adults and Health,Direct Transfer Payments to So,50000552,REDACTED - PERSONAL DATA,"2,304.00",02/05/2019
Delivery Units,Adults and Health,Direct Transfer Payments to So,50000553,REDACTED - PERSONAL DATA,-55.71,13/05/2019
Delivery Units,Adults and Health,Direct Transfer Payments to So,50000558,REDACTED - PERSONAL DATA,252.85,02/05/2019
Delivery Units,Adults and Health,Direct Transfer Payments to So,50000555,REDACTED - PERSONAL DATA,"1,168.84",02/05/2019
Delivery Units,Adults and Health,Direct Transfer Payments to So,50000556,REDACTED - PERSONAL DATA,"1,791.04",02/05/2019
Delivery Units,Adults and Health,Direct Transfer Payments to So,50000559,REDACTED - PERSONAL DATA,480.80,09/05/2019
Delivery Units,Adults and Health,Direct Transfer Payments to So,50000560,REDACTED - PERSONAL DATA,-73.58,24/05/2019
Delivery Units,Adults and Health,Direct Transfer Payments to So,50000557,REDACTED - PERSONAL DATA,-76.57,24/05/2019
Delivery Units,Adults and Health,Direct Transfer Payments to So,50000561,REDACTED - PERSONAL DATA,55.15,09/05/2019
Delivery Units,Adults and Health,Direct Transfer Payments to So,60128062,REDACTED - PERSONAL DATA,396.22,09/05/2019
Delivery Units,Adults and Health,Direct Transfer Payments to So,80025556,REDACTED - PERSONAL DATA,"1,701.56",09/05/2019
Delivery Units,Adults and Health,Direct Transfer Payments to So,80025557,REDACTED - PERSONAL DATA,"1,826.84",09/05/2019
Delivery Units,Adults and Health,Direct Transfer Payments to So,80025096,REDACTED - PERSONAL DATA,"1,059.12",09/05/2019
Delivery Units,Adults and Health,Direct Transfer Payments to So,50000545,REDACTED - PERSONAL DATA,54.84,13/05/2019
Delivery Units,Adults and Health,Direct Transfer Payments to So,50000548,REDACTED - PERSONAL DATA,"3,412.11",13/05/2019
Delivery Units,Adults and Health,Direct Transfer Payments to So,50000551,REDACTED - PERSONAL DATA,"5,200.00",13/05/2019
Delivery Units,Adults and Health,Direct Transfer Payments to So,50000554,REDACTED - PERSONAL DATA,-84.47,24/05/2019
Delivery Units,Adults and Health,Direct Transfer Payments to So,60129111,REDACTED - PERSONAL DATA,-78.24,24/05/2019
Delivery Units,Adults and Health,Direct Transfer Payments to So,60118263,REDACTED - PERSONAL DATA,"1,001.34",15/05/2019
Delivery Units,Adults and Health,Direct Transfer Payments to So,60128905,REDACTED - PERSONAL DATA,428.84,21/05/2019
Delivery Units,Adults and Health,Direct Transfer Payments to So,60128916,REDACTED - PERSONAL DATA,489.30,21/05/2019
Delivery Units,Adults and Health,Direct Transfer Payments to So,60127926,REDACTED - PERSONAL DATA,"4,532.40",23/05/2019
Delivery Units,Adults and Health,Direct Transfer Payments to So,60120696,REDACTED - PERSONAL DATA,550.00,23/05/2019
Delivery Units,Adults and Health,Direct Transfer Payments to So,60129779,REDACTED - PERSONAL DATA,-550.00,23/05/2019
Delivery Units,Adults and Health,Direct Transfer Payments to So,60129812,REDACTED - PERSONAL DATA,"2,638.76",24/05/2019
Delivery Units,Adults and Health,Direct Transfer Payments to So,60130271,REDACTED - PERSONAL DATA,488.44,24/05/2019
Delivery Units,Adults and Health,Direct Transfer Payments to So,60130348,REDACTED - PERSONAL DATA,456.76,24/05/2019
Delivery Units,Adults and Health,Direct Transfer Payments to So,60130366,REDACTED - PERSONAL DATA,349.12,24/05/2019
Delivery Units,Adults and Health,Direct Transfer Payments to So,60130367,REDACTED - PERSONAL DATA,933.24,24/05/2019
Delivery Units,Adults and Health,Direct Transfer Payments to So,60130383,REDACTED - PERSONAL DATA,295.68,24/05/2019
Delivery Units,Adults and Health,Direct Transfer Payments to So,60130410,REDACTED - PERSONAL DATA,"1,352.00",24/05/2019
Delivery Units,Adults and Health,Direct Transfer Payments to So,60130185,REDACTED - PERSONAL DATA,187.00,24/05/2019
Delivery Units,Adults and Health,Direct Transfer Payments to So,60130078,REDACTED - PERSONAL DATA,785.12,24/05/2019
Delivery Units,Adults and Health,Direct Transfer Payments to So,60120703,REDACTED - PERSONAL DATA,673.12,24/05/2019
Delivery Units,Adults and Health,Direct Transfer Payments to So,60129861,REDACTED - PERSONAL DATA,288.48,24/05/2019
Delivery Units,Adults and Health,Direct Transfer Payments to So,60130201,REDACTED - PERSONAL DATA,"2,040.00",24/05/2019
Delivery Units,Adults and Health,Direct Transfer Payments to So,60130208,REDACTED - PERSONAL DATA,560.00,24/05/2019
Delivery Units,Adults and Health,Direct Transfer Payments to So,60128451,REDACTED - PERSONAL DATA,999.28,24/05/2019
Delivery Units,Adults and Health,Direct Transfer Payments to So,60129099,REDACTED - PERSONAL DATA,"1,183.32",24/05/2019
Delivery Units,Adults and Health,Direct Transfer Payments to So,60129348,REDACTED - PERSONAL DATA,152.16,24/05/2019
Delivery Units,Adults and Health,Direct Transfer Payments to So,60130049,REDACTED - PERSONAL DATA,"1,238.92",24/05/2019
Delivery Units,Adults and Health,Direct Transfer Payments to So,60131134,REDACTED - PERSONAL DATA,997.76,24/05/2019
Delivery Units,Adults and Health,Direct Transfer Payments to So,40003188,REDACTED - PERSONAL DATA,"3,100.16",24/05/2019
Delivery Units,Adults and Health,Direct Transfer Payments to So,40003190,REDACTED - PERSONAL DATA,817.36,24/05/2019
Delivery Units,Adults and Health,Direct Transfer Payments to So,40003191,REDACTED - PERSONAL DATA,740.00,24/05/2019
Delivery Units,Adults and Health,Direct Transfer Payments to So,60129784,REDACTED - PERSONAL DATA,667.56,24/05/2019
Delivery Units,Adults and Health,Direct Transfer Payments to So,60129842,REDACTED - PERSONAL DATA,851.08,24/05/2019
Delivery Units,Adults and Health,Direct Transfer Payments to So,60129851,REDACTED - PERSONAL DATA,"2,005.04",24/05/2019
Delivery Units,Adults and Health,Direct Transfer Payments to So,60130284,REDACTED - PERSONAL DATA,"1,342.48",24/05/2019
Delivery Units,Adults and Health,Direct Transfer Payments to So,60130270,REDACTED - PERSONAL DATA,"3,654.08",24/05/2019
Delivery Units,Adults and Health,Direct Transfer Payments to So,60127951,REDACTED - PERSONAL DATA,478.64,24/05/2019
Delivery Units,Adults and Health,Direct Transfer Payments to So,60129787,REDACTED - PERSONAL DATA,672.00,24/05/2019
Delivery Units,Adults and Health,Direct Transfer Payments to So,60129874,REDACTED - PERSONAL DATA,851.20,24/05/2019
Delivery Units,Adults and Health,Direct Transfer Payments to So,60127928,REDACTED - PERSONAL DATA,"1,169.88",24/05/2019
Delivery Units,Adults and Health,Direct Transfer Payments to So,60125343,REDACTED - PERSONAL DATA,"1,440.00",24/05/2019
Delivery Units,Adults and Health,Direct Transfer Payments to So,60130207,REDACTED - PERSONAL DATA,142.12,24/05/2019
Delivery Units,Adults and Health,Direct Transfer Payments to So,10015175,REDACTED - PERSONAL DATA,"2,400.00",24/05/2019
Delivery Units,Adults and Health,Direct Transfer Payments to So,10015176,REDACTED - PERSONAL DATA,502.40,24/05/2019
Delivery Units,Adults and Health,Direct Transfer Payments to So,60130266,REDACTED - PERSONAL DATA,"1,396.72",24/05/2019
Delivery Units,Adults and Health,Direct Transfer Payments to So,90161516,REDACTED - PERSONAL DATA,625.28,24/05/2019
Delivery Units,Adults and Health,Direct Transfer Payments to So,90161517,REDACTED - PERSONAL DATA,"1,360.00",24/05/2019
Delivery Units,Adults and Health,Direct Transfer Payments to So,90161518,REDACTED - PERSONAL DATA,"1,791.32",24/05/2019
Delivery Units,Adults and Health,Direct Transfer Payments to So,90162647,REDACTED - PERSONAL DATA,"6,572.64",24/05/2019
Delivery Units,Adults and Health,Direct Transfer Payments to So,90162648,REDACTED - PERSONAL DATA,"1,924.00",24/05/2019
Delivery Units,Adults and Health,Direct Transfer Payments to So,90160617,REDACTED - PERSONAL DATA,"5,423.00",24/05/2019
Delivery Units,Adults and Health,Direct Transfer Payments to So,90160618,REDACTED - PERSONAL DATA,"1,359.20",24/05/2019
Delivery Units,Adults and Health,Direct Transfer Payments to So,90160619,REDACTED - PERSONAL DATA,"3,964.00",24/05/2019
Delivery Units,Adults and Health,Direct Transfer Payments to So,90160620,REDACTED - PERSONAL DATA,"11,242.56",24/05/2019
Delivery Units,Adults and Health,Direct Transfer Payments to So,90160623,REDACTED - PERSONAL DATA,781.32,24/05/2019
Delivery Units,Adults and Health,Direct Transfer Payments to So,90160624,REDACTED - PERSONAL DATA,424.40,24/05/2019
Delivery Units,Adults and Health,Direct Transfer Payments to So,90160627,REDACTED - PERSONAL DATA,"3,834.44",24/05/2019
Delivery Units,Adults and Health,Direct Transfer Payments to So,90160629,REDACTED - PERSONAL DATA,589.00,24/05/2019
Delivery Units,Adults and Health,Direct Transfer Payments to So,90160631,REDACTED - PERSONAL DATA,"3,713.28",24/05/2019
Delivery Units,Adults and Health,Direct Transfer Payments to So,90160632,REDACTED - PERSONAL DATA,"1,766.96",24/05/2019
Delivery Units,Adults and Health,Direct Transfer Payments to So,90160633,REDACTED - PERSONAL DATA,"1,400.00",24/05/2019
Delivery Units,Adults and Health,Direct Transfer Payments to So,90162507,REDACTED - PERSONAL DATA,"1,845.36",24/05/2019
Delivery Units,Adults and Health,Direct Transfer Payments to So,90163548,REDACTED - PERSONAL DATA,"3,942.56",24/05/2019
Delivery Units,Adults and Health,Direct Transfer Payments to So,90165556,REDACTED - PERSONAL DATA,"2,304.00",24/05/2019
Delivery Units,Adults and Health,Direct Transfer Payments to So,90165557,REDACTED - PERSONAL DATA,615.12,24/05/2019
Delivery Units,Adults and Health,Direct Transfer Payments to So,90165560,REDACTED - PERSONAL DATA,521.40,24/05/2019
Delivery Units,Adults and Health,Direct Transfer Payments to So,90165562,REDACTED - PERSONAL DATA,340.00,24/05/2019
Delivery Units,Adults and Health,Direct Transfer Payments to So,90165563,REDACTED - PERSONAL DATA,"1,370.28",24/05/2019
Delivery Units,Adults and Health,Direct Transfer Payments to So,90165564,REDACTED - PERSONAL DATA,961.60,24/05/2019
Delivery Units,Adults and Health,Direct Transfer Payments to So,90165568,REDACTED - PERSONAL DATA,228.00,24/05/2019
Delivery Units,Adults and Health,Direct Transfer Payments to So,90165569,REDACTED - PERSONAL DATA,485.84,24/05/2019
Delivery Units,Adults and Health,Direct Transfer Payments to So,90165570,REDACTED - PERSONAL DATA,"1,490.48",24/05/2019
Delivery Units,Adults and Health,Direct Transfer Payments to So,90162637,REDACTED - PERSONAL DATA,604.40,24/05/2019
Delivery Units,Adults and Health,Direct Transfer Payments to So,90163240,REDACTED - PERSONAL DATA,780.92,24/05/2019
Delivery Units,Adults and Health,Direct Transfer Payments to So,90163242,REDACTED - PERSONAL DATA,"1,161.92",24/05/2019
Delivery Units,Adults and Health,Direct Transfer Payments to So,90163243,REDACTED - PERSONAL DATA,"1,407.44",24/05/2019
Delivery Units,Adults and Health,Direct Transfer Payments to So,90165621,REDACTED - PERSONAL DATA,"1,000.00",24/05/2019
Delivery Units,Adults and Health,Direct Transfer Payments to So,90165623,REDACTED - PERSONAL DATA,368.00,24/05/2019
Delivery Units,Adults and Health,Direct Transfer Payments to So,90165627,REDACTED - PERSONAL DATA,"1,905.28",24/05/2019
Delivery Units,Adults and Health,Direct Transfer Payments to So,90165628,REDACTED - PERSONAL DATA,"4,133.60",24/05/2019
Delivery Units,Adults and Health,Direct Transfer Payments to So,90161012,REDACTED - PERSONAL DATA,"6,721.20",24/05/2019
Delivery Units,Adults and Health,Direct Transfer Payments to So,90161480,REDACTED - PERSONAL DATA,160.00,24/05/2019
Delivery Units,Adults and Health,Direct Transfer Payments to So,90161483,REDACTED - PERSONAL DATA,"1,660.80",24/05/2019
Delivery Units,Adults and Health,Direct Transfer Payments to So,90161484,REDACTED - PERSONAL DATA,"1,105.84",24/05/2019
Delivery Units,Adults and Health,Direct Transfer Payments to So,90161485,REDACTED - PERSONAL DATA,420.72,24/05/2019
Delivery Units,Adults and Health,Direct Transfer Payments to So,90161486,REDACTED - PERSONAL DATA,"1,708.00",24/05/2019
Delivery Units,Adults and Health,Direct Transfer Payments to So,90161487,REDACTED - PERSONAL DATA,"1,490.48",24/05/2019
Delivery Units,Adults and Health,Direct Transfer Payments to So,90161488,REDACTED - PERSONAL DATA,699.64,24/05/2019
Delivery Units,Adults and Health,Direct Transfer Payments to So,90161489,REDACTED - PERSONAL DATA,899.36,24/05/2019
Delivery Units,Adults and Health,Direct Transfer Payments to So,90161490,REDACTED - PERSONAL DATA,800.00,24/05/2019
Delivery Units,Adults and Health,Direct Transfer Payments to So,90161491,REDACTED - PERSONAL DATA,608.00,24/05/2019
Delivery Units,Adults and Health,Direct Transfer Payments to So,90161493,REDACTED - PERSONAL DATA,"3,360.16",24/05/2019
Delivery Units,Adults and Health,Direct Transfer Payments to So,90161495,REDACTED - PERSONAL DATA,913.52,24/05/2019
Delivery Units,Adults and Health,Direct Transfer Payments to So,90161496,REDACTED - PERSONAL DATA,504.96,24/05/2019
Delivery Units,Adults and Health,Direct Transfer Payments to So,90161497,REDACTED - PERSONAL DATA,"1,260.00",24/05/2019
Delivery Units,Adults and Health,Direct Transfer Payments to So,90161499,REDACTED - PERSONAL DATA,"1,638.16",24/05/2019
Delivery Units,Adults and Health,Direct Transfer Payments to So,90161500,REDACTED - PERSONAL DATA,"1,353.04",24/05/2019
Delivery Units,Adults and Health,Direct Transfer Payments to So,90161501,REDACTED - PERSONAL DATA,770.40,24/05/2019
Delivery Units,Adults and Health,Direct Transfer Payments to So,90161502,REDACTED - PERSONAL DATA,"1,695.00",24/05/2019
Delivery Units,Adults and Health,Direct Transfer Payments to So,90161504,REDACTED - PERSONAL DATA,547.08,24/05/2019
Delivery Units,Adults and Health,Direct Transfer Payments to So,90161505,REDACTED - PERSONAL DATA,"2,048.32",24/05/2019
Delivery Units,Adults and Health,Direct Transfer Payments to So,90161506,REDACTED - PERSONAL DATA,"2,684.48",24/05/2019
Delivery Units,Adults and Health,Direct Transfer Payments to So,90163551,REDACTED - PERSONAL DATA,560.00,24/05/2019
Delivery Units,Adults and Health,Direct Transfer Payments to So,90165800,REDACTED - PERSONAL DATA,"1,344.00",24/05/2019
Delivery Units,Adults and Health,Direct Transfer Payments to So,90165801,REDACTED - PERSONAL DATA,508.00,24/05/2019
Delivery Units,Adults and Health,Direct Transfer Payments to So,90165802,REDACTED - PERSONAL DATA,664.32,24/05/2019
Delivery Units,Adults and Health,Direct Transfer Payments to So,90165803,REDACTED - PERSONAL DATA,772.32,24/05/2019
Delivery Units,Adults and Health,Direct Transfer Payments to So,90165804,REDACTED - PERSONAL DATA,348.48,24/05/2019
Delivery Units,Adults and Health,Direct Transfer Payments to So,90165805,REDACTED - PERSONAL DATA,601.00,24/05/2019
Delivery Units,Adults and Health,Direct Transfer Payments to So,90165806,REDACTED - PERSONAL DATA,528.88,24/05/2019
Delivery Units,Adults and Health,Direct Transfer Payments to So,90165808,REDACTED - PERSONAL DATA,572.36,24/05/2019
Delivery Units,Adults and Health,Direct Transfer Payments to So,90165811,REDACTED - PERSONAL DATA,601.00,24/05/2019
Delivery Units,Adults and Health,Direct Transfer Payments to So,90165812,REDACTED - PERSONAL DATA,769.28,24/05/2019
Delivery Units,Adults and Health,Direct Transfer Payments to So,90165813,REDACTED - PERSONAL DATA,"2,931.20",24/05/2019
Delivery Units,Adults and Health,Direct Transfer Payments to So,90165814,REDACTED - PERSONAL DATA,816.68,24/05/2019
Delivery Units,Adults and Health,Direct Transfer Payments to So,90165816,REDACTED - PERSONAL DATA,649.08,24/05/2019
Delivery Units,Adults and Health,Direct Transfer Payments to So,90165817,REDACTED - PERSONAL DATA,"1,351.56",24/05/2019
Delivery Units,Adults and Health,Direct Transfer Payments to So,90165818,REDACTED - PERSONAL DATA,190.00,24/05/2019
Delivery Units,Adults and Health,Direct Transfer Payments to So,90165819,REDACTED - PERSONAL DATA,732.72,24/05/2019
Delivery Units,Adults and Health,Direct Transfer Payments to So,90165820,REDACTED - PERSONAL DATA,"2,240.00",24/05/2019
Delivery Units,Adults and Health,Direct Transfer Payments to So,90165821,REDACTED - PERSONAL DATA,"2,304.96",24/05/2019
Delivery Units,Adults and Health,Direct Transfer Payments to So,90165822,REDACTED - PERSONAL DATA,448.00,24/05/2019
Delivery Units,Adults and Health,Direct Transfer Payments to So,90165824,REDACTED - PERSONAL DATA,218.24,24/05/2019
Delivery Units,Adults and Health,Direct Transfer Payments to So,90165825,REDACTED - PERSONAL DATA,392.00,24/05/2019
Delivery Units,Adults and Health,Direct Transfer Payments to So,90165826,REDACTED - PERSONAL DATA,170.04,24/05/2019
Delivery Units,Adults and Health,Direct Transfer Payments to So,90165827,REDACTED - PERSONAL DATA,889.48,24/05/2019
Delivery Units,Adults and Health,Direct Transfer Payments to So,90161536,REDACTED - PERSONAL DATA,231.40,24/05/2019
Delivery Units,Adults and Health,Direct Transfer Payments to So,90160607,REDACTED - PERSONAL DATA,280.00,24/05/2019
Delivery Units,Adults and Health,Direct Transfer Payments to So,90160612,REDACTED - PERSONAL DATA,192.32,24/05/2019
Delivery Units,Adults and Health,Direct Transfer Payments to So,90160613,REDACTED - PERSONAL DATA,288.48,24/05/2019
Delivery Units,Adults and Health,Direct Transfer Payments to So,90165528,REDACTED - PERSONAL DATA,"1,185.32",24/05/2019
Delivery Units,Adults and Health,Direct Transfer Payments to So,90165533,REDACTED - PERSONAL DATA,144.24,24/05/2019
Delivery Units,Adults and Health,Direct Transfer Payments to So,90165535,REDACTED - PERSONAL DATA,"1,089.12",24/05/2019
Delivery Units,Adults and Health,Direct Transfer Payments to So,90162638,REDACTED - PERSONAL DATA,228.36,24/05/2019
Delivery Units,Adults and Health,Direct Transfer Payments to So,90162640,REDACTED - PERSONAL DATA,"3,051.36",24/05/2019
Delivery Units,Adults and Health,Direct Transfer Payments to So,90162641,REDACTED - PERSONAL DATA,"2,847.00",24/05/2019
Delivery Units,Adults and Health,Direct Transfer Payments to So,90162642,REDACTED - PERSONAL DATA,568.16,24/05/2019
Delivery Units,Adults and Health,Direct Transfer Payments to So,90162645,REDACTED - PERSONAL DATA,418.40,24/05/2019
Delivery Units,Adults and Health,Direct Transfer Payments to So,90163205,REDACTED - PERSONAL DATA,395.40,24/05/2019
Delivery Units,Adults and Health,Direct Transfer Payments to So,90160665,REDACTED - PERSONAL DATA,"2,088.00",24/05/2019
Delivery Units,Adults and Health,Direct Transfer Payments to So,90160666,REDACTED - PERSONAL DATA,384.64,24/05/2019
Delivery Units,Adults and Health,Direct Transfer Payments to So,90160667,REDACTED - PERSONAL DATA,305.44,24/05/2019
Delivery Units,Adults and Health,Direct Transfer Payments to So,90160668,REDACTED - PERSONAL DATA,"1,545.48",24/05/2019
Delivery Units,Adults and Health,Direct Transfer Payments to So,90160669,REDACTED - PERSONAL DATA,"1,525.44",24/05/2019
Delivery Units,Adults and Health,Direct Transfer Payments to So,90160670,REDACTED - PERSONAL DATA,"2,048.44",24/05/2019
Delivery Units,Adults and Health,Direct Transfer Payments to So,90160671,REDACTED - PERSONAL DATA,"2,296.60",24/05/2019
Delivery Units,Adults and Health,Direct Transfer Payments to So,90161029,REDACTED - PERSONAL DATA,"1,143.16",24/05/2019
Delivery Units,Adults and Health,Direct Transfer Payments to So,90161030,REDACTED - PERSONAL DATA,975.36,24/05/2019
Delivery Units,Adults and Health,Direct Transfer Payments to So,90161031,REDACTED - PERSONAL DATA,913.20,24/05/2019
Delivery Units,Adults and Health,Direct Transfer Payments to So,90161033,REDACTED - PERSONAL DATA,"1,524.64",24/05/2019
Delivery Units,Adults and Health,Direct Transfer Payments to So,90161035,REDACTED - PERSONAL DATA,"2,688.00",24/05/2019
Delivery Units,Adults and Health,Direct Transfer Payments to So,90159534,REDACTED - PERSONAL DATA,"2,349.16",24/05/2019
Delivery Units,Adults and Health,Direct Transfer Payments to So,90165575,REDACTED - PERSONAL DATA,720.00,24/05/2019
Delivery Units,Adults and Health,Direct Transfer Payments to So,90165779,REDACTED - PERSONAL DATA,384.00,24/05/2019
Delivery Units,Adults and Health,Direct Transfer Payments to So,90165781,REDACTED - PERSONAL DATA,"1,312.48",24/05/2019
Delivery Units,Adults and Health,Direct Transfer Payments to So,90165785,REDACTED - PERSONAL DATA,348.00,24/05/2019
Delivery Units,Adults and Health,Direct Transfer Payments to So,90161553,REDACTED - PERSONAL DATA,384.00,24/05/2019
Delivery Units,Adults and Health,Direct Transfer Payments to So,90161554,REDACTED - PERSONAL DATA,"3,727.68",24/05/2019
Delivery Units,Adults and Health,Direct Transfer Payments to So,90161555,REDACTED - PERSONAL DATA,"1,431.96",24/05/2019
Delivery Units,Adults and Health,Direct Transfer Payments to So,90161556,REDACTED - PERSONAL DATA,"1,351.08",24/05/2019
Delivery Units,Adults and Health,Direct Transfer Payments to So,90161557,REDACTED - PERSONAL DATA,960.00,24/05/2019
Delivery Units,Adults and Health,Direct Transfer Payments to So,90161558,REDACTED - PERSONAL DATA,"3,266.48",24/05/2019
Delivery Units,Adults and Health,Direct Transfer Payments to So,90161559,REDACTED - PERSONAL DATA,800.00,24/05/2019
Delivery Units,Adults and Health,Direct Transfer Payments to So,90163550,REDACTED - PERSONAL DATA,96.00,24/05/2019
Delivery Units,Adults and Health,Direct Transfer Payments to So,90165692,REDACTED - PERSONAL DATA,"2,400.00",24/05/2019
Delivery Units,Adults and Health,Direct Transfer Payments to So,90165693,REDACTED - PERSONAL DATA,"1,183.32",24/05/2019
Delivery Units,Adults and Health,Direct Transfer Payments to So,90165694,REDACTED - PERSONAL DATA,859.56,24/05/2019
Delivery Units,Adults and Health,Direct Transfer Payments to So,90165695,REDACTED - PERSONAL DATA,380.12,24/05/2019
Delivery Units,Adults and Health,Direct Transfer Payments to So,90165696,REDACTED - PERSONAL DATA,"1,104.00",24/05/2019
Delivery Units,Adults and Health,Direct Transfer Payments to So,90165697,REDACTED - PERSONAL DATA,"1,580.00",24/05/2019
Delivery Units,Adults and Health,Direct Transfer Payments to So,90165390,REDACTED - PERSONAL DATA,700.00,24/05/2019
Delivery Units,Adults and Health,Direct Transfer Payments to So,90163261,REDACTED - PERSONAL DATA,"1,633.60",24/05/2019
Delivery Units,Adults and Health,Direct Transfer Payments to So,90163262,REDACTED - PERSONAL DATA,171.24,24/05/2019
Delivery Units,Adults and Health,Direct Transfer Payments to So,90163263,REDACTED - PERSONAL DATA,200.56,24/05/2019
Delivery Units,Adults and Health,Direct Transfer Payments to So,90165537,REDACTED - PERSONAL DATA,360.60,24/05/2019
Delivery Units,Adults and Health,Direct Transfer Payments to So,90165585,REDACTED - PERSONAL DATA,410.96,24/05/2019
Delivery Units,Adults and Health,Direct Transfer Payments to So,90165603,REDACTED - PERSONAL DATA,395.32,24/05/2019
Delivery Units,Adults and Health,Direct Transfer Payments to So,90165604,REDACTED - PERSONAL DATA,"2,066.00",24/05/2019
Delivery Units,Adults and Health,Direct Transfer Payments to So,90165605,REDACTED - PERSONAL DATA,728.00,24/05/2019
Delivery Units,Adults and Health,Direct Transfer Payments to So,90165606,REDACTED - PERSONAL DATA,"3,474.40",24/05/2019
Delivery Units,Adults and Health,Direct Transfer Payments to So,90165607,REDACTED - PERSONAL DATA,478.48,24/05/2019
Delivery Units,Adults and Health,Direct Transfer Payments to So,90165608,REDACTED - PERSONAL DATA,728.00,24/05/2019
Delivery Units,Adults and Health,Direct Transfer Payments to So,90165610,REDACTED - PERSONAL DATA,"1,440.00",24/05/2019
Delivery Units,Adults and Health,Direct Transfer Payments to So,90163216,REDACTED - PERSONAL DATA,"1,872.00",24/05/2019
Delivery Units,Adults and Health,Direct Transfer Payments to So,90163217,REDACTED - PERSONAL DATA,"1,560.72",24/05/2019
Delivery Units,Adults and Health,Direct Transfer Payments to So,90159499,REDACTED - PERSONAL DATA,200.00,24/05/2019
Delivery Units,Adults and Health,Direct Transfer Payments to So,90165538,REDACTED - PERSONAL DATA,360.00,24/05/2019
Delivery Units,Adults and Health,Direct Transfer Payments to So,90162477,REDACTED - PERSONAL DATA,312.52,24/05/2019
Delivery Units,Adults and Health,Direct Transfer Payments to So,90162478,REDACTED - PERSONAL DATA,"1,524.80",24/05/2019
Delivery Units,Adults and Health,Direct Transfer Payments to So,90162479,REDACTED - PERSONAL DATA,490.04,24/05/2019
Delivery Units,Adults and Health,Direct Transfer Payments to So,90162480,REDACTED - PERSONAL DATA,533.92,24/05/2019
Delivery Units,Adults and Health,Direct Transfer Payments to So,90162482,REDACTED - PERSONAL DATA,989.72,24/05/2019
Delivery Units,Adults and Health,Direct Transfer Payments to So,90162483,REDACTED - PERSONAL DATA,480.80,24/05/2019
Delivery Units,Adults and Health,Direct Transfer Payments to So,90162484,REDACTED - PERSONAL DATA,451.92,24/05/2019
Delivery Units,Adults and Health,Direct Transfer Payments to So,90164872,REDACTED - PERSONAL DATA,"2,933.80",24/05/2019
Delivery Units,Adults and Health,Direct Transfer Payments to So,90164873,REDACTED - PERSONAL DATA,"4,093.84",24/05/2019
Delivery Units,Adults and Health,Direct Transfer Payments to So,90164874,REDACTED - PERSONAL DATA,552.00,24/05/2019
Delivery Units,Adults and Health,Direct Transfer Payments to So,90164875,REDACTED - PERSONAL DATA,144.24,24/05/2019
Delivery Units,Adults and Health,Direct Transfer Payments to So,90164877,REDACTED - PERSONAL DATA,347.20,24/05/2019
Delivery Units,Adults and Health,Direct Transfer Payments to So,90164878,REDACTED - PERSONAL DATA,"1,029.76",24/05/2019
Delivery Units,Adults and Health,Direct Transfer Payments to So,90164879,REDACTED - PERSONAL DATA,840.00,24/05/2019
Delivery Units,Adults and Health,Direct Transfer Payments to So,90161520,REDACTED - PERSONAL DATA,825.44,24/05/2019
Delivery Units,Adults and Health,Direct Transfer Payments to So,90164231,REDACTED - PERSONAL DATA,480.80,24/05/2019
Delivery Units,Adults and Health,Direct Transfer Payments to So,90164232,REDACTED - PERSONAL DATA,"2,092.96",24/05/2019
Delivery Units,Adults and Health,Direct Transfer Payments to So,90164236,REDACTED - PERSONAL DATA,"1,351.56",24/05/2019
Delivery Units,Adults and Health,Direct Transfer Payments to So,90164253,REDACTED - PERSONAL DATA,"1,586.48",24/05/2019
Delivery Units,Adults and Health,Direct Transfer Payments to So,90164254,REDACTED - PERSONAL DATA,788.40,24/05/2019
Delivery Units,Adults and Health,Direct Transfer Payments to So,90164261,REDACTED - PERSONAL DATA,800.00,24/05/2019
Delivery Units,Adults and Health,Direct Transfer Payments to So,90164268,REDACTED - PERSONAL DATA,"1,060.00",24/05/2019
Delivery Units,Adults and Health,Direct Transfer Payments to So,90164278,REDACTED - PERSONAL DATA,257.44,24/05/2019
Delivery Units,Adults and Health,Direct Transfer Payments to So,90164279,REDACTED - PERSONAL DATA,580.36,24/05/2019
Delivery Units,Adults and Health,Direct Transfer Payments to So,90164280,REDACTED - PERSONAL DATA,673.52,24/05/2019
Delivery Units,Adults and Health,Direct Transfer Payments to So,90164282,REDACTED - PERSONAL DATA,675.80,24/05/2019
Delivery Units,Adults and Health,Direct Transfer Payments to So,90164290,REDACTED - PERSONAL DATA,100.00,24/05/2019
Delivery Units,Adults and Health,Direct Transfer Payments to So,90164292,REDACTED - PERSONAL DATA,"1,194.24",24/05/2019
Delivery Units,Adults and Health,Direct Transfer Payments to So,90164295,REDACTED - PERSONAL DATA,180.92,24/05/2019
Delivery Units,Adults and Health,Direct Transfer Payments to So,90164299,REDACTED - PERSONAL DATA,"1,300.00",24/05/2019
Delivery Units,Adults and Health,Direct Transfer Payments to So,90164300,REDACTED - PERSONAL DATA,"1,520.00",24/05/2019
Delivery Units,Adults and Health,Direct Transfer Payments to So,90164306,REDACTED - PERSONAL DATA,966.84,24/05/2019
Delivery Units,Adults and Health,Direct Transfer Payments to So,90164307,REDACTED - PERSONAL DATA,450.52,24/05/2019
Delivery Units,Adults and Health,Direct Transfer Payments to So,90164317,REDACTED - PERSONAL DATA,384.00,24/05/2019
Delivery Units,Adults and Health,Direct Transfer Payments to So,90164322,REDACTED - PERSONAL DATA,390.00,24/05/2019
Delivery Units,Adults and Health,Direct Transfer Payments to So,90164328,REDACTED - PERSONAL DATA,"1,243.00",24/05/2019
Delivery Units,Adults and Health,Direct Transfer Payments to So,90164329,REDACTED - PERSONAL DATA,"2,316.96",24/05/2019
Delivery Units,Adults and Health,Direct Transfer Payments to So,90164337,REDACTED - PERSONAL DATA,903.92,24/05/2019
Delivery Units,Adults and Health,Direct Transfer Payments to So,90164345,REDACTED - PERSONAL DATA,140.00,24/05/2019
Delivery Units,Adults and Health,Direct Transfer Payments to So,90165792,REDACTED - PERSONAL DATA,640.00,24/05/2019
Delivery Units,Adults and Health,Direct Transfer Payments to So,90165793,REDACTED - PERSONAL DATA,"1,582.00",24/05/2019
Delivery Units,Adults and Health,Direct Transfer Payments to So,90160639,REDACTED - PERSONAL DATA,"4,608.04",24/05/2019
Delivery Units,Adults and Health,Direct Transfer Payments to So,90165582,REDACTED - PERSONAL DATA,975.28,24/05/2019
Delivery Units,Adults and Health,Direct Transfer Payments to So,90163247,REDACTED - PERSONAL DATA,779.44,24/05/2019
Delivery Units,Adults and Health,Direct Transfer Payments to So,90163248,REDACTED - PERSONAL DATA,"2,520.00",24/05/2019
Delivery Units,Adults and Health,Direct Transfer Payments to So,90163250,REDACTED - PERSONAL DATA,240.00,24/05/2019
Delivery Units,Adults and Health,Direct Transfer Payments to So,90163251,REDACTED - PERSONAL DATA,589.68,24/05/2019
Delivery Units,Adults and Health,Direct Transfer Payments to So,90163252,REDACTED - PERSONAL DATA,700.00,24/05/2019
Delivery Units,Adults and Health,Direct Transfer Payments to So,90163253,REDACTED - PERSONAL DATA,"2,606.04",24/05/2019
Delivery Units,Adults and Health,Direct Transfer Payments to So,90163254,REDACTED - PERSONAL DATA,"1,238.92",24/05/2019
Delivery Units,Adults and Health,Direct Transfer Payments to So,90163255,REDACTED - PERSONAL DATA,482.72,24/05/2019
Delivery Units,Adults and Health,Direct Transfer Payments to So,90164917,REDACTED - PERSONAL DATA,"1,208.08",24/05/2019
Delivery Units,Adults and Health,Direct Transfer Payments to So,90161528,REDACTED - PERSONAL DATA,"2,518.48",24/05/2019
Delivery Units,Adults and Health,Direct Transfer Payments to So,90163608,REDACTED - PERSONAL DATA,321.80,24/05/2019
Delivery Units,Adults and Health,Direct Transfer Payments to So,90160604,REDACTED - PERSONAL DATA,136.00,24/05/2019
Delivery Units,Adults and Health,Direct Transfer Payments to So,90160605,REDACTED - PERSONAL DATA,528.88,24/05/2019
Delivery Units,Adults and Health,Direct Transfer Payments to So,90160606,REDACTED - PERSONAL DATA,"2,156.08",24/05/2019
Delivery Units,Adults and Health,Direct Transfer Payments to So,90165578,REDACTED - PERSONAL DATA,"2,300.00",24/05/2019
Delivery Units,Adults and Health,Direct Transfer Payments to So,90160600,REDACTED - PERSONAL DATA,301.48,24/05/2019
Delivery Units,Adults and Health,Direct Transfer Payments to So,90160601,REDACTED - PERSONAL DATA,397.40,24/05/2019
Delivery Units,Adults and Health,Direct Transfer Payments to So,90160602,REDACTED - PERSONAL DATA,"1,185.00",24/05/2019
Delivery Units,Adults and Health,Direct Transfer Payments to So,90160603,REDACTED - PERSONAL DATA,382.20,24/05/2019
Delivery Units,Adults and Health,Direct Transfer Payments to So,90163617,REDACTED - PERSONAL DATA,377.88,24/05/2019
Delivery Units,Adults and Health,Direct Transfer Payments to So,90165359,REDACTED - PERSONAL DATA,"1,238.92",24/05/2019
Delivery Units,Adults and Health,Direct Transfer Payments to So,90165360,REDACTED - PERSONAL DATA,621.60,24/05/2019
Delivery Units,Adults and Health,Direct Transfer Payments to So,90165361,REDACTED - PERSONAL DATA,243.24,24/05/2019
Delivery Units,Adults and Health,Direct Transfer Payments to So,90165362,REDACTED - PERSONAL DATA,"3,856.00",24/05/2019
Delivery Units,Adults and Health,Direct Transfer Payments to So,90165363,REDACTED - PERSONAL DATA,"2,778.80",24/05/2019
Delivery Units,Adults and Health,Direct Transfer Payments to So,90162489,REDACTED - PERSONAL DATA,"3,260.00",24/05/2019
Delivery Units,Adults and Health,Direct Transfer Payments to So,90162472,REDACTED - PERSONAL DATA,"1,350.72",24/05/2019
Delivery Units,Adults and Health,Direct Transfer Payments to So,90165541,REDACTED - PERSONAL DATA,"5,556.00",24/05/2019
Delivery Units,Adults and Health,Direct Transfer Payments to So,90163613,REDACTED - PERSONAL DATA,144.24,24/05/2019
Delivery Units,Adults and Health,Direct Transfer Payments to So,90163614,REDACTED - PERSONAL DATA,"1,351.56",24/05/2019
Delivery Units,Adults and Health,Direct Transfer Payments to So,90163615,REDACTED - PERSONAL DATA,"3,279.20",24/05/2019
Delivery Units,Adults and Health,Direct Transfer Payments to So,90163616,REDACTED - PERSONAL DATA,128.00,24/05/2019
Delivery Units,Adults and Health,Direct Transfer Payments to So,90163618,REDACTED - PERSONAL DATA,"3,000.00",24/05/2019
Delivery Units,Adults and Health,Direct Transfer Payments to So,90163620,REDACTED - PERSONAL DATA,"2,808.08",24/05/2019
Delivery Units,Adults and Health,Direct Transfer Payments to So,90163621,REDACTED - PERSONAL DATA,674.24,24/05/2019
Delivery Units,Adults and Health,Direct Transfer Payments to So,90163623,REDACTED - PERSONAL DATA,125.68,24/05/2019
Delivery Units,Adults and Health,Direct Transfer Payments to So,90163624,REDACTED - PERSONAL DATA,904.80,24/05/2019
Delivery Units,Adults and Health,Direct Transfer Payments to So,90163627,REDACTED - PERSONAL DATA,649.04,24/05/2019
Delivery Units,Adults and Health,Direct Transfer Payments to So,90163631,REDACTED - PERSONAL DATA,354.24,24/05/2019
Delivery Units,Adults and Health,Direct Transfer Payments to So,90163633,REDACTED - PERSONAL DATA,416.00,24/05/2019
Delivery Units,Adults and Health,Direct Transfer Payments to So,90163634,REDACTED - PERSONAL DATA,351.52,24/05/2019
Delivery Units,Adults and Health,Direct Transfer Payments to So,90163636,REDACTED - PERSONAL DATA,"1,130.00",24/05/2019
Delivery Units,Adults and Health,Direct Transfer Payments to So,90163637,REDACTED - PERSONAL DATA,368.00,24/05/2019
Delivery Units,Adults and Health,Direct Transfer Payments to So,90163639,REDACTED - PERSONAL DATA,679.60,24/05/2019
Delivery Units,Adults and Health,Direct Transfer Payments to So,90161526,REDACTED - PERSONAL DATA,432.00,24/05/2019
Delivery Units,Adults and Health,Direct Transfer Payments to So,90164869,REDACTED - PERSONAL DATA,588.24,24/05/2019
Delivery Units,Adults and Health,Direct Transfer Payments to So,90165305,REDACTED - PERSONAL DATA,"3,444.00",24/05/2019
Delivery Units,Adults and Health,Direct Transfer Payments to So,90163429,REDACTED - PERSONAL DATA,409.08,24/05/2019
Delivery Units,Adults and Health,Direct Transfer Payments to So,90159498,REDACTED - PERSONAL DATA,202.00,24/05/2019
Delivery Units,Adults and Health,Direct Transfer Payments to So,90165555,REDACTED - PERSONAL DATA,"2,200.00",24/05/2019
Delivery Units,Adults and Health,Direct Transfer Payments to So,90161542,REDACTED - PERSONAL DATA,560.00,24/05/2019
Delivery Units,Adults and Health,Direct Transfer Payments to So,90162512,REDACTED - PERSONAL DATA,426.96,24/05/2019
Delivery Units,Adults and Health,Direct Transfer Payments to So,90163446,REDACTED - PERSONAL DATA,350.84,24/05/2019
Delivery Units,Adults and Health,Direct Transfer Payments to So,90163447,REDACTED - PERSONAL DATA,728.00,24/05/2019
Delivery Units,Adults and Health,Direct Transfer Payments to So,90163449,REDACTED - PERSONAL DATA,"1,092.00",24/05/2019
Delivery Units,Adults and Health,Direct Transfer Payments to So,90165722,REDACTED - PERSONAL DATA,640.56,24/05/2019
Delivery Units,Adults and Health,Direct Transfer Payments to So,90160644,REDACTED - PERSONAL DATA,928.00,24/05/2019
Delivery Units,Adults and Health,Direct Transfer Payments to So,90162508,REDACTED - PERSONAL DATA,333.84,24/05/2019
Delivery Units,Adults and Health,Direct Transfer Payments to So,90165716,REDACTED - PERSONAL DATA,24.60,24/05/2019
Delivery Units,Adults and Health,Direct Transfer Payments to So,90162496,REDACTED - PERSONAL DATA,585.24,24/05/2019
Delivery Units,Adults and Health,Direct Transfer Payments to So,90160628,REDACTED - PERSONAL DATA,"1,113.44",24/05/2019
Delivery Units,Adults and Health,Direct Transfer Payments to So,90160636,REDACTED - PERSONAL DATA,"1,164.24",24/05/2019
Delivery Units,Adults and Health,Direct Transfer Payments to So,90165558,REDACTED - PERSONAL DATA,486.20,24/05/2019
Delivery Units,Adults and Health,Direct Transfer Payments to So,90165559,REDACTED - PERSONAL DATA,"1,113.44",24/05/2019
Delivery Units,Adults and Health,Direct Transfer Payments to So,90161049,REDACTED - PERSONAL DATA,"1,094.12",24/05/2019
Delivery Units,Adults and Health,Direct Transfer Payments to So,90160608,REDACTED - PERSONAL DATA,480.76,24/05/2019
Delivery Units,Adults and Health,Direct Transfer Payments to So,90160615,REDACTED - PERSONAL DATA,408.00,24/05/2019
Delivery Units,Adults and Health,Direct Transfer Payments to So,90165529,REDACTED - PERSONAL DATA,730.92,24/05/2019
Delivery Units,Adults and Health,Direct Transfer Payments to So,90165530,REDACTED - PERSONAL DATA,"17,695.68",24/05/2019
Delivery Units,Adults and Health,Direct Transfer Payments to So,90163241,REDACTED - PERSONAL DATA,"1,346.12",24/05/2019
Delivery Units,Adults and Health,Direct Transfer Payments to So,90163245,REDACTED - PERSONAL DATA,"8,746.84",24/05/2019
Delivery Units,Adults and Health,Direct Transfer Payments to So,90165619,REDACTED - PERSONAL DATA,"1,442.40",24/05/2019
Delivery Units,Adults and Health,Direct Transfer Payments to So,90165624,WIRECARD - ADULT SERVICES,384.64,24/05/2019
Delivery Units,Adults and Health,Direct Transfer Payments to So,90159538,WIRECARD - ADULT SERVICES,186.48,24/05/2019
Delivery Units,Adults and Health,Direct Transfer Payments to So,90159540,WIRECARD - ADULT SERVICES,192.00,24/05/2019
Delivery Units,Adults and Health,Direct Transfer Payments to So,90159541,WIRECARD - ADULT SERVICES,184.60,24/05/2019
Delivery Units,Adults and Health,Direct Transfer Payments to So,90159543,WIRECARD - ADULT SERVICES,531.80,24/05/2019
Delivery Units,Adults and Health,Direct Transfer Payments to So,90161498,WIRECARD - ADULT SERVICES,230.40,24/05/2019
Delivery Units,Adults and Health,Direct Transfer Payments to So,90165809,WIRECARD - ADULT SERVICES,26.20,24/05/2019
Delivery Units,Adults and Health,Direct Transfer Payments to So,90160609,WIRECARD - ADULT SERVICES,138.48,24/05/2019
Delivery Units,Adults and Health,Direct Transfer Payments to So,90160614,WIRECARD - ADULT SERVICES,"2,548.00",24/05/2019
Delivery Units,Adults and Health,Direct Transfer Payments to So,90165532,WIRECARD - ADULT SERVICES,730.48,24/05/2019
Delivery Units,Adults and Health,Direct Transfer Payments to So,90165534,WIRECARD - ADULT SERVICES,792.88,24/05/2019
Delivery Units,Adults and Health,Direct Transfer Payments to So,90163213,WIRECARD - ADULT SERVICES,"10,584.00",24/05/2019
Delivery Units,Adults and Health,Direct Transfer Payments to So,90163214,WIRECARD - ADULT SERVICES,70.00,24/05/2019
Delivery Units,Adults and Health,Direct Transfer Payments to So,90163215,WIRECARD - ADULT SERVICES,218.64,24/05/2019
Delivery Units,Adults and Health,Direct Transfer Payments to So,90163256,WIRECARD - ADULT SERVICES,92.32,24/05/2019
Delivery Units,Adults and Health,Electricity,90165689,KENT COUNTY COUNCIL (KCS),233.70,16/05/2019
Delivery Units,Adults and Health,Fees and Charges,90161535,REDACTED - PERSONAL DATA,-12.88,09/05/2019
Delivery Units,Adults and Health,Fees and Charges,90161514,REDACTED - PERSONAL DATA,-73.40,24/05/2019
Delivery Units,Adults and Health,Fees and Charges,90165527,REDACTED - PERSONAL DATA,-142.08,24/05/2019
Delivery Units,Adults and Health,Fees and Charges,90161510,REDACTED - PERSONAL DATA,485.00,09/05/2019
Delivery Units,Adults and Health,Fees and Charges,90162643,REDACTED - PERSONAL DATA,-196.94,13/05/2019
Delivery Units,Adults and Health,Fees and Charges,90162644,REDACTED - PERSONAL DATA,-140.96,13/05/2019
Delivery Units,Adults and Health,Fees and Charges,90165553,REDACTED - PERSONAL DATA,0.11,13/05/2019
Delivery Units,Adults and Health,Fees and Charges,90161032,REDACTED - PERSONAL DATA,95.28,13/05/2019
Delivery Units,Adults and Health,Fees and Charges,90161034,REDACTED - PERSONAL DATA,623.20,14/05/2019
Delivery Units,Adults and Health,Fees and Charges,90165777,REDACTED - PERSONAL DATA,144.00,14/05/2019
Delivery Units,Adults and Health,Fees and Charges,90159514,REDACTED - PERSONAL DATA,180.05,14/05/2019
Delivery Units,Adults and Health,Fees and Charges,90159515,REDACTED - PERSONAL DATA,41.93,14/05/2019
Delivery Units,Adults and Health,Fees and Charges,90159516,REDACTED - PERSONAL DATA,296.65,14/05/2019
Delivery Units,Adults and Health,Fees and Charges,90159518,REDACTED - PERSONAL DATA,-102.60,24/05/2019
Delivery Units,Adults and Health,Fees and Charges,90161467,REDACTED - PERSONAL DATA,27.89,14/05/2019
Delivery Units,Adults and Health,Fees and Charges,90162519,REDACTED - PERSONAL DATA,137.37,14/05/2019
Delivery Units,Adults and Health,Fees and Charges,90165587,REDACTED - PERSONAL DATA,10.83,14/05/2019
Delivery Units,Adults and Health,Fees and Charges,90165588,REDACTED - PERSONAL DATA,240.55,14/05/2019
Delivery Units,Adults and Health,Fees and Charges,90165590,REDACTED - PERSONAL DATA,-518.33,15/05/2019
Delivery Units,Adults and Health,Fees and Charges,90165592,REDACTED - PERSONAL DATA,-161.60,24/05/2019
Delivery Units,Adults and Health,Fees and Charges,90165594,REDACTED - PERSONAL DATA,338.73,23/05/2019
Delivery Units,Adults and Health,Fees and Charges,90161560,REDACTED - PERSONAL DATA,-117.25,24/05/2019
Delivery Units,Adults and Health,Fees and Charges,90165698,REDACTED - PERSONAL DATA,453.68,23/05/2019
Delivery Units,Adults and Health,Fees and Charges,80025923,REDACTED - PERSONAL DATA,-337.84,24/05/2019
Delivery Units,Adults and Health,Fees and Charges,90163237,REDACTED - PERSONAL DATA,23.60,23/05/2019
Delivery Units,Adults and Health,Fees and Charges,90165398,REDACTED - PERSONAL DATA,-253.94,24/05/2019
Delivery Units,Adults and Health,Fees and Charges,90165399,REDACTED - PERSONAL DATA,-56.08,24/05/2019
Delivery Units,Adults and Health,Fees and Charges,90165402,REDACTED - PERSONAL DATA,-402.00,24/05/2019
Delivery Units,Adults and Health,Fees and Charges,90165403,REDACTED - PERSONAL DATA,-258.60,24/05/2019
Delivery Units,Adults and Health,Fees and Charges,90165405,REDACTED - PERSONAL DATA,-57.80,24/05/2019
Delivery Units,Adults and Health,Fees and Charges,90165410,REDACTED - PERSONAL DATA,-144.04,24/05/2019
Delivery Units,Adults and Health,Fees and Charges,90165584,REDACTED - PERSONAL DATA,-91.08,24/05/2019
Delivery Units,Adults and Health,Fees and Charges,90165732,REDACTED - PERSONAL DATA,-97.76,24/05/2019
Delivery Units,Adults and Health,Fees and Charges,90165733,REDACTED - PERSONAL DATA,-101.60,24/05/2019
Delivery Units,Adults and Health,Fees and Charges,90165734,REDACTED - PERSONAL DATA,-277.56,24/05/2019
Delivery Units,Adults and Health,Fees and Charges,90165735,REDACTED - PERSONAL DATA,-258.60,24/05/2019
Delivery Units,Adults and Health,Fees and Charges,90165736,REDACTED - PERSONAL DATA,-123.20,24/05/2019
Delivery Units,Adults and Health,Fees and Charges,90165737,REDACTED - PERSONAL DATA,-125.80,24/05/2019
Delivery Units,Adults and Health,Fees and Charges,90165738,REDACTED - PERSONAL DATA,-89.80,24/05/2019
Delivery Units,Adults and Health,Fees and Charges,90165739,REDACTED - PERSONAL DATA,-181.48,24/05/2019
Delivery Units,Adults and Health,Fees and Charges,90165740,REDACTED - PERSONAL DATA,-428.72,24/05/2019
Delivery Units,Adults and Health,Fees and Charges,90165741,REDACTED - PERSONAL DATA,-225.60,24/05/2019
Delivery Units,Adults and Health,Fees and Charges,90161450,REDACTED - PERSONAL DATA,-238.60,24/05/2019
Delivery Units,Adults and Health,Fees and Charges,90161451,REDACTED - PERSONAL DATA,-241.60,24/05/2019
Delivery Units,Adults and Health,Fees and Charges,90161452,REDACTED - PERSONAL DATA,-174.16,24/05/2019
Delivery Units,Adults and Health,Fees and Charges,90161453,REDACTED - PERSONAL DATA,-221.60,24/05/2019
Delivery Units,Adults and Health,Fees and Charges,90161454,REDACTED - PERSONAL DATA,-106.80,24/05/2019
Delivery Units,Adults and Health,Fees and Charges,90161455,REDACTED - PERSONAL DATA,0.08,28/05/2019
Delivery Units,Adults and Health,Fees and Charges,90161456,WIRECARD - ADULT SERVICES,-14.20,21/05/2019
Delivery Units,Adults and Health,Food Costs,90161457,MULLER MILK & INGREDIENTS,0.88,03/05/2019
Delivery Units,Adults and Health,Food Costs,90161458,MULLER MILK & INGREDIENTS,0.88,10/05/2019
Delivery Units,Adults and Health,Food Costs,90161459,MULLER MILK & INGREDIENTS,0.88,17/05/2019
Delivery Units,Adults and Health,Food Costs,90161460,MULLER MILK & INGREDIENTS,0.88,24/05/2019
Delivery Units,Adults and Health,Food Costs,90161461,MULLER MILK & INGREDIENTS,0.88,31/05/2019
Delivery Units,Adults and Health,Gas,90161462,KENT COUNTY COUNCIL (KCS),339.57,16/05/2019
Delivery Units,Adults and Health,Health authorities - Third Par,90161463,BARTS HEALTH NHS TRUST,"2,860.13",23/05/2019
Delivery Units,Adults and Health,Health authorities - Third Par,90161464,BRUNSWICK PARK MEDICAL PRACTICE,"1,500.00",15/05/2019
Delivery Units,Adults and Health,Health authorities - Third Par,90161465,BUCKINGHAMSHIRE HEALTHCARE NHS TRUST,131.00,09/05/2019
Delivery Units,Adults and Health,Health authorities - Third Par,90161466,CENTRAL & NORTH WEST LONDON NHS FT,"141,416.24",13/05/2019
Delivery Units,Adults and Health,Health authorities - Third Par,90162510,CENTRAL & NORTH WEST LONDON NHS FT,"1,374.17",15/05/2019
Delivery Units,Adults and Health,Health authorities - Third Par,90162511,CENTRAL LONDONCOMMUNITY HEALTHCARE,"2,742.00",24/05/2019
Delivery Units,Adults and Health,Health authorities - Third Par,90164880,CENTRAL LONDONCOMMUNITY HEALTHCARE,"1,729.00",24/05/2019
Delivery Units,Adults and Health,Health authorities - Third Par,90164881,CENTRAL LONDONCOMMUNITY HEALTHCARE,"1,545.00",23/05/2019
Delivery Units,Adults and Health,Health authorities - Third Par,90164882,COLINDALE MEDICAL CENTRE,"1,150.00",15/05/2019
Delivery Units,Adults and Health,Health authorities - Third Par,90164883,COLNEY HATCH LANE SURGERY,25.00,13/05/2019
Delivery Units,Adults and Health,Health authorities - Third Par,90164884,CORNWALL HOUSE SURGERY,375.00,15/05/2019
Delivery Units,Adults and Health,Health authorities - Third Par,90164885,CROYDON HEALTH SERVICE NHS TRUST,149.39,15/05/2019
Delivery Units,Adults and Health,Health authorities - Third Par,90164886,CROYDON HEALTH SERVICE NHS TRUST,268.44,15/05/2019
Delivery Units,Adults and Health,Health authorities - Third Par,90164887,CROYDON HEALTH SERVICE NHS TRUST,213.41,15/05/2019
Delivery Units,Adults and Health,Health authorities - Third Par,90164888,REDACTED - PERSONAL DATA,75.00,13/05/2019
Delivery Units,Adults and Health,Health authorities - Third Par,90164889,EAST FINCHLEY MEDICAL PRACTICE,50.00,15/05/2019
Delivery Units,Adults and Health,Health authorities - Third Par,90164890,FRIERN BARNET MEDICAL CENTRE,375.00,15/05/2019
Delivery Units,Adults and Health,Health authorities - Third Par,90164891,GLOUCESTER ROAD SURGERY,375.00,16/05/2019
Delivery Units,Adults and Health,Health authorities - Third Par,90164892,GREENFIELD MEDICAL CENTRE,"1,750.00",15/05/2019
Delivery Units,Adults and Health,Health authorities - Third Par,90164893,HEATHFIELDE MEDICAL CENTRE,925.00,15/05/2019
Delivery Units,Adults and Health,Health authorities - Third Par,90164894,HENDON WAY SURGERY,775.00,16/05/2019
Delivery Units,Adults and Health,Health authorities - Third Par,90164895,LANE END MEDICAL GROUP,"1,275.00",15/05/2019
Delivery Units,Adults and Health,Health authorities - Third Par,90164896,LANGSTONE WAY SURGERY,675.00,15/05/2019
Delivery Units,Adults and Health,Health authorities - Third Par,90164897,LEWISHAM AND GREENWICH NHS TRUST,103.25,31/05/2019
Delivery Units,Adults and Health,Health authorities - Third Par,90163228,LINCS COMMUNITY HEALTH SERVICES NHST,132.00,15/05/2019
Delivery Units,Adults and Health,Health authorities - Third Par,90167479,LINCS COMMUNITY HEALTH SERVICES NHST,132.00,15/05/2019
Delivery Units,Adults and Health,Health authorities - Third Par,90167480,LINCS COMMUNITY HEALTH SERVICES NHST,132.00,15/05/2019
Delivery Units,Adults and Health,Health authorities - Third Par,90167481,LONGROVE SURGERY,"2,250.00",15/05/2019
Delivery Units,Adults and Health,Health authorities - Third Par,90167482,LUTON AND DUNSTABLE U H,152.52,17/05/2019
Delivery Units,Adults and Health,Health authorities - Third Par,90167484,LUTON AND DUNSTABLE U H,239.98,17/05/2019
Delivery Units,Adults and Health,Health authorities - Third Par,90167485,LUTON AND DUNSTABLE U H,152.52,17/05/2019
Delivery Units,Adults and Health,Health authorities - Third Par,90167486,MANCHESTER UNIVERSITY NHS FOUNDATION TRU,264.00,21/05/2019
Delivery Units,Adults and Health,Health authorities - Third Par,90167487,MEDICAL CENTRE,125.00,16/05/2019
Delivery Units,Adults and Health,Health authorities - Third Par,90167488,MIDLANDS PARTNERSHIP NHS FT,109.00,23/05/2019
Delivery Units,Adults and Health,Health authorities - Third Par,90167489,MOUNTFIELD SURGERY,650.00,15/05/2019
Delivery Units,Adults and Health,Health authorities - Third Par,90167490,MULBERRY MEDICAL PRACTICE,"1,625.00",15/05/2019
Delivery Units,Adults and Health,Health authorities - Third Par,90167492,NORTH MIDDLESEX UNIVERSITY HOS,"2,994.43",31/05/2019
Delivery Units,Adults and Health,Health authorities - Third Par,90167493,NORTH MIDDLESEX UNIVERSITY HOS,"2,387.85",31/05/2019
Delivery Units,Adults and Health,Health authorities - Third Par,90167494,NORTH MIDDLESEX UNIVERSITY HOS,"2,679.07",13/05/2019
Delivery Units,Adults and Health,Health authorities - Third Par,90167496,NORTHAMPTONSHIRE HEALTHCARE NHS,214.00,21/05/2019
Delivery Units,Adults and Health,Health authorities - Third Par,90167497,NORTHERN DEVON HEALTHCARE NHS TRUST,131.00,09/05/2019
Delivery Units,Adults and Health,Health authorities - Third Par,90167498,OAKLODGE MEDICAL CENTRE,225.00,16/05/2019
Delivery Units,Adults and Health,Health authorities - Third Par,90167499,OXFORD UNIVERSITY HOSPITALS NHS FOUNDATI,234.00,13/05/2019
Delivery Units,Adults and Health,Health authorities - Third Par,90167500,OXLEAS NHS FOUNDATION TRUST,278.65,14/05/2019
Delivery Units,Adults and Health,Health authorities - Third Par,90167501,OXLEAS NHS FOUNDATION TRUST,143.03,14/05/2019
Delivery Units,Adults and Health,Health authorities - Third Par,90167503,OXLEAS NHS FOUNDATION TRUST,130.64,14/05/2019
Delivery Units,Adults and Health,Health authorities - Third Par,90167504,OXLEAS NHS FOUNDATION TRUST,204.52,22/05/2019
Delivery Units,Adults and Health,Health authorities - Third Par,90167505,OXLEAS NHS FOUNDATION TRUST,75.74,22/05/2019
Delivery Units,Adults and Health,Health authorities - Third Par,90167507,OXLEAS NHS FOUNDATION TRUST,373.25,22/05/2019
Delivery Units,Adults and Health,Health authorities - Third Par,90167508,PARKVIEW SURGERY,550.00,15/05/2019
Delivery Units,Adults and Health,Health authorities - Third Par,90167509,PENNINE DRIVE SURGERY,"1,900.00",15/05/2019
Delivery Units,Adults and Health,Health authorities - Third Par,90167510,PHGH DOCTORS,475.00,15/05/2019
Delivery Units,Adults and Health,Health authorities - Third Par,90167511,PROVIDE,236.00,21/05/2019
Delivery Units,Adults and Health,Health authorities - Third Par,90167512,REDACTED - PERSONAL DATA,100.00,16/05/2019
Delivery Units,Adults and Health,Health authorities - Third Par,90167513,REDACTED - PERSONAL DATA,"1,019.50",15/05/2019
Delivery Units,Adults and Health,Health authorities - Third Par,90167514,REDACTED - PERSONAL DATA,"1,843.90",15/05/2019
Delivery Units,Adults and Health,Health authorities - Third Par,90167516,REDACTED - PERSONAL DATA,682.20,15/05/2019
Delivery Units,Adults and Health,Health authorities - Third Par,90167517,ROYAL BERKSHIRE NHS FOUNDATION TRUST,131.00,13/05/2019
Delivery Units,Adults and Health,Health authorities - Third Par,90167518,SHERWOOD FOREST HOSPITALS NHS FOUNDATION,139.11,28/05/2019
Delivery Units,Adults and Health,Health authorities - Third Par,90167519,SQUIRES LANE MEDICAL PRACTICE,980.00,13/05/2019
Delivery Units,Adults and Health,Health authorities - Third Par,90167521,SQUIRES LANE MEDICAL PRACTICE,225.00,15/05/2019
Delivery Units,Adults and Health,Health authorities - Third Par,90167522,ST ANDREWS MEDICAL PRACTICE,"1,375.00",15/05/2019
Delivery Units,Adults and Health,Health authorities - Third Par,90167523,SUPREME MEDICAL CENTRE,430.00,15/05/2019
Delivery Units,Adults and Health,Health authorities - Third Par,90167524,SUPREME MEDICAL CENTRE,575.00,16/05/2019
Delivery Units,Adults and Health,Health authorities - Third Par,90167525,THE CLINIC,"2,725.00",15/05/2019
Delivery Units,Adults and Health,Health authorities - Third Par,90167527,THE DERWENT MEDICAL CENTRE,900.00,15/05/2019
Delivery Units,Adults and Health,Health authorities - Third Par,90167528,THE EVERGLADE MEDICAL PRACTICE,310.00,16/05/2019
Delivery Units,Adults and Health,Health authorities - Third Par,90167529,THE EVERGLADE MEDICAL PRACTICE,25.00,16/05/2019
Delivery Units,Adults and Health,Health authorities - Third Par,90167530,THE EVERGLADE MEDICAL PRACTICE,130.00,16/05/2019
Delivery Units,Adults and Health,Health authorities - Third Par,90167532,THE EVERGLADE MEDICAL PRACTICE,"1,250.00",15/05/2019
Delivery Units,Adults and Health,Health authorities - Third Par,90167533,THE NEWCASTLE UPON TYNE HOSPITALS NHS TR,132.00,28/05/2019
Delivery Units,Adults and Health,Health authorities - Third Par,90167534,THE NEWCASTLE UPON TYNE HOSPITALS NHS TR,132.00,28/05/2019
Delivery Units,Adults and Health,Health authorities - Third Par,90167535,THE OLD COURTHOUSE SURGERY,"1,925.00",15/05/2019
Delivery Units,Adults and Health,Health authorities - Third Par,90167538,THE PHOENIX PRACTICE,"1,100.00",15/05/2019
Delivery Units,Adults and Health,Health authorities - Third Par,90167539,THE PRACTICE @ 188,150.00,15/05/2019
Delivery Units,Adults and Health,Health authorities - Third Par,90167540,THE SPEEDWELL PRACTICE,"1,100.00",15/05/2019
Delivery Units,Adults and Health,Health authorities - Third Par,90167541,TORRINGTON PARK GROUP PRACTICE,"1,050.00",15/05/2019
Delivery Units,Adults and Health,Health authorities - Third Par,90167542,VALE DRIVE MEDICAL CENTRE,825.00,15/05/2019
Delivery Units,Adults and Health,Health authorities - Third Par,90167545,WATLING MEDICAL CENTRE,325.00,16/05/2019
Delivery Units,Adults and Health,Health authorities - Third Par,90167546,WOODLANDS MEDICAL PRACTICE,75.00,16/05/2019
Delivery Units,Adults and Health,Other Agencies - Third Party P,90167548,AARANDALE MANOR CARE HOME,"4,285.71",02/05/2019
Delivery Units,Adults and Health,Other Agencies - Third Party P,90167549,AARANDALE MANOR CARE HOME,"3,621.21",02/05/2019
Delivery Units,Adults and Health,Other Agencies - Third Party P,90167550,AARANDALE MANOR CARE HOME,"2,487.64",02/05/2019
Delivery Units,Adults and Health,Other Agencies - Third Party P,90167551,AARANDALE MANOR CARE HOME,485.17,08/05/2019
Delivery Units,Adults and Health,Other Agencies - Third Party P,90167552,AARANDALE MANOR CARE HOME,"1,580.17",08/05/2019
Delivery Units,Adults and Health,Other Agencies - Third Party P,90167555,ABBEY RAVENSCROFT PARK NURSING HOME,"3,214.29",02/05/2019
Delivery Units,Adults and Health,Other Agencies - Third Party P,90167557,ABBEY RAVENSCROFT PARK NURSING HOME,"2,698.37",02/05/2019
Delivery Units,Adults and Health,Other Agencies - Third Party P,90167558,ABBEY RAVENSCROFT PARK NURSING HOME,"2,698.37",02/05/2019
Delivery Units,Adults and Health,Other Agencies - Third Party P,90167559,ABBEY RAVENSCROFT PARK NURSING HOME,"3,000.00",02/05/2019
Delivery Units,Adults and Health,Other Agencies - Third Party P,90167560,ABBEY RAVENSCROFT PARK NURSING HOME,"3,428.57",02/05/2019
Delivery Units,Adults and Health,Other Agencies - Third Party P,90167561,ABBEY RAVENSCROFT PARK NURSING HOME,"3,150.00",02/05/2019
Delivery Units,Adults and Health,Other Agencies - Third Party P,90167562,ABBEY RAVENSCROFT PARK NURSING HOME,"2,698.37",02/05/2019
Delivery Units,Adults and Health,Other Agencies - Third Party P,90167563,ABBEY RAVENSCROFT PARK NURSING HOME,"2,698.37",02/05/2019
Delivery Units,Adults and Health,Other Agencies - Third Party P,90167564,ABBEY RAVENSCROFT PARK NURSING HOME,"3,000.00",02/05/2019
Delivery Units,Adults and Health,Other Agencies - Third Party P,90167565,ABBEY RAVENSCROFT PARK NURSING HOME,"3,214.29",02/05/2019
Delivery Units,Adults and Health,Other Agencies - Third Party P,90167566,ABBEY RAVENSCROFT PARK NURSING HOME,"3,214.29",02/05/2019
Delivery Units,Adults and Health,Other Agencies - Third Party P,90167567,ABBEY RAVENSCROFT PARK NURSING HOME,"3,214.29",02/05/2019
Delivery Units,Adults and Health,Other Agencies - Third Party P,90167568,ABBEY RAVENSCROFT PARK NURSING HOME,"3,214.29",02/05/2019
Delivery Units,Adults and Health,Other Agencies - Third Party P,90167569,ABBEY RAVENSCROFT PARK NURSING HOME,"3,214.29",02/05/2019
Delivery Units,Adults and Health,Other Agencies - Third Party P,90167570,ABBEY RAVENSCROFT PARK NURSING HOME,"3,214.29",02/05/2019
Delivery Units,Adults and Health,Other Agencies - Third Party P,90167572,ABBEY RAVENSCROFT PARK NURSING HOME,"4,834.29",02/05/2019
Delivery Units,Adults and Health,Other Agencies - Third Party P,90167573,ABBEY RAVENSCROFT PARK NURSING HOME,"3,857.14",02/05/2019
Delivery Units,Adults and Health,Other Agencies - Third Party P,90167574,ABBEY RAVENSCROFT PARK NURSING HOME,"3,428.57",02/05/2019
Delivery Units,Adults and Health,Other Agencies - Third Party P,90168429,ABBEY RAVENSCROFT PARK NURSING HOME,"3,214.29",02/05/2019
Delivery Units,Adults and Health,Other Agencies - Third Party P,90168430,ABBEY RAVENSCROFT PARK NURSING HOME,"2,678.57",07/05/2019
Delivery Units,Adults and Health,Other Agencies - Third Party P,90168431,ABBEY RAVENSCROFT PARK NURSING HOME,"2,250.00",07/05/2019
Delivery Units,Adults and Health,Other Agencies - Third Party P,90168432,ABBEY RAVENSCROFT PARK NURSING HOME,"1,071.43",07/05/2019
Delivery Units,Adults and Health,Other Agencies - Third Party P,90168433,ABBEY RAVENSCROFT PARK NURSING HOME,"3,321.43",15/05/2019
Delivery Units,Adults and Health,Other Agencies - Third Party P,90168452,ABBEY RAVENSCROFT PARK NURSING HOME,"3,321.43",22/05/2019
Delivery Units,Adults and Health,Other Agencies - Third Party P,90168453,ABBEY RAVENSCROFT PARK NURSING HOME,"3,321.43",22/05/2019
Delivery Units,Adults and Health,Other Agencies - Third Party P,90168454,ABBEY RAVENSCROFT PARK NURSING HOME,"3,321.43",22/05/2019
Delivery Units,Adults and Health,Other Agencies - Third Party P,90168455,ABBEY RAVENSCROFT PARK NURSING HOME,"3,321.43",22/05/2019
Delivery Units,Adults and Health,Other Agencies - Third Party P,90168456,ABBEY RAVENSCROFT PARK NURSING HOME,"2,788.32",22/05/2019
Delivery Units,Adults and Health,Other Agencies - Third Party P,90168457,ABBEY RAVENSCROFT PARK NURSING HOME,"3,542.86",22/05/2019
Delivery Units,Adults and Health,Other Agencies - Third Party P,90168458,ABBEY RAVENSCROFT PARK NURSING HOME,"2,788.32",22/05/2019
Delivery Units,Adults and Health,Other Agencies - Third Party P,90168459,ABBEY RAVENSCROFT PARK NURSING HOME,"3,321.43",22/05/2019
Delivery Units,Adults and Health,Other Agencies - Third Party P,90168460,ABBEY RAVENSCROFT PARK NURSING HOME,"3,100.00",22/05/2019
Delivery Units,Adults and Health,Other Agencies - Third Party P,90168461,ABBEY RAVENSCROFT PARK NURSING HOME,"3,542.86",22/05/2019
Delivery Units,Adults and Health,Other Agencies - Third Party P,90168462,ABBEY RAVENSCROFT PARK NURSING HOME,"3,255.00",22/05/2019
Delivery Units,Adults and Health,Other Agencies - Third Party P,90168463,ABBEY RAVENSCROFT PARK NURSING HOME,"3,321.43",22/05/2019
Delivery Units,Adults and Health,Other Agencies - Third Party P,90168464,ABBEY RAVENSCROFT PARK NURSING HOME,"3,321.43",22/05/2019
Delivery Units,Adults and Health,Other Agencies - Third Party P,90168465,ABBEY RAVENSCROFT PARK NURSING HOME,"4,995.43",22/05/2019
Delivery Units,Adults and Health,Other Agencies - Third Party P,90168466,ABBEY RAVENSCROFT PARK NURSING HOME,"2,788.32",22/05/2019
Delivery Units,Adults and Health,Other Agencies - Third Party P,90168467,ABBEY RAVENSCROFT PARK NURSING HOME,"3,100.00",22/05/2019
Delivery Units,Adults and Health,Other Agencies - Third Party P,90161055,ABBEY RAVENSCROFT PARK NURSING HOME,"3,985.71",22/05/2019
Delivery Units,Adults and Health,Other Agencies - Third Party P,90161056,ACCEDO CARE LTD,"2,220.12",07/05/2019
Delivery Units,Adults and Health,Other Agencies - Third Party P,90163418,ACCEDO CARE LTD,"1,976.00",07/05/2019
Delivery Units,Adults and Health,Other Agencies - Third Party P,90163428,ACCOMPLISH GROUP SUPPORT LTD,"3,759.36",07/05/2019
Delivery Units,Adults and Health,Other Agencies - Third Party P,90164357,ACCOMPLISH GROUP SUPPORT LTD,"9,220.33",23/05/2019
Delivery Units,Adults and Health,Other Agencies - Third Party P,90164358,ADARA HEALTHCARE LTD,"3,400.00",08/05/2019
Delivery Units,Adults and Health,Other Agencies - Third Party P,90159509,ALINA HOMECARE LTD,244.86,07/05/2019
Delivery Units,Adults and Health,Other Agencies - Third Party P,90163422,ALINA HOMECARE LTD,122.50,07/05/2019
Delivery Units,Adults and Health,Other Agencies - Third Party P,90165631,ALINA HOMECARE LTD,153.09,07/05/2019
Delivery Units,Adults and Health,Other Agencies - Third Party P,90164219,ALINA HOMECARE LTD,183.66,07/05/2019
Delivery Units,Adults and Health,Other Agencies - Third Party P,90164224,ALINA HOMECARE LTD,183.68,07/05/2019
Delivery Units,Adults and Health,Other Agencies - Third Party P,90164225,ALINA HOMECARE LTD,122.43,07/05/2019
Delivery Units,Adults and Health,Other Agencies - Third Party P,90164226,ALINA HOMECARE LTD,122.43,07/05/2019
Delivery Units,Adults and Health,Other Agencies - Third Party P,90164227,ALINA HOMECARE LTD,428.68,07/05/2019
Delivery Units,Adults and Health,Other Agencies - Third Party P,90164228,ALINA HOMECARE LTD,314.86,07/05/2019
Delivery Units,Adults and Health,Other Agencies - Third Party P,90164229,ALINA HOMECARE LTD,314.82,07/05/2019
Delivery Units,Adults and Health,Other Agencies - Third Party P,90164230,ALINA HOMECARE LTD,188.07,07/05/2019
Delivery Units,Adults and Health,Other Agencies - Third Party P,90164233,ALINA HOMECARE LTD,214.34,07/05/2019
Delivery Units,Adults and Health,Other Agencies - Third Party P,90164234,ALINA HOMECARE LTD,349.85,07/05/2019
Delivery Units,Adults and Health,Other Agencies - Third Party P,90164235,ALINA HOMECARE LTD,174.96,07/05/2019
Delivery Units,Adults and Health,Other Agencies - Third Party P,90164237,ALINA HOMECARE LTD,91.84,07/05/2019
Delivery Units,Adults and Health,Other Agencies - Third Party P,90164238,ALINA HOMECARE LTD,214.34,07/05/2019
Delivery Units,Adults and Health,Other Agencies - Third Party P,90164239,ALINA HOMECARE LTD,61.25,07/05/2019
Delivery Units,Adults and Health,Other Agencies - Third Party P,90164240,ALINA HOMECARE LTD,65.60,07/05/2019
Delivery Units,Adults and Health,Other Agencies - Third Party P,90164241,ALINA HOMECARE LTD,336.77,07/05/2019
Delivery Units,Adults and Health,Other Agencies - Third Party P,90164242,ALINA HOMECARE LTD,144.31,07/05/2019
Delivery Units,Adults and Health,Other Agencies - Third Party P,90164244,ALINA HOMECARE LTD,122.43,07/05/2019
Delivery Units,Adults and Health,Other Agencies - Third Party P,90164245,ALINA HOMECARE LTD,275.59,07/05/2019
Delivery Units,Adults and Health,Other Agencies - Third Party P,90164246,ALINA HOMECARE LTD,275.59,07/05/2019
Delivery Units,Adults and Health,Other Agencies - Third Party P,90164249,ALINA HOMECARE LTD,354.26,07/05/2019
Delivery Units,Adults and Health,Other Agencies - Third Party P,90164250,ALINA HOMECARE LTD,61.25,07/05/2019
Delivery Units,Adults and Health,Other Agencies - Third Party P,90164251,ALINA HOMECARE LTD,153.05,07/05/2019
Delivery Units,Adults and Health,Other Agencies - Third Party P,90164252,ALINA HOMECARE LTD,271.17,07/05/2019
Delivery Units,Adults and Health,Other Agencies - Third Party P,90164255,ALINA HOMECARE LTD,91.84,07/05/2019
Delivery Units,Adults and Health,Other Agencies - Third Party P,90164256,ALINA HOMECARE LTD,214.34,07/05/2019
Delivery Units,Adults and Health,Other Agencies - Third Party P,90164259,ALINA HOMECARE LTD,358.65,07/05/2019
Delivery Units,Adults and Health,Other Agencies - Third Party P,90164262,ALINA HOMECARE LTD,341.16,07/05/2019
Delivery Units,Adults and Health,Other Agencies - Third Party P,90164264,ALINA HOMECARE LTD,153.09,07/05/2019
Delivery Units,Adults and Health,Other Agencies - Third Party P,90164265,ALINA HOMECARE LTD,275.59,07/05/2019
Delivery Units,Adults and Health,Other Agencies - Third Party P,90164266,ALINA HOMECARE LTD,153.09,07/05/2019
Delivery Units,Adults and Health,Other Agencies - Third Party P,90164269,ALINA HOMECARE LTD,214.34,07/05/2019
Delivery Units,Adults and Health,Other Agencies - Third Party P,90164270,ALINA HOMECARE LTD,153.09,07/05/2019
Delivery Units,Adults and Health,Other Agencies - Third Party P,90164271,ALINA HOMECARE LTD,174.90,07/05/2019
Delivery Units,Adults and Health,Other Agencies - Third Party P,90164273,ALINA HOMECARE LTD,122.43,07/05/2019
Delivery Units,Adults and Health,Other Agencies - Third Party P,90164274,ALINA HOMECARE LTD,201.17,07/05/2019
Delivery Units,Adults and Health,Other Agencies - Third Party P,90164275,ALINA HOMECARE LTD,153.09,07/05/2019
Delivery Units,Adults and Health,Other Agencies - Third Party P,90164276,ALINA HOMECARE LTD,336.77,07/05/2019
Delivery Units,Adults and Health,Other Agencies - Third Party P,90164277,ALINA HOMECARE LTD,258.04,07/05/2019
Delivery Units,Adults and Health,Other Agencies - Third Party P,90164281,ALINA HOMECARE LTD,34.98,07/05/2019
Delivery Units,Adults and Health,Other Agencies - Third Party P,90164283,ALINA HOMECARE LTD,332.38,07/05/2019
Delivery Units,Adults and Health,Other Agencies - Third Party P,90164284,ALINA HOMECARE LTD,314.87,07/05/2019
Delivery Units,Adults and Health,Other Agencies - Third Party P,90164288,ALINA HOMECARE LTD,223.08,07/05/2019
Delivery Units,Adults and Health,Other Agencies - Third Party P,90164291,ALINA HOMECARE LTD,87.46,07/05/2019
Delivery Units,Adults and Health,Other Agencies - Third Party P,90164294,ALINA HOMECARE LTD,74.36,07/05/2019
Delivery Units,Adults and Health,Other Agencies - Third Party P,90164296,ALINA HOMECARE LTD,288.65,07/05/2019
Delivery Units,Adults and Health,Other Agencies - Third Party P,90164297,ALINA HOMECARE LTD,590.49,07/05/2019
Delivery Units,Adults and Health,Other Agencies - Third Party P,90164298,ALINA HOMECARE LTD,100.57,07/05/2019
Delivery Units,Adults and Health,Other Agencies - Third Party P,90164302,ALINA HOMECARE LTD,83.10,07/05/2019
Delivery Units,Adults and Health,Other Agencies - Third Party P,90164305,ALINA HOMECARE LTD,174.97,07/05/2019
Delivery Units,Adults and Health,Other Agencies - Third Party P,90164308,ALINA HOMECARE LTD,52.50,07/05/2019
Delivery Units,Adults and Health,Other Agencies - Third Party P,90164314,ALINA HOMECARE LTD,26.25,07/05/2019
Delivery Units,Adults and Health,Other Agencies - Third Party P,90164315,ALINA HOMECARE LTD,428.51,07/05/2019
Delivery Units,Adults and Health,Other Agencies - Third Party P,90164316,ALINA HOMECARE LTD,78.72,07/05/2019
Delivery Units,Adults and Health,Other Agencies - Third Party P,90164319,ALINA HOMECARE LTD,227.42,07/05/2019
Delivery Units,Adults and Health,Other Agencies - Third Party P,90164320,ALINA HOMECARE LTD,166.18,07/05/2019
Delivery Units,Adults and Health,Other Agencies - Third Party P,90164321,ALINA HOMECARE LTD,161.81,07/05/2019
Delivery Units,Adults and Health,Other Agencies - Third Party P,90164323,ALINA HOMECARE LTD,244.93,07/05/2019
Delivery Units,Adults and Health,Other Agencies - Third Party P,90164325,ALINA HOMECARE LTD,170.55,07/05/2019
Delivery Units,Adults and Health,Other Agencies - Third Party P,90164327,ALINA HOMECARE LTD,227.41,07/05/2019
Delivery Units,Adults and Health,Other Agencies - Third Party P,90164330,ALINA HOMECARE LTD,91.84,07/05/2019
Delivery Units,Adults and Health,Other Agencies - Third Party P,90164331,ALINA HOMECARE LTD,17.49,07/05/2019
Delivery Units,Adults and Health,Other Agencies - Third Party P,90164333,ALINA HOMECARE LTD,183.66,07/05/2019
Delivery Units,Adults and Health,Other Agencies - Third Party P,90164335,ALINA HOMECARE LTD,83.09,07/05/2019
Delivery Units,Adults and Health,Other Agencies - Third Party P,90164336,ALINA HOMECARE LTD,262.44,07/05/2019
Delivery Units,Adults and Health,Other Agencies - Third Party P,90164339,ALINA HOMECARE LTD,91.84,07/05/2019
Delivery Units,Adults and Health,Other Agencies - Third Party P,90164340,ALINA HOMECARE LTD,91.84,07/05/2019
Delivery Units,Adults and Health,Other Agencies - Third Party P,90164341,ALINA HOMECARE LTD,21.86,07/05/2019
Delivery Units,Adults and Health,Other Agencies - Third Party P,90164342,ALINA HOMECARE LTD,306.17,07/05/2019
Delivery Units,Adults and Health,Other Agencies - Third Party P,90164344,ALINA HOMECARE LTD,144.34,07/05/2019
Delivery Units,Adults and Health,Other Agencies - Third Party P,90164346,ALINA HOMECARE LTD,131.22,07/05/2019
Delivery Units,Adults and Health,Other Agencies - Third Party P,90163605,ALINA HOMECARE LTD,511.61,07/05/2019
Delivery Units,Adults and Health,Other Agencies - Third Party P,90163630,ALINA HOMECARE LTD,218.64,07/05/2019
Delivery Units,Adults and Health,Other Agencies - Third Party P,90165791,ALINA HOMECARE LTD,100.58,07/05/2019
Delivery Units,Adults and Health,Other Agencies - Third Party P,90165303,ALINA HOMECARE LTD,275.52,07/05/2019
Delivery Units,Adults and Health,Other Agencies - Third Party P,90165304,ALINA HOMECARE LTD,100.57,07/05/2019
Delivery Units,Adults and Health,Other Agencies - Third Party P,90165682,ALINA HOMECARE LTD,214.25,07/05/2019
Delivery Units,Adults and Health,Other Agencies - Third Party P,90161036,ALINA HOMECARE LTD,153.09,07/05/2019
Delivery Units,Adults and Health,Other Agencies - Third Party P,90163436,ALINA HOMECARE LTD,284.27,07/05/2019
Delivery Units,Adults and Health,Other Agencies - Third Party P,90165536,ALINA HOMECARE LTD,494.09,07/05/2019
Delivery Units,Adults and Health,Other Agencies - Third Party P,90165756,ALINA HOMECARE LTD,249.29,07/05/2019
Delivery Units,Adults and Health,Other Agencies - Third Party P,90165757,ALINA HOMECARE LTD,262.46,07/05/2019
Delivery Units,Adults and Health,Other Agencies - Third Party P,90165758,ALINA HOMECARE LTD,516.07,07/05/2019
Delivery Units,Adults and Health,Other Agencies - Third Party P,90165759,ALINA HOMECARE LTD,56.84,07/05/2019
Delivery Units,Adults and Health,Other Agencies - Third Party P,90165760,ALINA HOMECARE LTD,214.29,07/05/2019
Delivery Units,Adults and Health,Other Agencies - Third Party P,90165761,ALINA HOMECARE LTD,56.84,07/05/2019
Delivery Units,Adults and Health,Other Agencies - Third Party P,90165762,ALINA HOMECARE LTD,209.89,07/05/2019
Delivery Units,Adults and Health,Other Agencies - Third Party P,90165763,ALINA HOMECARE LTD,244.86,07/05/2019
Delivery Units,Adults and Health,Other Agencies - Third Party P,90165764,ALINA HOMECARE LTD,192.48,07/05/2019
Delivery Units,Adults and Health,Other Agencies - Third Party P,90165766,ALINA HOMECARE LTD,126.81,07/05/2019
Delivery Units,Adults and Health,Other Agencies - Third Party P,90165767,ALINA HOMECARE LTD,122.43,07/05/2019
Delivery Units,Adults and Health,Other Agencies - Third Party P,90165768,ALINA HOMECARE LTD,118.06,07/05/2019
Delivery Units,Adults and Health,Other Agencies - Third Party P,90165769,ALINA HOMECARE LTD,262.42,07/05/2019
Delivery Units,Adults and Health,Other Agencies - Third Party P,90165770,ALINA HOMECARE LTD,34.98,07/05/2019
Delivery Units,Adults and Health,Other Agencies - Third Party P,90165771,ALINA HOMECARE LTD,354.23,07/05/2019
Delivery Units,Adults and Health,Other Agencies - Third Party P,90165772,ALINA HOMECARE LTD,306.11,07/05/2019
Delivery Units,Adults and Health,Other Agencies - Third Party P,90165773,ALINA HOMECARE LTD,48.11,07/05/2019
Delivery Units,Adults and Health,Other Agencies - Third Party P,90165774,ALINA HOMECARE LTD,144.31,07/05/2019
Delivery Units,Adults and Health,Other Agencies - Third Party P,90165775,ALINA HOMECARE LTD,249.33,07/05/2019
Delivery Units,Adults and Health,Other Agencies - Third Party P,90162486,ALINA HOMECARE LTD,586.14,07/05/2019
Delivery Units,Adults and Health,Other Agencies - Third Party P,90162487,ALINA HOMECARE LTD,83.07,07/05/2019
Delivery Units,Adults and Health,Other Agencies - Third Party P,90162488,ALINA HOMECARE LTD,78.73,07/05/2019
Delivery Units,Adults and Health,Other Agencies - Third Party P,90163219,ALINA HOMECARE LTD,174.97,07/05/2019
Delivery Units,Adults and Health,Other Agencies - Third Party P,90163220,ALINA HOMECARE LTD,61.25,07/05/2019
Delivery Units,Adults and Health,Other Agencies - Third Party P,90164354,ALINA HOMECARE LTD,26.25,07/05/2019
Delivery Units,Adults and Health,Other Agencies - Third Party P,90164355,ALINA HOMECARE LTD,415.39,07/05/2019
Delivery Units,Adults and Health,Other Agencies - Third Party P,90165388,ALINA HOMECARE LTD,78.72,07/05/2019
Delivery Units,Adults and Health,Other Agencies - Third Party P,90164918,ALINA HOMECARE LTD,223.05,07/05/2019
Delivery Units,Adults and Health,Other Agencies - Third Party P,90164919,ALINA HOMECARE LTD,96.21,07/05/2019
Delivery Units,Adults and Health,Other Agencies - Third Party P,90164920,ALINA HOMECARE LTD,170.55,07/05/2019
Delivery Units,Adults and Health,Other Agencies - Third Party P,90164922,ALINA HOMECARE LTD,262.41,07/05/2019
Delivery Units,Adults and Health,Other Agencies - Third Party P,90164923,ALINA HOMECARE LTD,231.78,07/05/2019
Delivery Units,Adults and Health,Other Agencies - Third Party P,90164924,ALINA HOMECARE LTD,78.72,07/05/2019
Delivery Units,Adults and Health,Other Agencies - Third Party P,90164925,ALINA HOMECARE LTD,17.49,07/05/2019
Delivery Units,Adults and Health,Other Agencies - Third Party P,90164927,ALINA HOMECARE LTD,183.67,07/05/2019
Delivery Units,Adults and Health,Other Agencies - Third Party P,90164929,ALINA HOMECARE LTD,78.72,07/05/2019
Delivery Units,Adults and Health,Other Agencies - Third Party P,90164930,ALINA HOMECARE LTD,214.34,07/05/2019
Delivery Units,Adults and Health,Other Agencies - Third Party P,90164931,ALINA HOMECARE LTD,91.84,07/05/2019
Delivery Units,Adults and Health,Other Agencies - Third Party P,90164932,ALINA HOMECARE LTD,91.84,07/05/2019
Delivery Units,Adults and Health,Other Agencies - Third Party P,90163622,ALINA HOMECARE LTD,65.60,07/05/2019
Delivery Units,Adults and Health,Other Agencies - Third Party P,90163625,ALINA HOMECARE LTD,336.77,07/05/2019
Delivery Units,Adults and Health,Other Agencies - Third Party P,90163626,ALINA HOMECARE LTD,96.21,07/05/2019
Delivery Units,Adults and Health,Other Agencies - Third Party P,90163635,ALINA HOMECARE LTD,87.48,07/05/2019
Delivery Units,Adults and Health,Other Agencies - Third Party P,90163638,ALINA HOMECARE LTD,288.66,07/05/2019
Delivery Units,Adults and Health,Other Agencies - Third Party P,90163640,ALINA HOMECARE LTD,122.43,07/05/2019
Delivery Units,Adults and Health,Other Agencies - Third Party P,90165711,ALINA HOMECARE LTD,275.59,07/05/2019
Delivery Units,Adults and Health,Other Agencies - Third Party P,90165712,ALINA HOMECARE LTD,354.26,07/05/2019
Delivery Units,Adults and Health,Other Agencies - Third Party P,90165713,ALINA HOMECARE LTD,61.25,07/05/2019
Delivery Units,Adults and Health,Other Agencies - Third Party P,90165714,ALINA HOMECARE LTD,183.68,07/05/2019
Delivery Units,Adults and Health,Other Agencies - Third Party P,90164863,ALINA HOMECARE LTD,153.05,07/05/2019
Delivery Units,Adults and Health,Other Agencies - Third Party P,90164867,ALINA HOMECARE LTD,271.17,07/05/2019
Delivery Units,Adults and Health,Other Agencies - Third Party P,90164868,ALINA HOMECARE LTD,91.84,07/05/2019
Delivery Units,Adults and Health,Other Agencies - Third Party P,90162490,ALINA HOMECARE LTD,358.65,07/05/2019
Delivery Units,Adults and Health,Other Agencies - Third Party P,90161538,ALINA HOMECARE LTD,341.16,07/05/2019
Delivery Units,Adults and Health,Other Agencies - Third Party P,90165581,ALINA HOMECARE LTD,275.59,07/05/2019
Delivery Units,Adults and Health,Other Agencies - Third Party P,90161050,ALINA HOMECARE LTD,153.09,07/05/2019
Delivery Units,Adults and Health,Other Agencies - Third Party P,90161051,ALINA HOMECARE LTD,275.59,07/05/2019
Delivery Units,Adults and Health,Other Agencies - Third Party P,90163425,ALINA HOMECARE LTD,524.71,07/05/2019
Delivery Units,Adults and Health,Other Agencies - Third Party P,90161011,ALINA HOMECARE LTD,227.42,07/05/2019
Delivery Units,Adults and Health,Other Agencies - Third Party P,90161037,ALINA HOMECARE LTD,174.90,07/05/2019
Delivery Units,Adults and Health,Other Agencies - Third Party P,90165259,ALINA HOMECARE LTD,122.43,07/05/2019
Delivery Units,Adults and Health,Other Agencies - Third Party P,90165261,ALINA HOMECARE LTD,153.09,07/05/2019
Delivery Units,Adults and Health,Other Agencies - Third Party P,90160649,ALINA HOMECARE LTD,336.77,07/05/2019
Delivery Units,Adults and Health,Other Agencies - Third Party P,90160650,ALINA HOMECARE LTD,244.86,07/05/2019
Delivery Units,Adults and Health,Other Agencies - Third Party P,90160651,ALINA HOMECARE LTD,122.50,07/05/2019
Delivery Units,Adults and Health,Other Agencies - Third Party P,90160652,ALINA HOMECARE LTD,183.66,07/05/2019
Delivery Units,Adults and Health,Other Agencies - Third Party P,90160653,ALINA HOMECARE LTD,153.09,07/05/2019
Delivery Units,Adults and Health,Other Agencies - Third Party P,90160654,ALINA HOMECARE LTD,301.76,07/05/2019
Delivery Units,Adults and Health,Other Agencies - Third Party P,90160657,ALINA HOMECARE LTD,262.42,07/05/2019
Delivery Units,Adults and Health,Other Agencies - Third Party P,90160658,ALINA HOMECARE LTD,428.68,07/05/2019
Delivery Units,Adults and Health,Other Agencies - Third Party P,90160659,ALINA HOMECARE LTD,314.82,07/05/2019
Delivery Units,Adults and Health,Other Agencies - Third Party P,90160660,ALINA HOMECARE LTD,188.07,07/05/2019
Delivery Units,Adults and Health,Other Agencies - Third Party P,90160661,ALINA HOMECARE LTD,214.34,07/05/2019
Delivery Units,Adults and Health,Other Agencies - Third Party P,90160662,ALINA HOMECARE LTD,349.85,07/05/2019
Delivery Units,Adults and Health,Other Agencies - Third Party P,90160672,ALINA HOMECARE LTD,174.96,07/05/2019
Delivery Units,Adults and Health,Other Agencies - Third Party P,90163206,ALINA HOMECARE LTD,91.84,07/05/2019
Delivery Units,Adults and Health,Other Agencies - Third Party P,90165263,ALINA HOMECARE LTD,218.64,07/05/2019
Delivery Units,Adults and Health,Other Agencies - Third Party P,90165264,ALINA HOMECARE LTD,218.73,07/05/2019
Delivery Units,Adults and Health,Other Agencies - Third Party P,90165265,ALINA HOMECARE LTD,214.34,07/05/2019
Delivery Units,Adults and Health,Other Agencies - Third Party P,90165266,ALINA HOMECARE LTD,39.36,07/05/2019
Delivery Units,Adults and Health,Other Agencies - Third Party P,90165267,ALINA HOMECARE LTD,34.98,07/05/2019
Delivery Units,Adults and Health,Other Agencies - Third Party P,90165269,ALINA HOMECARE LTD,118.11,07/05/2019
Delivery Units,Adults and Health,Other Agencies - Third Party P,90165271,ALINA HOMECARE LTD,148.71,07/05/2019
Delivery Units,Adults and Health,Other Agencies - Third Party P,90165272,ALINA HOMECARE LTD,214.34,07/05/2019
Delivery Units,Adults and Health,Other Agencies - Third Party P,90165273,ALINA HOMECARE LTD,118.10,07/05/2019
Delivery Units,Adults and Health,Other Agencies - Third Party P,90165274,ALINA HOMECARE LTD,306.18,07/05/2019
Delivery Units,Adults and Health,Other Agencies - Third Party P,90165275,ALINA HOMECARE LTD,144.33,07/05/2019
Delivery Units,Adults and Health,Other Agencies - Third Party P,90167294,ALINA HOMECARE LTD,148.71,07/05/2019
Delivery Units,Adults and Health,Other Agencies - Third Party P,90167322,ALINA HOMECARE LTD,131.22,07/05/2019
Delivery Units,Adults and Health,Other Agencies - Third Party P,90167323,ALINA HOMECARE LTD,104.96,07/05/2019
Delivery Units,Adults and Health,Other Agencies - Third Party P,90167324,ALINA HOMECARE LTD,275.52,07/05/2019
Delivery Units,Adults and Health,Other Agencies - Third Party P,90167325,ALINA HOMECARE LTD,196.79,07/05/2019
Delivery Units,Adults and Health,Other Agencies - Third Party P,90167326,ALINA HOMECARE LTD,153.08,07/05/2019
Delivery Units,Adults and Health,Other Agencies - Third Party P,90161039,ALINA HOMECARE LTD,157.41,07/05/2019
Delivery Units,Adults and Health,Other Agencies - Third Party P,90161041,ALINA HOMECARE LTD,87.45,07/05/2019
Delivery Units,Adults and Health,Other Agencies - Third Party P,90161042,ALINA HOMECARE LTD,139.96,07/05/2019
Delivery Units,Adults and Health,Other Agencies - Third Party P,90161043,ALINA HOMECARE LTD,244.86,07/05/2019
Delivery Units,Adults and Health,Other Agencies - Third Party P,90161044,ALINA HOMECARE LTD,170.55,07/05/2019
Delivery Units,Adults and Health,Other Agencies - Third Party P,90161045,ALINA HOMECARE LTD,349.80,07/05/2019
Delivery Units,Adults and Health,Other Agencies - Third Party P,90165378,ALINA HOMECARE LTD,122.43,07/05/2019
Delivery Units,Adults and Health,Other Agencies - Third Party P,90165379,ALINA HOMECARE LTD,122.43,07/05/2019
Delivery Units,Adults and Health,Other Agencies - Third Party P,90165380,ALINA HOMECARE LTD,314.85,07/05/2019
Delivery Units,Adults and Health,Other Agencies - Third Party P,90165381,ALINA HOMECARE LTD,271.21,07/05/2019
Delivery Units,Adults and Health,Other Agencies - Third Party P,90165382,ALINA HOMECARE LTD,564.17,07/05/2019
Delivery Units,Adults and Health,Other Agencies - Third Party P,90165384,ALINA HOMECARE LTD,61.21,07/05/2019
Delivery Units,Adults and Health,Other Agencies - Third Party P,90159493,ALINA HOMECARE LTD,240.53,07/05/2019
Delivery Units,Adults and Health,Other Agencies - Third Party P,90159494,ALINA HOMECARE LTD,87.47,07/05/2019
Delivery Units,Adults and Health,Other Agencies - Third Party P,90159495,ALINA HOMECARE LTD,109.34,07/05/2019
Delivery Units,Adults and Health,Other Agencies - Third Party P,90159497,ALINA HOMECARE LTD,52.50,07/05/2019
Delivery Units,Adults and Health,Other Agencies - Third Party P,90165614,ALINA HOMECARE LTD,122.43,07/05/2019
Delivery Units,Adults and Health,Other Agencies - Third Party P,90165615,ALINA HOMECARE LTD,122.43,07/05/2019
Delivery Units,Adults and Health,Other Agencies - Third Party P,90163448,ALINA HOMECARE LTD,253.67,21/05/2019
Delivery Units,Adults and Health,Other Agencies - Third Party P,90163552,ALINA HOMECARE LTD,34.98,21/05/2019
Delivery Units,Adults and Health,Other Agencies - Third Party P,90163553,ALINA HOMECARE LTD,345.51,21/05/2019
Delivery Units,Adults and Health,Other Agencies - Third Party P,90165626,ALINA HOMECARE LTD,301.73,21/05/2019
Delivery Units,Adults and Health,Other Agencies - Third Party P,90163257,ALINA HOMECARE LTD,96.21,21/05/2019
Delivery Units,Adults and Health,Other Agencies - Third Party P,90163258,ALINA HOMECARE LTD,634.21,21/05/2019
Delivery Units,Adults and Health,Other Agencies - Third Party P,90163259,ALINA HOMECARE LTD,616.74,21/05/2019
Delivery Units,Adults and Health,Other Agencies - Third Party P,90163260,ALINA HOMECARE LTD,83.09,21/05/2019
Delivery Units,Adults and Health,Other Agencies - Third Party P,90157853,ALINA HOMECARE LTD,78.73,21/05/2019
Delivery Units,Adults and Health,Other Agencies - Third Party P,90165977,ALINA HOMECARE LTD,192.48,21/05/2019
Delivery Units,Adults and Health,Other Agencies - Third Party P,90163948,ALINA HOMECARE LTD,61.25,21/05/2019
Delivery Units,Adults and Health,Other Agencies - Third Party P,90166308,ALINA HOMECARE LTD,17.50,21/05/2019
Delivery Units,Adults and Health,Other Agencies - Third Party P,90166394,ALINA HOMECARE LTD,428.51,21/05/2019
Delivery Units,Adults and Health,Other Agencies - Third Party P,90166339,ALINA HOMECARE LTD,56.87,21/05/2019
Delivery Units,Adults and Health,Other Agencies - Third Party P,90166418,ALINA HOMECARE LTD,253.67,21/05/2019
Delivery Units,Adults and Health,Other Agencies - Third Party P,90166638,ALINA HOMECARE LTD,74.36,21/05/2019
Delivery Units,Adults and Health,Other Agencies - Third Party P,90166254,ALINA HOMECARE LTD,21.87,21/05/2019
Delivery Units,Adults and Health,Other Agencies - Third Party P,90165832,ALINA HOMECARE LTD,174.93,21/05/2019
Delivery Units,Adults and Health,Other Agencies - Third Party P,90165952,ALINA HOMECARE LTD,91.83,21/05/2019
Delivery Units,Adults and Health,Other Agencies - Third Party P,90166640,ALINA HOMECARE LTD,214.34,21/05/2019
Delivery Units,Adults and Health,Other Agencies - Third Party P,90165831,ALINA HOMECARE LTD,358.63,21/05/2019
Delivery Units,Adults and Health,Other Agencies - Third Party P,90166060,ALINA HOMECARE LTD,415.44,21/05/2019
Delivery Units,Adults and Health,Other Agencies - Third Party P,90166458,ALINA HOMECARE LTD,91.84,21/05/2019
Delivery Units,Adults and Health,Other Agencies - Third Party P,90166316,ALINA HOMECARE LTD,83.10,21/05/2019
Delivery Units,Adults and Health,Other Agencies - Third Party P,90166128,ALINA HOMECARE LTD,34.98,21/05/2019
Delivery Units,Adults and Health,Other Agencies - Third Party P,90166440,ALINA HOMECARE LTD,275.59,21/05/2019
Delivery Units,Adults and Health,Other Agencies - Third Party P,90166735,ALINA HOMECARE LTD,153.09,21/05/2019
Delivery Units,Adults and Health,Other Agencies - Third Party P,90166236,ALINA HOMECARE LTD,201.21,21/05/2019
Delivery Units,Adults and Health,Other Agencies - Third Party P,90166662,ALINA HOMECARE LTD,266.83,21/05/2019
Delivery Units,Adults and Health,Other Agencies - Third Party P,90166632,ALINA HOMECARE LTD,301.80,21/05/2019
Delivery Units,Adults and Health,Other Agencies - Third Party P,90166593,ALINA HOMECARE LTD,144.33,21/05/2019
Delivery Units,Adults and Health,Other Agencies - Third Party P,90166025,ALINA HOMECARE LTD,148.71,21/05/2019
Delivery Units,Adults and Health,Other Agencies - Third Party P,90166155,ALINA HOMECARE LTD,131.22,21/05/2019
Delivery Units,Adults and Health,Other Agencies - Third Party P,90166611,ALINA HOMECARE LTD,91.83,21/05/2019
Delivery Units,Adults and Health,Other Agencies - Third Party P,90108236,ALINA HOMECARE LTD,258.02,21/05/2019
Delivery Units,Adults and Health,Other Agencies - Third Party P,90165980,ALINA HOMECARE LTD,244.86,21/05/2019
Delivery Units,Adults and Health,Other Agencies - Third Party P,90166483,ALINA HOMECARE LTD,13.12,21/05/2019
Delivery Units,Adults and Health,Other Agencies - Third Party P,90166301,ALINA HOMECARE LTD,126.84,21/05/2019
Delivery Units,Adults and Health,Other Agencies - Third Party P,90165868,ALINA HOMECARE LTD,153.09,21/05/2019
Delivery Units,Adults and Health,Other Agencies - Third Party P,90166674,ALINA HOMECARE LTD,511.58,21/05/2019
Delivery Units,Adults and Health,Other Agencies - Third Party P,90162969,ALINA HOMECARE LTD,428.66,21/05/2019
Delivery Units,Adults and Health,Other Agencies - Third Party P,90165853,ALINA HOMECARE LTD,551.04,21/05/2019
Delivery Units,Adults and Health,Other Agencies - Third Party P,90166444,ALINA HOMECARE LTD,65.58,21/05/2019
Delivery Units,Adults and Health,Other Agencies - Third Party P,90166450,ALINA HOMECARE LTD,170.58,21/05/2019
Delivery Units,Adults and Health,Other Agencies - Third Party P,90166449,ALINA HOMECARE LTD,87.46,21/05/2019
Delivery Units,Adults and Health,Other Agencies - Third Party P,90166572,ALINA HOMECARE LTD,214.27,21/05/2019
Delivery Units,Adults and Health,Other Agencies - Third Party P,90166549,ALINA HOMECARE LTD,218.73,21/05/2019
Delivery Units,Adults and Health,Other Agencies - Third Party P,90166277,ALINA HOMECARE LTD,91.84,21/05/2019
Delivery Units,Adults and Health,Other Agencies - Third Party P,90163198,ALINA HOMECARE LTD,61.25,21/05/2019
Delivery Units,Adults and Health,Other Agencies - Third Party P,90166506,ALINA HOMECARE LTD,113.69,21/05/2019
Delivery Units,Adults and Health,Other Agencies - Third Party P,90166299,ALINA HOMECARE LTD,122.43,21/05/2019
Delivery Units,Adults and Health,Other Agencies - Third Party P,90166565,ALINA HOMECARE LTD,236.18,21/05/2019
Delivery Units,Adults and Health,Other Agencies - Third Party P,90166442,ALINA HOMECARE LTD,183.68,21/05/2019
Delivery Units,Adults and Health,Other Agencies - Third Party P,90165986,ALINA HOMECARE LTD,258.08,21/05/2019
Delivery Units,Adults and Health,Other Agencies - Third Party P,90166345,ALINA HOMECARE LTD,271.11,21/05/2019
Delivery Units,Adults and Health,Other Agencies - Third Party P,90166557,ALINA HOMECARE LTD,30.61,21/05/2019
Delivery Units,Adults and Health,Other Agencies - Third Party P,90166578,ALINA HOMECARE LTD,354.25,21/05/2019
Delivery Units,Adults and Health,Other Agencies - Third Party P,90166243,ALINA HOMECARE LTD,310.49,21/05/2019
Delivery Units,Adults and Health,Other Agencies - Third Party P,90166411,ALINA HOMECARE LTD,96.21,21/05/2019
Delivery Units,Adults and Health,Other Agencies - Third Party P,90166358,ALINA HOMECARE LTD,78.73,21/05/2019
Delivery Units,Adults and Health,Other Agencies - Third Party P,90166609,ALINA HOMECARE LTD,669.18,21/05/2019
Delivery Units,Adults and Health,Other Agencies - Third Party P,90166614,ALINA HOMECARE LTD,638.57,21/05/2019
Delivery Units,Adults and Health,Other Agencies - Third Party P,90166247,ALINA HOMECARE LTD,249.30,21/05/2019
Delivery Units,Adults and Health,Other Agencies - Third Party P,90166534,ALINA HOMECARE LTD,118.06,21/05/2019
Delivery Units,Adults and Health,Other Agencies - Third Party P,90166416,ALINA HOMECARE LTD,83.10,21/05/2019
Delivery Units,Adults and Health,Other Agencies - Third Party P,90166755,ALINA HOMECARE LTD,43.75,21/05/2019
Delivery Units,Adults and Health,Other Agencies - Third Party P,90166239,ALINA HOMECARE LTD,26.25,21/05/2019
Delivery Units,Adults and Health,Other Agencies - Third Party P,90166464,ALINA HOMECARE LTD,428.51,21/05/2019
Delivery Units,Adults and Health,Other Agencies - Third Party P,90166774,ALINA HOMECARE LTD,166.18,21/05/2019
Delivery Units,Adults and Health,Other Agencies - Third Party P,90166178,ALINA HOMECARE LTD,183.68,21/05/2019
Delivery Units,Adults and Health,Other Agencies - Third Party P,90166521,ALINA HOMECARE LTD,183.68,21/05/2019
Delivery Units,Adults and Health,Other Agencies - Third Party P,90166395,ALINA HOMECARE LTD,223.04,21/05/2019
Delivery Units,Adults and Health,Other Agencies - Third Party P,90163452,ALINA HOMECARE LTD,69.99,21/05/2019
Delivery Units,Adults and Health,Other Agencies - Third Party P,90166623,ALINA HOMECARE LTD,13.11,21/05/2019
Delivery Units,Adults and Health,Other Agencies - Third Party P,90166757,ALINA HOMECARE LTD,135.56,21/05/2019
Delivery Units,Adults and Health,Other Agencies - Third Party P,90166160,ALINA HOMECARE LTD,139.95,21/05/2019
Delivery Units,Adults and Health,Other Agencies - Third Party P,90166566,ALINA HOMECARE LTD,201.21,21/05/2019
Delivery Units,Adults and Health,Other Agencies - Third Party P,90166223,ALINA HOMECARE LTD,437.29,21/05/2019
Delivery Units,Adults and Health,Other Agencies - Third Party P,90166241,ALINA HOMECARE LTD,275.58,21/05/2019
Delivery Units,Adults and Health,Other Agencies - Third Party P,90166734,ALINA HOMECARE LTD,91.84,21/05/2019
Delivery Units,Adults and Health,Other Agencies - Third Party P,90166322,ALINA HOMECARE LTD,91.84,21/05/2019
Delivery Units,Adults and Health,Other Agencies - Third Party P,90166437,ALINA HOMECARE LTD,34.98,21/05/2019
Delivery Units,Adults and Health,Other Agencies - Third Party P,90166470,ALINA HOMECARE LTD,262.46,21/05/2019
Delivery Units,Adults and Health,Other Agencies - Third Party P,90166406,ALINA HOMECARE LTD,240.60,21/05/2019
Delivery Units,Adults and Health,Other Agencies - Third Party P,90162972,ALINA HOMECARE LTD,153.09,21/05/2019
Delivery Units,Adults and Health,Other Agencies - Third Party P,90166663,ALINA HOMECARE LTD,209.96,21/05/2019
Delivery Units,Adults and Health,Other Agencies - Third Party P,90163463,ALINA HOMECARE LTD,310.54,21/05/2019
Delivery Units,Adults and Health,Other Agencies - Third Party P,90166707,ALINA HOMECARE LTD,65.61,21/05/2019
Delivery Units,Adults and Health,Other Agencies - Third Party P,90166608,ALINA HOMECARE LTD,104.96,21/05/2019
Delivery Units,Adults and Health,Other Agencies - Third Party P,90166688,ALINA HOMECARE LTD,122.43,21/05/2019
Delivery Units,Adults and Health,Other Agencies - Third Party P,90161623,ALINA HOMECARE LTD,271.14,21/05/2019
Delivery Units,Adults and Health,Other Agencies - Third Party P,90166361,ALINA HOMECARE LTD,188.05,21/05/2019
Delivery Units,Adults and Health,Other Agencies - Third Party P,90166564,ALINA HOMECARE LTD,244.86,21/05/2019
Delivery Units,Adults and Health,Other Agencies - Third Party P,90166383,ALINA HOMECARE LTD,139.96,21/05/2019
Delivery Units,Adults and Health,Other Agencies - Third Party P,90161619,ALINA HOMECARE LTD,244.86,21/05/2019
Delivery Units,Adults and Health,Other Agencies - Third Party P,90161622,ALINA HOMECARE LTD,153.09,21/05/2019
Delivery Units,Adults and Health,Other Agencies - Third Party P,90166471,ALINA HOMECARE LTD,529.07,21/05/2019
Delivery Units,Adults and Health,Other Agencies - Third Party P,90166354,ALINA HOMECARE LTD,122.43,21/05/2019
Delivery Units,Adults and Health,Other Agencies - Third Party P,90166738,ALINA HOMECARE LTD,262.46,21/05/2019
Delivery Units,Adults and Health,Other Agencies - Third Party P,90166769,ALINA HOMECARE LTD,559.79,21/05/2019
Delivery Units,Adults and Health,Other Agencies - Third Party P,90166696,ALINA HOMECARE LTD,56.84,21/05/2019
Delivery Units,Adults and Health,Other Agencies - Third Party P,90166551,ALINA HOMECARE LTD,65.60,21/05/2019
Delivery Units,Adults and Health,Other Agencies - Third Party P,90166390,ALINA HOMECARE LTD,166.21,21/05/2019
Delivery Units,Adults and Health,Other Agencies - Third Party P,90165829,ALINA HOMECARE LTD,109.32,21/05/2019
Delivery Units,Adults and Health,Other Agencies - Third Party P,90163194,ALINA HOMECARE LTD,218.64,21/05/2019
Delivery Units,Adults and Health,Other Agencies - Third Party P,90165894,ALINA HOMECARE LTD,253.61,21/05/2019
Delivery Units,Adults and Health,Other Agencies - Third Party P,90165921,ALINA HOMECARE LTD,209.98,21/05/2019
Delivery Units,Adults and Health,Other Agencies - Third Party P,90162965,ALINA HOMECARE LTD,113.74,21/05/2019
Delivery Units,Adults and Health,Other Agencies - Third Party P,90166708,ALINA HOMECARE LTD,87.46,21/05/2019
Delivery Units,Adults and Health,Other Agencies - Third Party P,90165837,ALINA HOMECARE LTD,61.25,21/05/2019
Delivery Units,Adults and Health,Other Agencies - Third Party P,90166104,ALINA HOMECARE LTD,113.68,21/05/2019
Delivery Units,Adults and Health,Other Agencies - Third Party P,90166670,ALINA HOMECARE LTD,65.60,21/05/2019
Delivery Units,Adults and Health,Other Agencies - Third Party P,90166214,ALINA HOMECARE LTD,336.77,21/05/2019
Delivery Units,Adults and Health,Other Agencies - Third Party P,90165922,ALINA HOMECARE LTD,144.31,21/05/2019
Delivery Units,Adults and Health,Other Agencies - Third Party P,90166136,ALINA HOMECARE LTD,288.66,21/05/2019
Delivery Units,Adults and Health,Other Agencies - Third Party P,90165945,ALINA HOMECARE LTD,122.43,21/05/2019
Delivery Units,Adults and Health,Other Agencies - Third Party P,90163050,ALINA HOMECARE LTD,275.59,21/05/2019
Delivery Units,Adults and Health,Other Agencies - Third Party P,90163052,ALINA HOMECARE LTD,275.59,21/05/2019
Delivery Units,Adults and Health,Other Agencies - Third Party P,90166570,ALINA HOMECARE LTD,354.26,21/05/2019
Delivery Units,Adults and Health,Other Agencies - Third Party P,90166117,ALINA HOMECARE LTD,78.72,21/05/2019
Delivery Units,Adults and Health,Other Agencies - Third Party P,90166244,ALINA HOMECARE LTD,61.25,21/05/2019
Delivery Units,Adults and Health,Other Agencies - Third Party P,90166650,ALINA HOMECARE LTD,218.68,21/05/2019
Delivery Units,Adults and Health,Other Agencies - Third Party P,90165847,ALINA HOMECARE LTD,153.05,21/05/2019
Delivery Units,Adults and Health,Other Agencies - Third Party P,90165979,ALINA HOMECARE LTD,21.87,21/05/2019
Delivery Units,Adults and Health,Other Agencies - Third Party P,90166421,ALINA HOMECARE LTD,91.84,21/05/2019
Delivery Units,Adults and Health,Other Agencies - Third Party P,90166655,ALINA HOMECARE LTD,358.65,21/05/2019
Delivery Units,Adults and Health,Other Agencies - Third Party P,90166428,ALINA HOMECARE LTD,341.16,21/05/2019
Delivery Units,Adults and Health,Other Agencies - Third Party P,90166596,ALINA HOMECARE LTD,153.09,21/05/2019
Delivery Units,Adults and Health,Other Agencies - Third Party P,90164052,ALINA HOMECARE LTD,275.59,21/05/2019
Delivery Units,Adults and Health,Other Agencies - Third Party P,90166629,ALINA HOMECARE LTD,153.09,21/05/2019
Delivery Units,Adults and Health,Other Agencies - Third Party P,90164990,ALINA HOMECARE LTD,153.09,21/05/2019
Delivery Units,Adults and Health,Other Agencies - Third Party P,90166744,ALINA HOMECARE LTD,524.71,21/05/2019
Delivery Units,Adults and Health,Other Agencies - Third Party P,90161980,ALINA HOMECARE LTD,227.42,21/05/2019
Delivery Units,Adults and Health,Other Agencies - Third Party P,90161981,ALINA HOMECARE LTD,174.90,21/05/2019
Delivery Units,Adults and Health,Other Agencies - Third Party P,90161982,ALINA HOMECARE LTD,153.09,21/05/2019
Delivery Units,Adults and Health,Other Agencies - Third Party P,90161984,ALINA HOMECARE LTD,153.09,21/05/2019
Delivery Units,Adults and Health,Other Agencies - Third Party P,90161985,ALINA HOMECARE LTD,328.02,21/05/2019
Delivery Units,Adults and Health,Other Agencies - Third Party P,90161986,ALINA HOMECARE LTD,244.86,21/05/2019
Delivery Units,Adults and Health,Other Agencies - Third Party P,90161987,ALINA HOMECARE LTD,122.50,21/05/2019
Delivery Units,Adults and Health,Other Agencies - Third Party P,90161988,ALINA HOMECARE LTD,183.66,21/05/2019
Delivery Units,Adults and Health,Other Agencies - Third Party P,90161991,ALINA HOMECARE LTD,301.76,21/05/2019
Delivery Units,Adults and Health,Other Agencies - Third Party P,90161995,ALINA HOMECARE LTD,183.68,21/05/2019
Delivery Units,Adults and Health,Other Agencies - Third Party P,90161997,ALINA HOMECARE LTD,122.43,21/05/2019
Delivery Units,Adults and Health,Other Agencies - Third Party P,90161998,ALINA HOMECARE LTD,795.90,21/05/2019
Delivery Units,Adults and Health,Other Agencies - Third Party P,90161999,ALINA HOMECARE LTD,262.42,21/05/2019
Delivery Units,Adults and Health,Other Agencies - Third Party P,90162000,ALINA HOMECARE LTD,428.68,21/05/2019
Delivery Units,Adults and Health,Other Agencies - Third Party P,90162001,ALINA HOMECARE LTD,314.86,21/05/2019
Delivery Units,Adults and Health,Other Agencies - Third Party P,90162002,ALINA HOMECARE LTD,314.82,21/05/2019
Delivery Units,Adults and Health,Other Agencies - Third Party P,90162003,ALINA HOMECARE LTD,188.07,21/05/2019
Delivery Units,Adults and Health,Other Agencies - Third Party P,90162006,ALINA HOMECARE LTD,214.34,21/05/2019
Delivery Units,Adults and Health,Other Agencies - Third Party P,90162007,ALINA HOMECARE LTD,349.85,21/05/2019
Delivery Units,Adults and Health,Other Agencies - Third Party P,90162008,ALINA HOMECARE LTD,91.84,21/05/2019
Delivery Units,Adults and Health,Other Agencies - Third Party P,90162009,ALINA HOMECARE LTD,214.34,21/05/2019
Delivery Units,Adults and Health,Other Agencies - Third Party P,90162010,ALINA HOMECARE LTD,122.43,21/05/2019
Delivery Units,Adults and Health,Other Agencies - Third Party P,90162011,ALINA HOMECARE LTD,65.60,21/05/2019
Delivery Units,Adults and Health,Other Agencies - Third Party P,90162012,ALINA HOMECARE LTD,336.77,21/05/2019
Delivery Units,Adults and Health,Other Agencies - Third Party P,90162013,ALINA HOMECARE LTD,144.31,21/05/2019
Delivery Units,Adults and Health,Other Agencies - Third Party P,90162015,ALINA HOMECARE LTD,87.48,21/05/2019
Delivery Units,Adults and Health,Other Agencies - Third Party P,90162017,ALINA HOMECARE LTD,288.66,21/05/2019
Delivery Units,Adults and Health,Other Agencies - Third Party P,90162018,ALINA HOMECARE LTD,122.43,21/05/2019
Delivery Units,Adults and Health,Other Agencies - Third Party P,90162019,ALINA HOMECARE LTD,275.59,21/05/2019
Delivery Units,Adults and Health,Other Agencies - Third Party P,90162020,ALINA HOMECARE LTD,275.59,21/05/2019
Delivery Units,Adults and Health,Other Agencies - Third Party P,90162021,ALINA HOMECARE LTD,354.26,21/05/2019
Delivery Units,Adults and Health,Other Agencies - Third Party P,90162022,ALINA HOMECARE LTD,183.68,21/05/2019
Delivery Units,Adults and Health,Other Agencies - Third Party P,90162023,ALINA HOMECARE LTD,236.18,21/05/2019
Delivery Units,Adults and Health,Other Agencies - Third Party P,90162025,ALINA HOMECARE LTD,153.05,21/05/2019
Delivery Units,Adults and Health,Other Agencies - Third Party P,90162028,ALINA HOMECARE LTD,153.09,21/05/2019
Delivery Units,Adults and Health,Other Agencies - Third Party P,90162029,ALINA HOMECARE LTD,271.17,21/05/2019
Delivery Units,Adults and Health,Other Agencies - Third Party P,90162030,ALINA HOMECARE LTD,341.16,21/05/2019
Delivery Units,Adults and Health,Other Agencies - Third Party P,90162032,ALINA HOMECARE LTD,275.59,21/05/2019
Delivery Units,Adults and Health,Other Agencies - Third Party P,90162034,ALINA HOMECARE LTD,153.09,21/05/2019
Delivery Units,Adults and Health,Other Agencies - Third Party P,90162036,ALINA HOMECARE LTD,275.59,21/05/2019
Delivery Units,Adults and Health,Other Agencies - Third Party P,90162037,ALINA HOMECARE LTD,524.71,21/05/2019
Delivery Units,Adults and Health,Other Agencies - Third Party P,90162038,ALINA HOMECARE LTD,227.42,21/05/2019
Delivery Units,Adults and Health,Other Agencies - Third Party P,90162039,ALINA HOMECARE LTD,174.90,21/05/2019
Delivery Units,Adults and Health,Other Agencies - Third Party P,90162041,ALINA HOMECARE LTD,122.43,21/05/2019
Delivery Units,Adults and Health,Other Agencies - Third Party P,90162043,ALINA HOMECARE LTD,201.17,21/05/2019
Delivery Units,Adults and Health,Other Agencies - Third Party P,90162044,ALINA HOMECARE LTD,153.09,21/05/2019
Delivery Units,Adults and Health,Other Agencies - Third Party P,90162045,ALINA HOMECARE LTD,153.09,21/05/2019
Delivery Units,Adults and Health,Other Agencies - Third Party P,90162046,ALINA HOMECARE LTD,336.77,21/05/2019
Delivery Units,Adults and Health,Other Agencies - Third Party P,90162047,ALINA HOMECARE LTD,244.86,21/05/2019
Delivery Units,Adults and Health,Other Agencies - Third Party P,90162049,ALINA HOMECARE LTD,122.50,21/05/2019
Delivery Units,Adults and Health,Other Agencies - Third Party P,90162051,ALINA HOMECARE LTD,244.86,21/05/2019
Delivery Units,Adults and Health,Other Agencies - Third Party P,90162052,ALINA HOMECARE LTD,183.66,21/05/2019
Delivery Units,Adults and Health,Other Agencies - Third Party P,90162056,ALINA HOMECARE LTD,301.76,21/05/2019
Delivery Units,Adults and Health,Other Agencies - Third Party P,90162057,ALINA HOMECARE LTD,183.68,21/05/2019
Delivery Units,Adults and Health,Other Agencies - Third Party P,90162058,ALINA HOMECARE LTD,122.43,21/05/2019
Delivery Units,Adults and Health,Other Agencies - Third Party P,90162060,ALINA HOMECARE LTD,122.43,21/05/2019
Delivery Units,Adults and Health,Other Agencies - Third Party P,90162064,ALINA HOMECARE LTD,568.50,21/05/2019
Delivery Units,Adults and Health,Other Agencies - Third Party P,90162065,ALINA HOMECARE LTD,262.42,21/05/2019
Delivery Units,Adults and Health,Other Agencies - Third Party P,90162066,ALINA HOMECARE LTD,314.86,21/05/2019
Delivery Units,Adults and Health,Other Agencies - Third Party P,90162068,ALINA HOMECARE LTD,314.82,21/05/2019
Delivery Units,Adults and Health,Other Agencies - Third Party P,90162071,ALINA HOMECARE LTD,188.07,21/05/2019
Delivery Units,Adults and Health,Other Agencies - Third Party P,90162072,ALINA HOMECARE LTD,275.52,21/05/2019
Delivery Units,Adults and Health,Other Agencies - Third Party P,90162073,ALINA HOMECARE LTD,214.34,21/05/2019
Delivery Units,Adults and Health,Other Agencies - Third Party P,90162074,ALINA HOMECARE LTD,349.85,21/05/2019
Delivery Units,Adults and Health,Other Agencies - Third Party P,90162075,ALINA HOMECARE LTD,91.84,21/05/2019
Delivery Units,Adults and Health,Other Agencies - Third Party P,90162076,ALINA HOMECARE LTD,214.34,21/05/2019
Delivery Units,Adults and Health,Other Agencies - Third Party P,90162077,ALINA HOMECARE LTD,91.84,21/05/2019
Delivery Units,Adults and Health,Other Agencies - Third Party P,90162079,ALINA HOMECARE LTD,625.45,23/05/2019
Delivery Units,Adults and Health,Other Agencies - Third Party P,90162080,ALINA HOMECARE LTD,450.40,23/05/2019
Delivery Units,Adults and Health,Other Agencies - Third Party P,90162081,ALINA HOMECARE LTD,669.17,23/05/2019
Delivery Units,Adults and Health,Other Agencies - Third Party P,90162082,ALINA HOMECARE LTD,467.89,23/05/2019
Delivery Units,Adults and Health,Other Agencies - Third Party P,90162083,ALINA HOMECARE LTD,214.34,23/05/2019
Delivery Units,Adults and Health,Other Agencies - Third Party P,90162085,ALINA HOMECARE LTD,214.33,23/05/2019
Delivery Units,Adults and Health,Other Agencies - Third Party P,90162087,ALINA HOMECARE LTD,249.29,28/05/2019
Delivery Units,Adults and Health,Other Agencies - Third Party P,90162089,ALINA HOMECARE LTD,34.98,28/05/2019
Delivery Units,Adults and Health,Other Agencies - Third Party P,90162090,ALINA HOMECARE LTD,126.84,28/05/2019
Delivery Units,Adults and Health,Other Agencies - Third Party P,90162091,ALINA HOMECARE LTD,319.22,28/05/2019
Delivery Units,Adults and Health,Other Agencies - Third Party P,90162092,ALINA HOMECARE LTD,87.46,28/05/2019
Delivery Units,Adults and Health,Other Agencies - Third Party P,90162095,ALINA HOMECARE LTD,139.93,28/05/2019
Delivery Units,Adults and Health,Other Agencies - Third Party P,90162096,ALINA HOMECARE LTD,69.98,28/05/2019
Delivery Units,Adults and Health,Other Agencies - Third Party P,90162097,ALINA HOMECARE LTD,603.61,28/05/2019
Delivery Units,Adults and Health,Other Agencies - Third Party P,90162098,ALINA HOMECARE LTD,253.68,28/05/2019
Delivery Units,Adults and Health,Other Agencies - Third Party P,90162099,ALINA HOMECARE LTD,481.00,28/05/2019
Delivery Units,Adults and Health,Other Agencies - Third Party P,90162101,ALINA HOMECARE LTD,306.18,28/05/2019
Delivery Units,Adults and Health,Other Agencies - Third Party P,90162102,ALINA HOMECARE LTD,131.22,28/05/2019
Delivery Units,Adults and Health,Other Agencies - Third Party P,90162103,ALINA HOMECARE LTD,100.57,28/05/2019
Delivery Units,Adults and Health,Other Agencies - Third Party P,90162106,ALINA HOMECARE LTD,83.10,28/05/2019
Delivery Units,Adults and Health,Other Agencies - Third Party P,90162107,ALINA HOMECARE LTD,26.25,28/05/2019
Delivery Units,Adults and Health,Other Agencies - Third Party P,90162108,ALINA HOMECARE LTD,419.76,28/05/2019
Delivery Units,Adults and Health,Other Agencies - Third Party P,90162109,ALINA HOMECARE LTD,78.72,28/05/2019
Delivery Units,Adults and Health,Other Agencies - Third Party P,90162111,ALINA HOMECARE LTD,161.82,28/05/2019
Delivery Units,Adults and Health,Other Agencies - Third Party P,90162113,ALINA HOMECARE LTD,161.81,28/05/2019
Delivery Units,Adults and Health,Other Agencies - Third Party P,90162114,ALINA HOMECARE LTD,179.30,28/05/2019
Delivery Units,Adults and Health,Other Agencies - Third Party P,90162115,ALINA HOMECARE LTD,91.84,28/05/2019
Delivery Units,Adults and Health,Other Agencies - Third Party P,90162116,ALINA HOMECARE LTD,21.86,28/05/2019
Delivery Units,Adults and Health,Other Agencies - Third Party P,90162117,ALINA HOMECARE LTD,179.30,28/05/2019
Delivery Units,Adults and Health,Other Agencies - Third Party P,90162118,ALINA HOMECARE LTD,34.99,28/05/2019
Delivery Units,Adults and Health,Other Agencies - Third Party P,90162119,ALINA HOMECARE LTD,214.34,28/05/2019
Delivery Units,Adults and Health,Other Agencies - Third Party P,90162123,ALINA HOMECARE LTD,91.84,28/05/2019
Delivery Units,Adults and Health,Other Agencies - Third Party P,90162124,ALINA HOMECARE LTD,34.98,28/05/2019
Delivery Units,Adults and Health,Other Agencies - Third Party P,90162125,ALINA HOMECARE LTD,153.09,28/05/2019
Delivery Units,Adults and Health,Other Agencies - Third Party P,90162126,ALINA HOMECARE LTD,188.07,28/05/2019
Delivery Units,Adults and Health,Other Agencies - Third Party P,90162127,ALINA HOMECARE LTD,266.81,28/05/2019
Delivery Units,Adults and Health,Other Agencies - Third Party P,90162129,ALINA HOMECARE LTD,153.08,28/05/2019
Delivery Units,Adults and Health,Other Agencies - Third Party P,90162132,ALINA HOMECARE LTD,515.99,28/05/2019
Delivery Units,Adults and Health,Other Agencies - Third Party P,90162135,ALINA HOMECARE LTD,83.09,28/05/2019
Delivery Units,Adults and Health,Other Agencies - Third Party P,90162140,ALINA HOMECARE LTD,113.69,28/05/2019
Delivery Units,Adults and Health,Other Agencies - Third Party P,90162141,ALINA HOMECARE LTD,275.52,28/05/2019
Delivery Units,Adults and Health,Other Agencies - Third Party P,90162144,ALINA HOMECARE LTD,196.79,28/05/2019
Delivery Units,Adults and Health,Other Agencies - Third Party P,90162145,ALINA HOMECARE LTD,144.34,28/05/2019
Delivery Units,Adults and Health,Other Agencies - Third Party P,90162147,ALINA HOMECARE LTD,244.86,28/05/2019
Delivery Units,Adults and Health,Other Agencies - Third Party P,90162148,ALINA HOMECARE LTD,122.50,28/05/2019
Delivery Units,Adults and Health,Other Agencies - Third Party P,90162149,ALINA HOMECARE LTD,13.12,28/05/2019
Delivery Units,Adults and Health,Other Agencies - Third Party P,90162150,ALINA HOMECARE LTD,148.72,28/05/2019
Delivery Units,Adults and Health,Other Agencies - Third Party P,90162152,ALINA HOMECARE LTD,170.57,28/05/2019
Delivery Units,Adults and Health,Other Agencies - Third Party P,90162153,ALINA HOMECARE LTD,153.09,28/05/2019
Delivery Units,Adults and Health,Other Agencies - Third Party P,90162154,ALINA HOMECARE LTD,529.07,28/05/2019
Delivery Units,Adults and Health,Other Agencies - Third Party P,90162156,ALINA HOMECARE LTD,122.43,28/05/2019
Delivery Units,Adults and Health,Other Agencies - Third Party P,90162157,ALINA HOMECARE LTD,271.21,28/05/2019
Delivery Units,Adults and Health,Other Agencies - Third Party P,90162158,ALINA HOMECARE LTD,551.05,28/05/2019
Delivery Units,Adults and Health,Other Agencies - Third Party P,90162160,ALINA HOMECARE LTD,48.09,28/05/2019
Delivery Units,Adults and Health,Other Agencies - Third Party P,90162162,ALINA HOMECARE LTD,170.58,28/05/2019
Delivery Units,Adults and Health,Other Agencies - Third Party P,90162163,ALINA HOMECARE LTD,104.95,28/05/2019
Delivery Units,Adults and Health,Other Agencies - Third Party P,90162164,ALINA HOMECARE LTD,96.25,28/05/2019
Delivery Units,Adults and Health,Other Agencies - Third Party P,90162165,ALINA HOMECARE LTD,218.64,28/05/2019
Delivery Units,Adults and Health,Other Agencies - Third Party P,90162166,ALINA HOMECARE LTD,214.25,28/05/2019
Delivery Units,Adults and Health,Other Agencies - Third Party P,90162167,ALINA HOMECARE LTD,87.47,28/05/2019
Delivery Units,Adults and Health,Other Agencies - Third Party P,90162169,ALINA HOMECARE LTD,61.25,28/05/2019
Delivery Units,Adults and Health,Other Agencies - Third Party P,90162170,ALINA HOMECARE LTD,104.94,28/05/2019
Delivery Units,Adults and Health,Other Agencies - Third Party P,90162172,ALINA HOMECARE LTD,244.93,28/05/2019
Delivery Units,Adults and Health,Other Agencies - Third Party P,90162173,ALINA HOMECARE LTD,603.59,28/05/2019
Delivery Units,Adults and Health,Other Agencies - Third Party P,90165037,ALINA HOMECARE LTD,65.60,28/05/2019
Delivery Units,Adults and Health,Other Agencies - Third Party P,90165038,ALINA HOMECARE LTD,336.77,28/05/2019
Delivery Units,Adults and Health,Other Agencies - Third Party P,90165039,ALINA HOMECARE LTD,288.66,28/05/2019
Delivery Units,Adults and Health,Other Agencies - Third Party P,90165042,ALINA HOMECARE LTD,122.43,28/05/2019
Delivery Units,Adults and Health,Other Agencies - Third Party P,90165043,ALINA HOMECARE LTD,275.59,28/05/2019
Delivery Units,Adults and Health,Other Agencies - Third Party P,90165044,ALINA HOMECARE LTD,275.59,28/05/2019
Delivery Units,Adults and Health,Other Agencies - Third Party P,90165046,ALINA HOMECARE LTD,354.26,28/05/2019
Delivery Units,Adults and Health,Other Agencies - Third Party P,90165048,ALINA HOMECARE LTD,17.49,28/05/2019
Delivery Units,Adults and Health,Other Agencies - Third Party P,90165052,ALINA HOMECARE LTD,61.25,28/05/2019
Delivery Units,Adults and Health,Other Agencies - Third Party P,90165053,ALINA HOMECARE LTD,236.18,28/05/2019
Delivery Units,Adults and Health,Other Agencies - Third Party P,90165054,ALINA HOMECARE LTD,153.05,28/05/2019
Delivery Units,Adults and Health,Other Agencies - Third Party P,90165055,ALINA HOMECARE LTD,91.84,28/05/2019
Delivery Units,Adults and Health,Other Agencies - Third Party P,90165056,ALINA HOMECARE LTD,358.65,28/05/2019
Delivery Units,Adults and Health,Other Agencies - Third Party P,90165057,ALINA HOMECARE LTD,341.16,28/05/2019
Delivery Units,Adults and Health,Other Agencies - Third Party P,90165058,ALINA HOMECARE LTD,275.59,28/05/2019
Delivery Units,Adults and Health,Other Agencies - Third Party P,90165060,ALINA HOMECARE LTD,91.84,28/05/2019
Delivery Units,Adults and Health,Other Agencies - Third Party P,90165062,ALINA HOMECARE LTD,153.09,28/05/2019
Delivery Units,Adults and Health,Other Agencies - Third Party P,90165063,ALINA HOMECARE LTD,275.59,28/05/2019
Delivery Units,Adults and Health,Other Agencies - Third Party P,90165065,ALINA HOMECARE LTD,275.59,28/05/2019
Delivery Units,Adults and Health,Other Agencies - Third Party P,90165066,ALINA HOMECARE LTD,153.09,28/05/2019
Delivery Units,Adults and Health,Other Agencies - Third Party P,90165067,ALINA HOMECARE LTD,227.42,28/05/2019
Delivery Units,Adults and Health,Other Agencies - Third Party P,90165068,ALINA HOMECARE LTD,174.90,28/05/2019
Delivery Units,Adults and Health,Other Agencies - Third Party P,90165070,ALINA HOMECARE LTD,153.09,28/05/2019
Delivery Units,Adults and Health,Other Agencies - Third Party P,90165071,ALINA HOMECARE LTD,328.02,28/05/2019
Delivery Units,Adults and Health,Other Agencies - Third Party P,90165072,ALINA HOMECARE LTD,244.86,28/05/2019
Delivery Units,Adults and Health,Other Agencies - Third Party P,90165073,ALINA HOMECARE LTD,244.86,28/05/2019
Delivery Units,Adults and Health,Other Agencies - Third Party P,90165074,ALINA HOMECARE LTD,301.76,28/05/2019
Delivery Units,Adults and Health,Other Agencies - Third Party P,90165075,ALINA HOMECARE LTD,183.68,28/05/2019
Delivery Units,Adults and Health,Other Agencies - Third Party P,90165077,ALINA HOMECARE LTD,122.43,28/05/2019
Delivery Units,Adults and Health,Other Agencies - Third Party P,90165078,ALINA HOMECARE LTD,795.90,28/05/2019
Delivery Units,Adults and Health,Other Agencies - Third Party P,90165079,ALINA HOMECARE LTD,262.42,28/05/2019
Delivery Units,Adults and Health,Other Agencies - Third Party P,90165081,ALINA HOMECARE LTD,428.68,28/05/2019
Delivery Units,Adults and Health,Other Agencies - Third Party P,90165083,ALINA HOMECARE LTD,314.86,28/05/2019
Delivery Units,Adults and Health,Other Agencies - Third Party P,90165084,ALINA HOMECARE LTD,314.82,28/05/2019
Delivery Units,Adults and Health,Other Agencies - Third Party P,90165086,ALINA HOMECARE LTD,188.07,28/05/2019
Delivery Units,Adults and Health,Other Agencies - Third Party P,90165087,ALINA HOMECARE LTD,214.34,28/05/2019
Delivery Units,Adults and Health,Other Agencies - Third Party P,90165088,ALINA HOMECARE LTD,349.85,28/05/2019
Delivery Units,Adults and Health,Other Agencies - Third Party P,90165089,ALINA HOMECARE LTD,91.84,28/05/2019
Delivery Units,Adults and Health,Other Agencies - Third Party P,90165090,ALINA HOMECARE LTD,218.73,28/05/2019
Delivery Units,Adults and Health,Other Agencies - Third Party P,90165091,ALINA HOMECARE LTD,214.34,28/05/2019
Delivery Units,Adults and Health,Other Agencies - Third Party P,90165092,ALINA HOMECARE LTD,91.84,28/05/2019
Delivery Units,Adults and Health,Other Agencies - Third Party P,90165093,ALINA HOMECARE LTD,122.43,28/05/2019
Delivery Units,Adults and Health,Other Agencies - Third Party P,90165097,ALINA HOMECARE LTD,148.71,29/05/2019
Delivery Units,Adults and Health,Other Agencies - Third Party P,90165098,ALINA HOMECARE LTD,85.27,29/05/2019
Delivery Units,Adults and Health,Other Agencies - Third Party P,90165100,ALINA HOMECARE LTD,262.40,29/05/2019
Delivery Units,Adults and Health,Other Agencies - Third Party P,90165103,ALINA HOMECARE LTD,428.50,29/05/2019
Delivery Units,Adults and Health,Other Agencies - Third Party P,90165105,ALINA HOMECARE LTD,54.65,29/05/2019
Delivery Units,Adults and Health,Other Agencies - Third Party P,90165106,ALINA HOMECARE LTD,37.16,29/05/2019
Delivery Units,Adults and Health,Other Agencies - Third Party P,90165107,ALINA HOMECARE LTD,258.03,29/05/2019
Delivery Units,Adults and Health,Other Agencies - Third Party P,90165109,ALINA HOMECARE LTD,142.14,29/05/2019
Delivery Units,Adults and Health,Other Agencies - Third Party P,90165110,ALINA HOMECARE LTD,98.39,29/05/2019
Delivery Units,Adults and Health,Other Agencies - Third Party P,90165111,ALINA HOMECARE LTD,164.01,29/05/2019
Delivery Units,Adults and Health,Other Agencies - Third Party P,90165112,ALINA HOMECARE LTD,290.86,29/05/2019
Delivery Units,Adults and Health,Other Agencies - Third Party P,90165113,ALINA HOMECARE LTD,78.72,29/05/2019
Delivery Units,Adults and Health,Other Agencies - Third Party P,90165114,ALINA HOMECARE LTD,236.18,29/05/2019
Delivery Units,Adults and Health,Other Agencies - Third Party P,90165115,ALINA HOMECARE LTD,295.24,29/05/2019
Delivery Units,Adults and Health,Other Agencies - Third Party P,90165117,ALINA HOMECARE LTD,83.10,29/05/2019
Delivery Units,Adults and Health,Other Agencies - Third Party P,90165119,ALINA HOMECARE LTD,161.81,29/05/2019
Delivery Units,Adults and Health,Other Agencies - Third Party P,90165120,ALINA HOMECARE LTD,15.30,29/05/2019
Delivery Units,Adults and Health,Other Agencies - Third Party P,90165121,ALINA HOMECARE LTD,253.65,29/05/2019
Delivery Units,Adults and Health,Other Agencies - Third Party P,90165123,ALINA HOMECARE LTD,198.99,29/05/2019
Delivery Units,Adults and Health,Other Agencies - Third Party P,90165125,ALINA HOMECARE LTD,94.02,29/05/2019
Delivery Units,Adults and Health,Other Agencies - Third Party P,90165126,ALINA HOMECARE LTD,196.79,29/05/2019
Delivery Units,Adults and Health,Other Agencies - Third Party P,90165127,ALINA HOMECARE LTD,34.98,29/05/2019
Delivery Units,Adults and Health,Other Agencies - Third Party P,90165128,ALINA HOMECARE LTD,253.60,29/05/2019
Delivery Units,Adults and Health,Other Agencies - Third Party P,90165129,ALINA HOMECARE LTD,286.49,29/05/2019
Delivery Units,Adults and Health,Other Agencies - Third Party P,90165131,ALINA HOMECARE LTD,118.05,29/05/2019
Delivery Units,Adults and Health,Other Agencies - Third Party P,90165133,ALINA HOMECARE LTD,122.45,29/05/2019
Delivery Units,Adults and Health,Other Agencies - Third Party P,90165135,ALINA HOMECARE LTD,286.45,29/05/2019
Delivery Units,Adults and Health,Other Agencies - Third Party P,90165136,ALINA HOMECARE LTD,30.62,29/05/2019
Delivery Units,Adults and Health,Other Agencies - Third Party P,90165137,ALINA HOMECARE LTD,118.10,29/05/2019
Delivery Units,Adults and Health,Other Agencies - Third Party P,90165138,ALINA HOMECARE LTD,843.93,29/05/2019
Delivery Units,Adults and Health,Other Agencies - Third Party P,90165141,ALINA HOMECARE LTD,159.64,29/05/2019
Delivery Units,Adults and Health,Other Agencies - Third Party P,90165144,ALINA HOMECARE LTD,225.25,29/05/2019
Delivery Units,Adults and Health,Other Agencies - Third Party P,90165145,ALINA HOMECARE LTD,124.68,29/05/2019
Delivery Units,Adults and Health,Other Agencies - Third Party P,90165148,ALINA HOMECARE LTD,94.01,29/05/2019
Delivery Units,Adults and Health,Other Agencies - Third Party P,90165149,ALINA HOMECARE LTD,229.63,29/05/2019
Delivery Units,Adults and Health,Other Agencies - Third Party P,90165150,ALINA HOMECARE LTD,328.01,29/05/2019
Delivery Units,Adults and Health,Other Agencies - Third Party P,90165151,ALINA HOMECARE LTD,196.79,29/05/2019
Delivery Units,Adults and Health,Other Agencies - Third Party P,90165152,ALINA HOMECARE LTD,26.24,29/05/2019
Delivery Units,Adults and Health,Other Agencies - Third Party P,90165153,ALINA HOMECARE LTD,550.91,29/05/2019
Delivery Units,Adults and Health,Other Agencies - Third Party P,90165154,ALINA HOMECARE LTD,343.25,29/05/2019
Delivery Units,Adults and Health,Other Agencies - Third Party P,90165155,ALINA HOMECARE LTD,98.39,29/05/2019
Delivery Units,Adults and Health,Other Agencies - Third Party P,90165156,ALINA HOMECARE LTD,229.62,29/05/2019
Delivery Units,Adults and Health,Other Agencies - Third Party P,90165157,ALINA HOMECARE LTD,651.55,29/05/2019
Delivery Units,Adults and Health,Other Agencies - Third Party P,90165159,ALINA HOMECARE LTD,124.62,29/05/2019
Delivery Units,Adults and Health,Other Agencies - Third Party P,90165161,ALINA HOMECARE LTD,131.17,29/05/2019
Delivery Units,Adults and Health,Other Agencies - Third Party P,90165162,ALINA HOMECARE LTD,443.81,29/05/2019
Delivery Units,Adults and Health,Other Agencies - Third Party P,90165163,ALINA HOMECARE LTD,658.23,29/05/2019
Delivery Units,Adults and Health,Other Agencies - Third Party P,90165164,ALINA HOMECARE LTD,131.17,29/05/2019
Delivery Units,Adults and Health,Other Agencies - Third Party P,90165165,ALINA HOMECARE LTD,98.39,29/05/2019
Delivery Units,Adults and Health,Other Agencies - Third Party P,90165166,ALINA HOMECARE LTD,170.56,29/05/2019
Delivery Units,Adults and Health,Other Agencies - Third Party P,90165167,ALINA HOMECARE LTD,74.33,29/05/2019
Delivery Units,Adults and Health,Other Agencies - Third Party P,90165168,ALINA HOMECARE LTD,174.92,29/05/2019
Delivery Units,Adults and Health,Other Agencies - Third Party P,90165172,ALINA HOMECARE LTD,98.38,29/05/2019
Delivery Units,Adults and Health,Other Agencies - Third Party P,90165174,ALINA HOMECARE LTD,290.81,29/05/2019
Delivery Units,Adults and Health,Other Agencies - Third Party P,90165175,ALINA HOMECARE LTD,288.64,29/05/2019
Delivery Units,Adults and Health,Other Agencies - Third Party P,90165176,ALINA HOMECARE LTD,295.25,29/05/2019
Delivery Units,Adults and Health,Other Agencies - Third Party P,90165179,ALINA HOMECARE LTD,380.50,29/05/2019
Delivery Units,Adults and Health,Other Agencies - Third Party P,90165180,ALINA HOMECARE LTD,306.14,29/05/2019
Delivery Units,Adults and Health,Other Agencies - Third Party P,90165181,ALINA HOMECARE LTD,164.01,29/05/2019
Delivery Units,Adults and Health,Other Agencies - Third Party P,90165183,ALINA HOMECARE LTD,214.27,29/05/2019
Delivery Units,Adults and Health,Other Agencies - Third Party P,90165184,ALINA HOMECARE LTD,65.62,29/05/2019
Delivery Units,Adults and Health,Other Agencies - Third Party P,90165187,ALINA HOMECARE LTD,196.79,29/05/2019
Delivery Units,Adults and Health,Other Agencies - Third Party P,90165190,ALINA HOMECARE LTD,131.17,29/05/2019
Delivery Units,Adults and Health,Other Agencies - Third Party P,90165191,ALINA HOMECARE LTD,360.80,29/05/2019
Delivery Units,Adults and Health,Other Agencies - Third Party P,90165192,ALINA HOMECARE LTD,345.44,29/05/2019
Delivery Units,Adults and Health,Other Agencies - Third Party P,90165193,ALINA HOMECARE LTD,131.17,29/05/2019
Delivery Units,Adults and Health,Other Agencies - Third Party P,90165194,ALINA HOMECARE LTD,65.62,29/05/2019
Delivery Units,Adults and Health,Other Agencies - Third Party P,90165196,ALINA HOMECARE LTD,164.01,29/05/2019
Delivery Units,Adults and Health,Other Agencies - Third Party P,90165197,ALINA HOMECARE LTD,198.99,29/05/2019
Delivery Units,Adults and Health,Other Agencies - Third Party P,90165198,ALINA HOMECARE LTD,321.40,29/05/2019
Delivery Units,Adults and Health,Other Agencies - Third Party P,90165199,ALINA HOMECARE LTD,168.34,29/05/2019
Delivery Units,Adults and Health,Other Agencies - Third Party P,90165200,ALINA HOMECARE LTD,72.15,29/05/2019
Delivery Units,Adults and Health,Other Agencies - Third Party P,90165201,ALINA HOMECARE LTD,369.51,29/05/2019
Delivery Units,Adults and Health,Other Agencies - Third Party P,90165204,ALINA HOMECARE LTD,164.01,29/05/2019
Delivery Units,Adults and Health,Other Agencies - Third Party P,90165205,ALINA HOMECARE LTD,262.35,29/05/2019
Delivery Units,Adults and Health,Other Agencies - Third Party P,90165206,ALINA HOMECARE LTD,34.98,29/05/2019
Delivery Units,Adults and Health,Other Agencies - Third Party P,90165207,ALINA HOMECARE LTD,98.39,29/05/2019
Delivery Units,Adults and Health,Other Agencies - Third Party P,90165208,ALINA HOMECARE LTD,352.05,29/05/2019
Delivery Units,Adults and Health,Other Agencies - Third Party P,90165209,ALINA HOMECARE LTD,131.17,29/05/2019
Delivery Units,Adults and Health,Other Agencies - Third Party P,90165213,ALINA HOMECARE LTD,262.34,29/05/2019
Delivery Units,Adults and Health,Other Agencies - Third Party P,90165214,ALINA HOMECARE LTD,192.38,29/05/2019
Delivery Units,Adults and Health,Other Agencies - Third Party P,90165215,ALINA HOMECARE LTD,568.41,29/05/2019
Delivery Units,Adults and Health,Other Agencies - Third Party P,90165217,ALINA HOMECARE LTD,164.01,29/05/2019
Delivery Units,Adults and Health,Other Agencies - Third Party P,90165218,ALINA HOMECARE LTD,231.84,29/05/2019
Delivery Units,Adults and Health,Other Agencies - Third Party P,90165219,ALINA HOMECARE LTD,233.93,29/05/2019
Delivery Units,Adults and Health,Other Agencies - Third Party P,90165223,ALINA HOMECARE LTD,131.17,29/05/2019
Delivery Units,Adults and Health,Other Agencies - Third Party P,90165224,ALINA HOMECARE LTD,295.25,29/05/2019
Delivery Units,Adults and Health,Other Agencies - Third Party P,90165225,ALINA HOMECARE LTD,295.25,29/05/2019
Delivery Units,Adults and Health,Other Agencies - Third Party P,90165226,ALINA HOMECARE LTD,244.89,29/05/2019
Delivery Units,Adults and Health,Other Agencies - Third Party P,90165228,ALINA HOMECARE LTD,229.63,29/05/2019
Delivery Units,Adults and Health,Other Agencies - Third Party P,90165232,ALINA HOMECARE LTD,229.63,29/05/2019
Delivery Units,Adults and Health,Other Agencies - Third Party P,90165235,ALINA HOMECARE LTD,459.26,29/05/2019
Delivery Units,Adults and Health,Other Agencies - Third Party P,90165632,ALINA HOMECARE LTD,363.01,29/05/2019
Delivery Units,Adults and Health,Other Agencies - Third Party P,90165633,ALINA HOMECARE LTD,262.34,29/05/2019
Delivery Units,Adults and Health,Other Agencies - Third Party P,90165634,ALINA HOMECARE LTD,131.24,29/05/2019
Delivery Units,Adults and Health,Other Agencies - Third Party P,90165635,ALINA HOMECARE LTD,378.29,29/05/2019
Delivery Units,Adults and Health,Other Agencies - Third Party P,90166833,ALINA HOMECARE LTD,98.39,29/05/2019
Delivery Units,Adults and Health,Other Agencies - Third Party P,90166834,ALINA HOMECARE LTD,721.74,29/05/2019
Delivery Units,Adults and Health,Other Agencies - Third Party P,90166835,AMRON PREMIER CARE,"2,508.90",02/05/2019
Delivery Units,Adults and Health,Other Agencies - Third Party P,90166838,AN DIANDAN HOUSE,"18,945.84",02/05/2019
Delivery Units,Adults and Health,Other Agencies - Third Party P,90166840,ANASTASIA LODGE,"2,800.00",02/05/2019
Delivery Units,Adults and Health,Other Agencies - Third Party P,90166842,ANASTASIA LODGE,"3,600.00",02/05/2019
Delivery Units,Adults and Health,Other Agencies - Third Party P,90166843,ANASTASIA LODGE,"3,600.00",22/05/2019
Delivery Units,Adults and Health,Other Agencies - Third Party P,90166845,ANASTASIA LODGE,"2,800.00",22/05/2019
Delivery Units,Adults and Health,Other Agencies - Third Party P,90166847,APPLE TREE COURT CARE HOME,"2,973.21",13/05/2019
Delivery Units,Adults and Health,Other Agencies - Third Party P,90166849,APPLE TREE COURT CARE HOME,"4,714.29",13/05/2019
Delivery Units,Adults and Health,Other Agencies - Third Party P,90166850,APPLE TREE COURT CARE HOME,"3,642.86",13/05/2019
Delivery Units,Adults and Health,Other Agencies - Third Party P,90166851,APPLE TREE COURT CARE HOME,"2,322.17",13/05/2019
Delivery Units,Adults and Health,Other Agencies - Third Party P,90166852,APPLE TREE COURT CARE HOME,"2,571.43",13/05/2019
Delivery Units,Adults and Health,Other Agencies - Third Party P,90166853,APPLE TREE COURT CARE HOME,"3,642.86",13/05/2019
Delivery Units,Adults and Health,Other Agencies - Third Party P,90166854,APPLE TREE COURT CARE HOME,"3,642.86",13/05/2019
Delivery Units,Adults and Health,Other Agencies - Third Party P,90166855,APPLE TREE COURT CARE HOME,"3,764.29",22/05/2019
Delivery Units,Adults and Health,Other Agencies - Third Party P,90166856,APPLE TREE COURT CARE HOME,"3,764.29",22/05/2019
Delivery Units,Adults and Health,Other Agencies - Third Party P,90166857,APPLE TREE COURT CARE HOME,"4,440.11",22/05/2019
Delivery Units,Adults and Health,Other Agencies - Third Party P,90166860,APPLE TREE COURT CARE HOME,"3,072.32",22/05/2019
Delivery Units,Adults and Health,Other Agencies - Third Party P,90166862,APPLE TREE COURT CARE HOME,"4,871.43",22/05/2019
Delivery Units,Adults and Health,Other Agencies - Third Party P,90166863,APPLE TREE COURT CARE HOME,"3,764.29",22/05/2019
Delivery Units,Adults and Health,Other Agencies - Third Party P,90166865,APPLE TREE COURT CARE HOME,"2,657.14",22/05/2019
Delivery Units,Adults and Health,Other Agencies - Third Party P,90166866,APPLE TREE COURT CARE HOME,"2,399.58",22/05/2019
Delivery Units,Adults and Health,Other Agencies - Third Party P,90166867,AREA 51 EDUCATION LTD,922.00,15/05/2019
Delivery Units,Adults and Health,Other Agencies - Third Party P,90166868,AREA 51 EDUCATION LTD,922.00,15/05/2019
Delivery Units,Adults and Health,Other Agencies - Third Party P,90166870,AREA 51 EDUCATION LTD,645.40,15/05/2019
Delivery Units,Adults and Health,Other Agencies - Third Party P,90166871,ASH COURT CARE CENTRE,"2,965.03",02/05/2019
Delivery Units,Adults and Health,Other Agencies - Third Party P,90166873,ASHFIELDS RESIDENTIAL CARE HOME,"2,373.71",02/05/2019
Delivery Units,Adults and Health,Other Agencies - Third Party P,90166875,ASHFIELDS RESIDENTIAL CARE HOME,"2,550.86",02/05/2019
Delivery Units,Adults and Health,Other Agencies - Third Party P,90166877,ASHFIELDS RESIDENTIAL CARE HOME,"2,550.86",02/05/2019
Delivery Units,Adults and Health,Other Agencies - Third Party P,90166878,ASHFIELDS RESIDENTIAL CARE HOME,"2,550.86",02/05/2019
Delivery Units,Adults and Health,Other Agencies - Third Party P,90166879,ASHFIELDS RESIDENTIAL CARE HOME,"2,550.86",02/05/2019
Delivery Units,Adults and Health,Other Agencies - Third Party P,90166880,ASHFIELDS RESIDENTIAL CARE HOME,"2,550.86",02/05/2019
Delivery Units,Adults and Health,Other Agencies - Third Party P,90166882,ASHTON LODGE CARE CENTRE,"3,094.62",02/05/2019
Delivery Units,Adults and Health,Other Agencies - Third Party P,90166883,ASHTON LODGE CARE CENTRE,"3,467.91",02/05/2019
Delivery Units,Adults and Health,Other Agencies - Third Party P,90166886,ASHTON LODGE CARE CENTRE,"3,393.60",02/05/2019
Delivery Units,Adults and Health,Other Agencies - Third Party P,90166888,ASHTON LODGE CARE CENTRE,"4,036.46",02/05/2019
Delivery Units,Adults and Health,Other Agencies - Third Party P,90166889,ASHTON LODGE CARE CENTRE,"3,454.33",02/05/2019
Delivery Units,Adults and Health,Other Agencies - Third Party P,90166890,ASHTON LODGE CARE CENTRE,"3,249.77",02/05/2019
Delivery Units,Adults and Health,Other Agencies - Third Party P,90166891,ASHTON LODGE CARE CENTRE,"3,708.09",02/05/2019
Delivery Units,Adults and Health,Other Agencies - Third Party P,90166892,ASHTON LODGE CARE CENTRE,"3,686.01",02/05/2019
Delivery Units,Adults and Health,Other Agencies - Third Party P,90166893,ASHTON LODGE CARE CENTRE,"2,529.60",02/05/2019
Delivery Units,Adults and Health,Other Agencies - Third Party P,90166894,ASHTON LODGE CARE CENTRE,"3,271.84",02/05/2019
Delivery Units,Adults and Health,Other Agencies - Third Party P,90166895,ASHTON LODGE CARE CENTRE,"3,467.91",02/05/2019
Delivery Units,Adults and Health,Other Agencies - Third Party P,90166896,ASHTON LODGE CARE CENTRE,"3,026.44",02/05/2019
Delivery Units,Adults and Health,Other Agencies - Third Party P,90166897,ASHTON LODGE CARE CENTRE,"3,027.51",02/05/2019
Delivery Units,Adults and Health,Other Agencies - Third Party P,90166902,ASHTON LODGE CARE CENTRE,"3,031.67",02/05/2019
Delivery Units,Adults and Health,Other Agencies - Third Party P,90166903,ASHTON LODGE CARE CENTRE,"3,393.60",02/05/2019
Delivery Units,Adults and Health,Other Agencies - Third Party P,90166904,ASHTON LODGE CARE CENTRE,"2,801.61",02/05/2019
Delivery Units,Adults and Health,Other Agencies - Third Party P,90166905,ASHTON LODGE CARE CENTRE,"3,621.21",02/05/2019
Delivery Units,Adults and Health,Other Agencies - Third Party P,90166906,ASHTON LODGE CARE CENTRE,"3,031.67",02/05/2019
Delivery Units,Adults and Health,Other Agencies - Third Party P,90166907,ASHTON LODGE CARE CENTRE,"3,393.60",02/05/2019
Delivery Units,Adults and Health,Other Agencies - Third Party P,90166908,ASHTON LODGE CARE CENTRE,"3,489.94",02/05/2019
Delivery Units,Adults and Health,Other Agencies - Third Party P,90166909,ASHTON LODGE CARE CENTRE,"3,031.67",02/05/2019
Delivery Units,Adults and Health,Other Agencies - Third Party P,90166910,ASHTON LODGE CARE CENTRE,"2,801.61",02/05/2019
Delivery Units,Adults and Health,Other Agencies - Third Party P,90166913,ASHTON LODGE CARE CENTRE,"3,086.96",02/05/2019
Delivery Units,Adults and Health,Other Agencies - Third Party P,90166914,ASHTON LODGE CARE CENTRE,"2,803.29",02/05/2019
Delivery Units,Adults and Health,Other Agencies - Third Party P,90166915,ASHTON LODGE CARE CENTRE,"3,393.60",02/05/2019
Delivery Units,Adults and Health,Other Agencies - Third Party P,90166918,ASHTON LODGE CARE CENTRE,"3,244.54",02/05/2019
Delivery Units,Adults and Health,Other Agencies - Third Party P,90166919,ASHTON LODGE CARE CENTRE,"2,892.30",02/05/2019
Delivery Units,Adults and Health,Other Agencies - Third Party P,90166920,ASHTON LODGE CARE CENTRE,"4,108.71",02/05/2019
Delivery Units,Adults and Health,Other Agencies - Third Party P,90166922,ASHTON LODGE CARE CENTRE,"4,122.26",02/05/2019
Delivery Units,Adults and Health,Other Agencies - Third Party P,90166923,ASHTON LODGE CARE CENTRE,"4,036.46",15/05/2019
Delivery Units,Adults and Health,Other Agencies - Third Party P,90166926,ASHTON LODGE CARE CENTRE,"4,245.67",23/05/2019
Delivery Units,Adults and Health,Other Agencies - Third Party P,90166929,ASHTON LODGE CARE CENTRE,"3,808.88",23/05/2019
Delivery Units,Adults and Health,Other Agencies - Third Party P,90166930,ASHTON LODGE CARE CENTRE,"3,583.51",23/05/2019
Delivery Units,Adults and Health,Other Agencies - Third Party P,90166932,ASHTON LODGE CARE CENTRE,"3,380.90",23/05/2019
Delivery Units,Adults and Health,Other Agencies - Third Party P,90168124,ASHTON LODGE CARE CENTRE,"3,569.47",23/05/2019
Delivery Units,Adults and Health,Other Agencies - Third Party P,90168127,ASHTON LODGE CARE CENTRE,"2,988.71",23/05/2019
Delivery Units,Adults and Health,Other Agencies - Third Party P,90168128,ASHTON LODGE CARE CENTRE,"3,189.86",23/05/2019
Delivery Units,Adults and Health,Other Agencies - Third Party P,90168129,ASHTON LODGE CARE CENTRE,"3,127.32",23/05/2019
Delivery Units,Adults and Health,Other Agencies - Third Party P,90168132,ASHTON LODGE CARE CENTRE,"2,896.73",23/05/2019
Delivery Units,Adults and Health,Other Agencies - Third Party P,90168133,ASHTON LODGE CARE CENTRE,"3,506.72",23/05/2019
Delivery Units,Adults and Health,Other Agencies - Third Party P,90168134,ASHTON LODGE CARE CENTRE,"3,506.72",23/05/2019
Delivery Units,Adults and Health,Other Agencies - Third Party P,90168135,ASHTON LODGE CARE CENTRE,"3,506.72",23/05/2019
Delivery Units,Adults and Health,Other Agencies - Third Party P,90168136,ASHTON LODGE CARE CENTRE,"3,831.69",23/05/2019
Delivery Units,Adults and Health,Other Agencies - Third Party P,90168138,ASHTON LODGE CARE CENTRE,"3,132.73",23/05/2019
Delivery Units,Adults and Health,Other Agencies - Third Party P,90168139,ASHTON LODGE CARE CENTRE,"2,895.00",23/05/2019
Delivery Units,Adults and Health,Other Agencies - Third Party P,90168141,ASHTON LODGE CARE CENTRE,"4,171.01",23/05/2019
Delivery Units,Adults and Health,Other Agencies - Third Party P,90168142,ASHTON LODGE CARE CENTRE,"4,259.67",23/05/2019
Delivery Units,Adults and Health,Other Agencies - Third Party P,90168143,ASHTON LODGE CARE CENTRE,"2,895.00",23/05/2019
Delivery Units,Adults and Health,Other Agencies - Third Party P,90168144,ASHTON LODGE CARE CENTRE,"3,358.10",23/05/2019
Delivery Units,Adults and Health,Other Agencies - Third Party P,90168145,ASHTON LODGE CARE CENTRE,"2,613.92",23/05/2019
Delivery Units,Adults and Health,Other Agencies - Third Party P,90168146,ASHTON LODGE CARE CENTRE,"3,352.69",23/05/2019
Delivery Units,Adults and Health,Other Agencies - Third Party P,90168147,ASHTON LODGE CARE CENTRE,"4,171.01",23/05/2019
Delivery Units,Adults and Health,Other Agencies - Third Party P,90168148,ASHTON LODGE CARE CENTRE,"3,606.27",23/05/2019
Delivery Units,Adults and Health,Other Agencies - Third Party P,90168149,ASHTON LODGE CARE CENTRE,"3,132.73",23/05/2019
Delivery Units,Adults and Health,Other Agencies - Third Party P,90168150,ASHTON LODGE CARE CENTRE,"3,741.92",23/05/2019
Delivery Units,Adults and Health,Other Agencies - Third Party P,90168151,ASHTON LODGE CARE CENTRE,"3,128.43",23/05/2019
Delivery Units,Adults and Health,Other Agencies - Third Party P,90168152,ASHTON LODGE CARE CENTRE,"3,123.73",23/05/2019
Delivery Units,Adults and Health,Other Agencies - Third Party P,90168154,ASHTON LODGE CARE CENTRE,"3,583.51",23/05/2019
Delivery Units,Adults and Health,Other Agencies - Third Party P,90168155,ASPEN VILLAGES LTD,"2,558.10",02/05/2019
Delivery Units,Adults and Health,Other Agencies - Third Party P,90168157,ASPEN VILLAGES LTD,"4,714.29",02/05/2019
Delivery Units,Adults and Health,Other Agencies - Third Party P,90168158,ASPEN VILLAGES LTD,"4,714.29",02/05/2019
Delivery Units,Adults and Health,Other Agencies - Third Party P,90168165,ASPEN VILLAGES LTD,"2,326.71",02/05/2019
Delivery Units,Adults and Health,Other Agencies - Third Party P,90168166,ASPEN VILLAGES LTD,"4,714.29",02/05/2019
Delivery Units,Adults and Health,Other Agencies - Third Party P,90168167,ASPEN VILLAGES LTD,"4,071.43",02/05/2019
Delivery Units,Adults and Health,Other Agencies - Third Party P,90168168,ASPEN VILLAGES LTD,"4,714.29",02/05/2019
Delivery Units,Adults and Health,Other Agencies - Third Party P,90168169,ASPEN VILLAGES LTD,"4,871.43",23/05/2019
Delivery Units,Adults and Health,Other Agencies - Third Party P,90168170,ASPEN VILLAGES LTD,"4,871.43",23/05/2019
Delivery Units,Adults and Health,Other Agencies - Third Party P,90168171,ASPEN VILLAGES LTD,"4,871.43",23/05/2019
Delivery Units,Adults and Health,Other Agencies - Third Party P,90168173,ASPEN VILLAGES LTD,"4,207.14",23/05/2019
Delivery Units,Adults and Health,Other Agencies - Third Party P,90168174,ASPEN VILLAGES LTD,"4,871.43",23/05/2019
Delivery Units,Adults and Health,Other Agencies - Third Party P,90168175,AUTUMN GARDENS,"4,800.00",02/05/2019
Delivery Units,Adults and Health,Other Agencies - Third Party P,90168176,AUTUMN GARDENS,"3,160.00",02/05/2019
Delivery Units,Adults and Health,Other Agencies - Third Party P,90168178,AUTUMN GARDENS,"2,184.04",02/05/2019
Delivery Units,Adults and Health,Other Agencies - Third Party P,90168179,AUTUMN GARDENS,"3,600.00",02/05/2019
Delivery Units,Adults and Health,Other Agencies - Third Party P,90168180,AUTUMN GARDENS,"4,800.00",02/05/2019
Delivery Units,Adults and Health,Other Agencies - Third Party P,90168181,AUTUMN GARDENS,"3,440.00",02/05/2019
Delivery Units,Adults and Health,Other Agencies - Third Party P,90168182,AUTUMN GARDENS,"2,880.00",02/05/2019
Delivery Units,Adults and Health,Other Agencies - Third Party P,90168184,AUTUMN GARDENS,"4,800.00",22/05/2019
Delivery Units,Adults and Health,Other Agencies - Third Party P,90168185,AUTUMN GARDENS,"2,184.04",22/05/2019
Delivery Units,Adults and Health,Other Agencies - Third Party P,90168186,AUTUMN GARDENS,"3,160.00",22/05/2019
Delivery Units,Adults and Health,Other Agencies - Third Party P,90168187,AUTUMN GARDENS,"4,800.00",22/05/2019
Delivery Units,Adults and Health,Other Agencies - Third Party P,90168188,AUTUMN GARDENS,"2,880.00",22/05/2019
Delivery Units,Adults and Health,Other Agencies - Third Party P,90168190,AUTUMN GARDENS,"3,440.00",22/05/2019
Delivery Units,Adults and Health,Other Agencies - Third Party P,90168194,B & M CARE,"12,545.88",21/05/2019
Delivery Units,Adults and Health,Other Agencies - Third Party P,90168196,B & M CARE,"1,645.71",13/05/2019
Delivery Units,Adults and Health,Other Agencies - Third Party P,90168200,B & M CARE,"2,468.57",13/05/2019
Delivery Units,Adults and Health,Other Agencies - Third Party P,90168201,B & M CARE,"2,550.86",13/05/2019
Delivery Units,Adults and Health,Other Agencies - Third Party P,90168205,B & M CARE,"-2,785.72",13/05/2019
Delivery Units,Adults and Health,Other Agencies - Third Party P,90168206,B & M CARE,"3,321.43",22/05/2019
Delivery Units,Adults and Health,Other Agencies - Third Party P,90168208,B & M CARE,"3,210.71",22/05/2019
Delivery Units,Adults and Health,Other Agencies - Third Party P,90168209,B & M CARE,"3,764.29",22/05/2019
Delivery Units,Adults and Health,Other Agencies - Third Party P,90168210,B & M CARE,"2,249.45",23/05/2019
Delivery Units,Adults and Health,Other Agencies - Third Party P,90168212,BARCHESTER HEALTHCARE (CHEVERTON LODGE),"6,192.64",02/05/2019
Delivery Units,Adults and Health,Other Agencies - Third Party P,90168213,BARCHESTER HEALTHCARE (CHEVERTON LODGE),"6,399.06",15/05/2019
Delivery Units,Adults and Health,Other Agencies - Third Party P,90168214,BARCHESTER HEALTHCARE (THISTLE HILL CARE,"5,674.29",02/05/2019
Delivery Units,Adults and Health,Other Agencies - Third Party P,90168215,BARCHESTER HEALTHCARE (THISTLE HILL CARE,"5,863.43",23/05/2019
Delivery Units,Adults and Health,Other Agencies - Third Party P,90168216,BARNET CARERS CENTRE,451.13,13/05/2019
Delivery Units,Adults and Health,Other Agencies - Third Party P,90168217,BARNET CARERS CENTRE,440.51,13/05/2019
Delivery Units,Adults and Health,Other Agencies - Third Party P,90168218,BARNET CARERS CENTRE,557.44,13/05/2019
Delivery Units,Adults and Health,Other Agencies - Third Party P,90168219,BARNET CARERS CENTRE,27.34,13/05/2019
Delivery Units,Adults and Health,Other Agencies - Third Party P,90168220,BARNET CARERS CENTRE,701.74,13/05/2019
Delivery Units,Adults and Health,Other Agencies - Third Party P,90162973,BARNET CARERS CENTRE,"1,097.48",13/05/2019
Delivery Units,Adults and Health,Other Agencies - Third Party P,90162975,BARNET CARERS CENTRE,595.42,13/05/2019
Delivery Units,Adults and Health,Other Agencies - Third Party P,90162977,BARNET CARERS CENTRE,91.14,13/05/2019
Delivery Units,Adults and Health,Other Agencies - Third Party P,90162979,BARNET CARERS CENTRE,13.67,13/05/2019
Delivery Units,Adults and Health,Other Agencies - Third Party P,90162981,BARNET CARERS CENTRE,467.84,13/05/2019
Delivery Units,Adults and Health,Other Agencies - Third Party P,90162982,BARNET CARERS CENTRE,440.51,13/05/2019
Delivery Units,Adults and Health,Other Agencies - Third Party P,90162984,BARNET CARERS CENTRE,584.78,13/05/2019
Delivery Units,Adults and Health,Other Agencies - Third Party P,90162986,BARNET CARERS CENTRE,27.34,13/05/2019
Delivery Units,Adults and Health,Other Agencies - Third Party P,90162988,BARNET CARERS CENTRE,732.12,13/05/2019
Delivery Units,Adults and Health,Other Agencies - Third Party P,90162990,BARNET CARERS CENTRE,"1,036.72",13/05/2019
Delivery Units,Adults and Health,Other Agencies - Third Party P,90162992,BARNET CARERS CENTRE,595.42,13/05/2019
Delivery Units,Adults and Health,Other Agencies - Third Party P,90162993,BARNET CARERS CENTRE,91.14,13/05/2019
Delivery Units,Adults and Health,Other Agencies - Third Party P,90162995,BARNET CARERS CENTRE,451.13,13/05/2019
Delivery Units,Adults and Health,Other Agencies - Third Party P,90162997,BARNET CARERS CENTRE,440.51,13/05/2019
Delivery Units,Adults and Health,Other Agencies - Third Party P,90162999,BARNET CARERS CENTRE,584.78,13/05/2019
Delivery Units,Adults and Health,Other Agencies - Third Party P,90163001,BARNET CARERS CENTRE,27.34,13/05/2019
Delivery Units,Adults and Health,Other Agencies - Third Party P,90163002,BARNET CARERS CENTRE,27.34,13/05/2019
Delivery Units,Adults and Health,Other Agencies - Third Party P,90163004,BARNET CARERS CENTRE,732.12,13/05/2019
Delivery Units,Adults and Health,Other Agencies - Third Party P,90163006,BARNET CARERS CENTRE,"1,097.48",13/05/2019
Delivery Units,Adults and Health,Other Agencies - Third Party P,90163008,BARNET CARERS CENTRE,595.42,13/05/2019
Delivery Units,Adults and Health,Other Agencies - Third Party P,90163010,BARNET CARERS CENTRE,106.33,13/05/2019
Delivery Units,Adults and Health,Other Agencies - Third Party P,90163011,BARNET CARERS CENTRE,481.51,13/05/2019
Delivery Units,Adults and Health,Other Agencies - Third Party P,90163013,BARNET CARERS CENTRE,440.51,13/05/2019
Delivery Units,Adults and Health,Other Agencies - Third Party P,90163015,BARNET CARERS CENTRE,584.78,13/05/2019
Delivery Units,Adults and Health,Other Agencies - Third Party P,90163017,BARNET CARERS CENTRE,27.34,13/05/2019
Delivery Units,Adults and Health,Other Agencies - Third Party P,90163019,BARNET CARERS CENTRE,27.34,13/05/2019
Delivery Units,Adults and Health,Other Agencies - Third Party P,90163020,BARNET CARERS CENTRE,619.72,13/05/2019
Delivery Units,Adults and Health,Other Agencies - Third Party P,90163022,BARNET CARERS CENTRE,641.78,13/05/2019
Delivery Units,Adults and Health,Other Agencies - Third Party P,90163024,BARNET CARERS CENTRE,595.42,13/05/2019
Delivery Units,Adults and Health,Other Agencies - Third Party P,90163026,BARNET CARERS CENTRE,136.71,13/05/2019
Delivery Units,Adults and Health,Other Agencies - Third Party P,90163028,BARNET CARERS CENTRE,503.58,13/05/2019
Delivery Units,Adults and Health,Other Agencies - Third Party P,90163029,BARNET CARERS CENTRE,520.31,13/05/2019
Delivery Units,Adults and Health,Other Agencies - Third Party P,90163031,BARNET CARERS CENTRE,668.38,13/05/2019
Delivery Units,Adults and Health,Other Agencies - Third Party P,90163033,BARNET CARERS CENTRE,27.34,13/05/2019
Delivery Units,Adults and Health,Other Agencies - Third Party P,90163035,BARNET CARERS CENTRE,27.34,13/05/2019
Delivery Units,Adults and Health,Other Agencies - Third Party P,90163037,BARNET CARERS CENTRE,844.60,13/05/2019
Delivery Units,Adults and Health,Other Agencies - Third Party P,90163038,BARNET CARERS CENTRE,451.90,13/05/2019
Delivery Units,Adults and Health,Other Agencies - Third Party P,90163040,BARNET CARERS CENTRE,680.54,13/05/2019
Delivery Units,Adults and Health,Other Agencies - Third Party P,90163042,BARNET CARERS CENTRE,45.57,13/05/2019
Delivery Units,Adults and Health,Other Agencies - Third Party P,90163465,BARNET CARERS CENTRE,525.59,13/05/2019
Delivery Units,Adults and Health,Other Agencies - Third Party P,90163467,BARNET CARERS CENTRE,470.91,13/05/2019
Delivery Units,Adults and Health,Other Agencies - Third Party P,90163468,BARNET CARERS CENTRE,626.58,13/05/2019
Delivery Units,Adults and Health,Other Agencies - Third Party P,90163470,BARNET CARERS CENTRE,27.34,13/05/2019
Delivery Units,Adults and Health,Other Agencies - Third Party P,90163472,BARNET CARERS CENTRE,27.34,13/05/2019
Delivery Units,Adults and Health,Other Agencies - Third Party P,90163474,BARNET CARERS CENTRE,788.36,13/05/2019
Delivery Units,Adults and Health,Other Agencies - Third Party P,90163476,BARNET CARERS CENTRE,531.65,13/05/2019
Delivery Units,Adults and Health,Other Agencies - Third Party P,90163477,BARNET CARERS CENTRE,637.98,13/05/2019
Delivery Units,Adults and Health,Other Agencies - Third Party P,90163479,BARNET CARERS CENTRE,144.31,13/05/2019
Delivery Units,Adults and Health,Other Agencies - Third Party P,90163481,BARNET CARERS CENTRE,451.13,13/05/2019
Delivery Units,Adults and Health,Other Agencies - Third Party P,90163483,BARNET CARERS CENTRE,440.51,13/05/2019
Delivery Units,Adults and Health,Other Agencies - Third Party P,90163485,BARNET CARERS CENTRE,584.78,13/05/2019
Delivery Units,Adults and Health,Other Agencies - Third Party P,90163487,BARNET CARERS CENTRE,27.34,13/05/2019
Delivery Units,Adults and Health,Other Agencies - Third Party P,90163489,BARNET CARERS CENTRE,27.34,13/05/2019
Delivery Units,Adults and Health,Other Agencies - Third Party P,90163491,BARNET CARERS CENTRE,732.12,13/05/2019
Delivery Units,Adults and Health,Other Agencies - Third Party P,90163493,BARNET CARERS CENTRE,"1,082.29",13/05/2019
Delivery Units,Adults and Health,Other Agencies - Third Party P,90163494,BARNET CARERS CENTRE,595.42,13/05/2019
Delivery Units,Adults and Health,Other Agencies - Third Party P,90163496,BARNET CARERS CENTRE,136.71,13/05/2019
Delivery Units,Adults and Health,Other Agencies - Third Party P,90163498,BARNET CARERS CENTRE,481.51,13/05/2019
Delivery Units,Adults and Health,Other Agencies - Third Party P,90163500,BARNET CARERS CENTRE,440.51,13/05/2019
Delivery Units,Adults and Health,Other Agencies - Third Party P,90163501,BARNET CARERS CENTRE,583.26,13/05/2019
Delivery Units,Adults and Health,Other Agencies - Third Party P,90163503,BARNET CARERS CENTRE,27.34,13/05/2019
Delivery Units,Adults and Health,Other Agencies - Third Party P,90163505,BARNET CARERS CENTRE,27.34,13/05/2019
Delivery Units,Adults and Health,Other Agencies - Third Party P,90163507,BARNET CARERS CENTRE,732.12,13/05/2019
Delivery Units,Adults and Health,Other Agencies - Third Party P,90163508,BARNET CARERS CENTRE,"1,036.72",13/05/2019
Delivery Units,Adults and Health,Other Agencies - Third Party P,90163510,BARNET CARERS CENTRE,595.42,13/05/2019
Delivery Units,Adults and Health,Other Agencies - Third Party P,90163512,BARNET CARERS CENTRE,136.71,13/05/2019
Delivery Units,Adults and Health,Other Agencies - Third Party P,90163514,BARNET CARERS CENTRE,451.13,15/05/2019
Delivery Units,Adults and Health,Other Agencies - Third Party P,90163515,BARNET CARERS CENTRE,440.51,15/05/2019
Delivery Units,Adults and Health,Other Agencies - Third Party P,90163517,BARNET CARERS CENTRE,571.11,15/05/2019
Delivery Units,Adults and Health,Other Agencies - Third Party P,90163519,BARNET CARERS CENTRE,27.34,15/05/2019
Delivery Units,Adults and Health,Other Agencies - Third Party P,90163521,BARNET CARERS CENTRE,27.34,15/05/2019
Delivery Units,Adults and Health,Other Agencies - Third Party P,90163522,BARNET CARERS CENTRE,732.12,15/05/2019
Delivery Units,Adults and Health,Other Agencies - Third Party P,90163524,BARNET CARERS CENTRE,"1,036.72",15/05/2019
Delivery Units,Adults and Health,Other Agencies - Third Party P,90163526,BARNET CARERS CENTRE,595.42,15/05/2019
Delivery Units,Adults and Health,Other Agencies - Third Party P,90163528,BARNET CARERS CENTRE,136.71,15/05/2019
Delivery Units,Adults and Health,Other Agencies - Third Party P,90163529,BARNET CARERS CENTRE,481.51,15/05/2019
Delivery Units,Adults and Health,Other Agencies - Third Party P,90163531,BARNET CARERS CENTRE,440.51,15/05/2019
Delivery Units,Adults and Health,Other Agencies - Third Party P,90163533,BARNET CARERS CENTRE,584.78,15/05/2019
Delivery Units,Adults and Health,Other Agencies - Third Party P,90163535,BARNET CARERS CENTRE,13.67,15/05/2019
Delivery Units,Adults and Health,Other Agencies - Third Party P,90163537,BARNET CARERS CENTRE,13.67,15/05/2019
Delivery Units,Adults and Health,Other Agencies - Third Party P,90160701,BARNET CARERS CENTRE,716.93,15/05/2019
Delivery Units,Adults and Health,Other Agencies - Third Party P,90160702,BARNET CARERS CENTRE,"1,055.71",15/05/2019
Delivery Units,Adults and Health,Other Agencies - Third Party P,90160703,BARNET CARERS CENTRE,581.75,15/05/2019
Delivery Units,Adults and Health,Other Agencies - Third Party P,90160704,BARNET CARERS CENTRE,136.71,15/05/2019
Delivery Units,Adults and Health,Other Agencies - Third Party P,90160706,BARNET CARERS CENTRE,451.13,15/05/2019
Delivery Units,Adults and Health,Other Agencies - Third Party P,90160708,BARNET CARERS CENTRE,440.51,15/05/2019
Delivery Units,Adults and Health,Other Agencies - Third Party P,90160709,BARNET CARERS CENTRE,571.11,15/05/2019
Delivery Units,Adults and Health,Other Agencies - Third Party P,90160711,BARNET CARERS CENTRE,13.67,15/05/2019
Delivery Units,Adults and Health,Other Agencies - Third Party P,90160712,BARNET CARERS CENTRE,732.12,15/05/2019
Delivery Units,Adults and Health,Other Agencies - Third Party P,90160713,BARNET CARERS CENTRE,"1,036.72",15/05/2019
Delivery Units,Adults and Health,Other Agencies - Third Party P,90160714,BARNET CARERS CENTRE,568.08,15/05/2019
Delivery Units,Adults and Health,Other Agencies - Third Party P,90160715,BARNET CARERS CENTRE,121.52,15/05/2019
Delivery Units,Adults and Health,Other Agencies - Third Party P,90160716,BARNET CARERS CENTRE,483.03,15/05/2019
Delivery Units,Adults and Health,Other Agencies - Third Party P,90160717,BARNET CARERS CENTRE,417.73,15/05/2019
Delivery Units,Adults and Health,Other Agencies - Third Party P,90160718,BARNET CARERS CENTRE,584.78,15/05/2019
Delivery Units,Adults and Health,Other Agencies - Third Party P,90160724,BARNET CARERS CENTRE,718.45,15/05/2019
Delivery Units,Adults and Health,Other Agencies - Third Party P,90160725,BARNET CARERS CENTRE,"1,006.34",15/05/2019
Delivery Units,Adults and Health,Other Agencies - Third Party P,90160726,BARNET CARERS CENTRE,581.75,15/05/2019
Delivery Units,Adults and Health,Other Agencies - Third Party P,90160727,BARNET CARERS CENTRE,136.71,15/05/2019
Delivery Units,Adults and Health,Other Agencies - Third Party P,90160728,BARNET CARERS CENTRE,451.13,15/05/2019
Delivery Units,Adults and Health,Other Agencies - Third Party P,90160729,BARNET CARERS CENTRE,440.51,15/05/2019
Delivery Units,Adults and Health,Other Agencies - Third Party P,90160730,BARNET CARERS CENTRE,584.78,15/05/2019
Delivery Units,Adults and Health,Other Agencies - Third Party P,90160731,BARNET CARERS CENTRE,716.93,15/05/2019
Delivery Units,Adults and Health,Other Agencies - Third Party P,90160732,BARNET CARERS CENTRE,"1,036.72",15/05/2019
Delivery Units,Adults and Health,Other Agencies - Third Party P,90160733,BARNET CARERS CENTRE,581.75,15/05/2019
Delivery Units,Adults and Health,Other Agencies - Third Party P,90161725,BARNET CARERS CENTRE,106.33,15/05/2019
Delivery Units,Adults and Health,Other Agencies - Third Party P,90161726,BARNET CARERS CENTRE,481.51,15/05/2019
Delivery Units,Adults and Health,Other Agencies - Third Party P,90161727,BARNET CARERS CENTRE,440.51,15/05/2019
Delivery Units,Adults and Health,Other Agencies - Third Party P,90161728,BARNET CARERS CENTRE,571.11,15/05/2019
Delivery Units,Adults and Health,Other Agencies - Third Party P,90161730,BARNET CARERS CENTRE,704.78,15/05/2019
Delivery Units,Adults and Health,Other Agencies - Third Party P,90161732,BARNET CARERS CENTRE,"1,097.48",15/05/2019
Delivery Units,Adults and Health,Other Agencies - Third Party P,90161733,BARNET CARERS CENTRE,581.75,15/05/2019
Delivery Units,Adults and Health,Other Agencies - Third Party P,90161734,BARNET CARERS CENTRE,136.71,15/05/2019
Delivery Units,Adults and Health,Other Agencies - Third Party P,90161736,BARNET CARERS CENTRE,451.13,15/05/2019
Delivery Units,Adults and Health,Other Agencies - Third Party P,90161737,BARNET CARERS CENTRE,440.51,15/05/2019
Delivery Units,Adults and Health,Other Agencies - Third Party P,90161738,BARNET CARERS CENTRE,571.11,15/05/2019
Delivery Units,Adults and Health,Other Agencies - Third Party P,90161739,BARNET CARERS CENTRE,732.12,15/05/2019
Delivery Units,Adults and Health,Other Agencies - Third Party P,90161740,BARNET CARERS CENTRE,956.97,15/05/2019
Delivery Units,Adults and Health,Other Agencies - Third Party P,90161741,BARNET CARERS CENTRE,552.89,15/05/2019
Delivery Units,Adults and Health,Other Agencies - Third Party P,90161742,BARNET CARERS CENTRE,136.71,15/05/2019
Delivery Units,Adults and Health,Other Agencies - Third Party P,90161743,BARNET CARERS CENTRE,481.51,15/05/2019
Delivery Units,Adults and Health,Other Agencies - Third Party P,90161749,BARNET CARERS CENTRE,440.51,15/05/2019
Delivery Units,Adults and Health,Other Agencies - Third Party P,90161750,BARNET CARERS CENTRE,584.78,15/05/2019
